Workbook

Sheet 1. adat
C1: 2008. I. | D1: II. | E1: III. | F1: IV. | G1: 2009. I. | H1: II. | I1: III. | J1: IV. | K1: 2010. I. | L1: II. | M1: III. | N1: IV. | O1: 2011. I. | P1: II. | Q1: III. | R1: IV. | S1: 2012. I. | T1: II. | U1: III. | V1: IV. | W1: 2013. I. | X1: II. | Y1: III. | Z1: IV. | AA1: 2014. I. | AB1: II. | AC1: III. | AD1: IV. | AE1: 2015. I. | AF1: II. | AG1: III. | AH1: IV. | AI1: 2016. I. | AJ1: II. | AK1: III. | AL1: IV. | AM1: 2017. I. | AN1: II. | AO1: III. | AP1: IV. | AQ1: 2018. I. | AR1: II.
C2: 2008 Q1 | D2: Q2 | E2: Q3 | F2: Q4 | G2: 2009 Q1 | H2: Q2 | I2: Q3 | J2: Q4 | K2: 2010 Q1 | L2: Q2 | M2: Q3 | N2: Q4 | O2: 2011 Q1 | P2: Q2 | Q2: Q3 | R2: Q4 | S2: 2012 Q1 | T2: Q2 | U2: Q3 | V2: Q4 | W2: 2013 Q1 | X2: Q2 | Y2: Q3 | Z2: Q4 | AA2: 2014 Q1 | AB2: Q2 | AC2: Q3 | AD2: Q4 | AE2: 2015 Q1 | AF2: Q2 | AG2: Q3 | AH2: Q4 | AI2: 2016 Q1 | AJ2: Q2 | AK2: Q3 | AL2: Q4 | AM2: 2017 Q1 | AN2: Q2 | AO2: Q3 | AP2: Q4 | AQ2: 2018 Q1 | AR2: Q2
C3: 2008-03-31 | D3: 2008-06-30 | E3: 2008-09-30 | F3: 2008-12-31 | G3: 2009-03-31 | H3: 2009-06-30 | I3: 2009-09-30 | J3: 2009-12-31 | K3: 2010-03-31 | L3: 2010-06-30 | M3: 2010-09-30 | N3: 2010-12-31 | O3: 2011-03-31 | P3: 2011-06-30 | Q3: 2011-09-30 | R3: 2011-12-31 | S3: 2012-03-31 | T3: 2012-06-30 | U3: 2012-09-30 | V3: 2012-12-31 | W3: 2013-03-31 | X3: 2013-06-30 | Y3: 2013-09-30 | Z3: 2013-12-31 | AA3: 2014-03-31 | AB3: 2014-06-30 | AC3: 2014-09-30 | AD3: 2014-12-31 | AE3: 2015-03-31 | AF3: 2015-06-30 | AG3: 2015-09-30 | AH3: 2015-12-31 | AI3: 2016-03-31 | AJ3: 2016-06-30 | AK3: 2016-09-30 | AL3: 2016-12-31 | AM3: 2017-03-31 | AN3: 2017-06-30 | AO3: 2017-09-30 | AP3: 2017-12-31 | AQ3: 2018-03-31 | AR3: 2018-06-30
A4: Áru- és szolgáltatásegyenleg | B4: Balance of goods and services | C4: 0.542332485 | D4: 0.607372897 | E4: 0.2758647562 | F4: 0.3561396662 | G4: 0.7245830105 | H4: 1.689242759 | I4: 3.051625347 | J4: 4.017699767 | K4: 4.723370889 | L4: 4.87531813 | M4: 4.905755766 | N4: 5.322621106 | O4: 5.632341161 | P4: 5.781564567 | Q4: 6.074904859 | R4: 6.133299276 | S4: 6.015642263 | T4: 6.42292087 | U4: 6.937671015 | V4: 6.753380352 | W4: 7.018662655 | X4: 6.686713568 | Y4: 6.877104778 | Z4: 6.964436192 | AA4: 7.044988555 | AB4: 6.643579469 | AC4: 6.33982853 | AD4: 6.376469708 | AE4: 6.919557093 | AF4: 7.412864285 | AG4: 7.620062376 | AH4: 8.109279061 | AI4: 8.224844426 | AJ4: 9.294494831 | AK4: 9.943509888 | AL4: 10.02133523 | AM4: 9.22252051 | AN4: 8.741833956 | AO4: 7.854890978 | AP4: 7.498827261 | AQ4: 7.325186126 | AR4: 6.966538983
A5: Jövedelemegyenleg | B5: Income balance | C5: -6.854986243 | D5: -6.318026328 | E5: -6.62710402 | F5: -6.873754374 | G5: -6.895621572 | H5: -6.900304932 | I5: -6.332937856 | J5: -5.648926538 | K5: -5.708734614 | L5: -5.733586303 | M5: -5.752726497 | N5: -5.696024441 | O5: -5.750549198 | P5: -5.822329721 | Q5: -5.873372691 | R5: -6.109736802 | S5: -5.905395675 | T5: -5.787148941 | U5: -5.536990179 | V5: -5.532959765 | W5: -5.185767609 | X5: -4.813339108 | Y5: -4.481568185 | Z5: -4.021219243 | AA5: -4.377248815 | AB5: -4.811975375 | AC5: -5.216169128 | AD5: -5.476702012 | AE5: -5.197749883 | AF5: -5.115596922 | AG5: -5.204645259 | AH5: -5.626440003 | AI5: -5.315947279 | AJ5: -4.811561885 | AK5: -4.281093464 | AL5: -3.582857914 | AM5: -4.052441771 | AN5: -4.571999571 | AO5: -4.839825406 | AP5: -5.078141237 | AQ5: -5.020843274 | AR5: -4.976866213
A6: Transzferegyenleg | B6: Transfer balance | C6: 0.1437318558 | D6: 0.01556519883 | E6: 0.05675319726 | F6: 0.4340019554 | G6: 0.98217894 | H6: 1.581618574 | I6: 2.305544589 | J6: 2.583606152 | K6: 2.785002655 | L6: 2.896514999 | M6: 2.976417463 | N6: 2.468143886 | O6: 2.352998477 | P6: 2.145120039 | Q6: 2.308522016 | R6: 3.043748181 | S6: 2.763979392 | T6: 2.782501442 | U6: 2.416774221 | V6: 3.069425506 | W6: 3.510770724 | X6: 3.956625815 | Y6: 4.041162365 | Z6: 4.439117455 | AA6: 4.196202687 | AB6: 3.911289356 | AC6: 4.265569392 | AD6: 4.328442754 | AE6: 4.574641904 | AF6: 5.092346813 | AG6: 4.708811189 | AH6: 4.970417105 | AI6: 4.315916475 | AJ6: 3.026240433 | AK6: 2.186082106 | AL6: -0.2549214194 | AM6: 0.1607531661 | AN6: 1.047841584 | AO6: 1.302921346 | AP6: 1.753218417 | AQ6: 2.499712297 | AR6: 1.984274445
A7: Külső finanszírozási képesség | B7: Net lending | C7: -6.168921902 | D7: -5.695088233 | E7: -6.294486067 | F7: -6.083612753 | G7: -5.188859621 | H7: -3.629443599 | I7: -0.9757679198 | J7: 0.952379381 | K7: 1.79963893 | L7: 2.038246826 | M7: 2.129446733 | N7: 2.094740551 | O7: 2.234790441 | P7: 2.104354884 | Q7: 2.510054184 | R7: 3.067310656 | S7: 2.87422598 | T7: 3.418273372 | U7: 3.817455057 | V7: 4.289846093 | W7: 5.34366577 | X7: 5.830000274 | Y7: 6.436698957 | Z7: 7.382334404 | AA7: 6.863942427 | AB7: 5.74289345 | AC7: 5.389228794 | AD7: 5.228210451 | AE7: 6.296449114 | AF7: 7.389614177 | AG7: 7.124228306 | AH7: 7.453256163 | AI7: 7.224813621 | AJ7: 7.509173379 | AK7: 7.84849853 | AL7: 6.1835559 | AM7: 5.330831905 | AN7: 5.217675969 | AO7: 4.317986919 | AP7: 4.173904442 | AQ7: 4.80405515 | AR7: 3.973947215
A8: Folyó fizetési mérleg | B8: Current account | C8: -6.857852295 | D8: -6.248519174 | E8: -6.697447509 | F8: -7.036853632 | G8: -6.41420826 | H8: -5.199673629 | I8: -2.927633338 | J8: -0.7983326126 | K8: -0.1544322233 | L8: -0.05363732447 | M8: -0.07640456159 | N8: 0.2770535821 | O8: 0.4643882171 | P8: 0.476060415 | Q8: 0.7091653207 | R8: 0.7442180677 | S8: 0.577299834 | T8: 1.026373809 | U8: 1.646631188 | V8: 1.757930068 | W8: 2.634466783 | X8: 2.815491749 | Y8: 3.331088771 | Z8: 3.822503892 | AA8: 3.58384844 | AB8: 2.687991567 | AC8: 2.089340494 | AD8: 1.503558613 | AE8: 2.187033071 | AF8: 2.695981991 | AG8: 2.622212419 | AH8: 2.824092353 | AI8: 3.241035264 | AJ8: 4.664731621 | AK8: 5.783592479 | AL8: 6.215952977 | AM8: 5.198015974 | AN8: 4.690458565 | AO8: 3.601411088 | AP8: 3.197673384 | AQ8: 3.186791664 | AR8: 2.472122717
A40: Áru- és szolgáltatásegyenleg | C40: =+C30/C$36*100 ->  | S40: =+S30/S$36*100 ->  | AO40: =+AO30/AO$36*100 ->  | AQ40: =+AQ30/AQ$36*100 -> 
A41: Jövedelemegyenleg | C41: =+C31/C$36*100 ->  | S41: =+S31/S$36*100 ->  | AO41: =+AO31/AO$36*100 ->  | AR41: =+AR31/AR$36*100 -> 
A42: Transzferegyenleg | C42: =+C32/C$36*100 ->  | S42: =+S32/S$36*100 ->  | AO42: =+AO32/AO$36*100 ->  | AQ42: =+AQ32/AQ$36*100 -> 
A43: Külső finanszírozási képesség | C43: =+C33/C$36*100 ->  | S43: =+S33/S$36*100 ->  | AO43: =+AO33/AO$36*100 ->  | AQ43: =+AQ33/AQ$36*100 -> 

Sheet 2. adat
C1: 2008 | D1: 2009 | E1: 2010 | F1: 2011 | G1: 2012 | H1: 2013 | I1: 2014 | J1: 2015 | K1: 2016 | L1: 2017
A2: Net lending preceding revision | B2: Külső finanszírozási képesség revízió előtt | C2: -6.091903241 | D2: 0.9555135392 | E2: 2.09352922 | F2: 3.065653158 | G2: 4.297545471 | H2: 7.381350015 | I2: 5.227626842 | J2: 8.130602377 | K2: 5.996762809 | L2: 4.099751531
A3: Net lending after revision | B3: Külső finanszírozási képesség revízió után | C3: -6.091903241 | D3: 0.9555135392 | E3: 2.09352922 | F3: 3.065653158 | G3: 4.297545471 | H3: 7.381350015 | I3: 5.227626842 | J3: 7.450663675 | K3: 6.185114249 | L3: 4.173240604
A4: Income balance pre revision | B4: Revízió előtti jövedelemegyenleg | C4: -6.883121635 | D4: -5.667516429 | E4: -5.692730585 | F4: -6.106435252 | G4: -5.542890272 | H4: -4.020683038 | I4: -5.476090665 | J4: -5.709862394 | K4: -3.705609317 | L4: -5.089893479
A5: Revision's effect on income balance | B5: Revízió hatása a jövedelemegyenlegre | C5: 0 | D5: 0 | E5: 0 | F5: 0 | G5: 0 | H5: 0 | I5: 0 | J5: 0.08537945275 | K5: 0.1218484685 | L5: 0.01255989469
A6: Net exports | B6: Nettó export | C6: 0.3566249982 | D6: 4.030921501 | E6: 5.319543179 | F6: 6.129984994 | G6: 6.765501259 | H6: 6.963507527 | I6: 6.375757923 | J6: 8.106458386 | K6: 10.02386076 | L6: 7.497634612
A7: Transfer balance | B7: Transzferegyenleg | C7: 0.4345933948 | D7: 2.592108468 | E7: 2.466716626 | F7: 3.042103416 | G7: 3.074934483 | H7: 4.438525526 | I7: 4.327959584 | J7: 4.968688229 | K7: -0.2549856634 | L7: 1.752939577
A8: Revision's effect on net export | B8: Revízió hatása a nettó exportra | C8: 0 | D8: 0 | E8: 0 | F8: 0 | G8: 0 | H8: 0 | I8: 0 | J8: -0.7982984458 | K8: 0.008930704578 | L8: -0.1251533363
A9: Revision's effect on transfer balance | B9: Revízió hatása a transzferegyenlegre | C9: 0 | D9: 0 | E9: 0 | F9: 0 | G9: 0 | H9: 0 | I9: 0 | J9: 0.03298029034 | K9: 0.05757226674 | L9: 0.1860825146

Sheet 3. adat
C1: 2008 | D1: 2009 | E1: 2010 | F1: 2011 | G1: 2012 | H1: 2013 | I1: 2014 | J1: 2015 | K1: 2016 | L1: 2017
A2: Net FDI, previous | B2: Nettó FDI, korábbi | C2: 2.411273925 | D2: 0.1530753216 | E2: 0.7617470838 | F2: 0.971687336 | G2: 2.094578064 | H2: 1.137787357 | I2: 2.947973081 | J2: 1.320745119 | K2: 2.438955346 | L2: 1.734698105
A3: Net FDI | B3: Nettó FDI, új | C3: 2.411273925 | D3: 0.1530753216 | E3: 0.7617470838 | F3: 0.971687336 | G3: 2.094578064 | H3: 1.137787357 | I3: 2.947973081 | J3: 1.212960735 | K3: 2.3090813 | L3: 1.63495219

Sheet 1. táblázat
C2: 2015 | D2: 2016 | E2: 2017 | F2: 2018. I. n.év
B3: I. Finanszírozási képesség változása a reálgazdasági megközelítésből (1+2+3) | C3: -0.7531066503 | D3: 0.2141947193 | E3: 0.09072165041 | F3: -0.1809261809
B4: 1. Áru- és szolgáltatásegyenleg | C4: -0.8842030408 | D4: 0.01015606656 | E4: -0.1545007544 | F4: -0.2136388928
B5: 2. Jövedelemegyenleg | C5: 0.09456710349 | D5: 0.1385670242 | E5: 0.0155050857 | F5: -0.0353152445
B6: 3. Transzferegyenleg | C6: 0.03652928696 | D6: 0.0654716286 | E6: 0.2297173192 | F6: 0.05976264768
B7: Folyó fizetési mérleg | C7: -0.7531513129 | D7: 0.2052152938 | E7: 0.05886321688 | F7: -0.1869405844
B9: II. Finanszírozási képesség változása a finanszírozási oldalról -(5+…+8) | C9: 0.1471945455 | D9: 0.1762170388 | E9: -0.1220527782 | F9: 0.4283227043
B10: 5. Közvetlentőke-befektetés | C10: 0.1077843835 | D10: 0.1298740464 | E10: 0.09974591465 | F10: 0.1502812697
B11: 6. Portfolió részvény | C11: 0 | D11: 0 | E11: 0.05932663505 | F11: 0.001803959756
B12: 7. Pénzügyi derivatívák | C12: 0 | D12: 0 | E12: 8.0681582e-05 | F12: -4.12425027e-05
B13: 8. Nettó adósság | C13: 0.03941016202 | D13: 0.04634299241 | E13: -0.2812060095 | F13: 0.2762787173
B15: Tévedések és kihagyások egyenleg (I.-II.) | C15: -0.9003011959 | D15: 0.03797768053 | E15: 0.2127744286 | F15: -0.6092488852
C18: 2015 | D18: 2016 | E18: 2017 | F18: 2018. Q1
B19: I. Change in net lending from real economy's side (1+2+3) | C19: -0.7531066503 | D19: 0.2141947193 | E19: 0.09072165041 | F19: -0.1809261809
B20: 1. Balance of goods and services | C20: -0.8842030408 | D20: 0.01015606656 | E20: -0.1545007544 | F20: -0.2136388928
B21: 2. Income balance | C21: 0.09456710349 | D21: 0.1385670242 | E21: 0.0155050857 | F21: -0.0353152445
B22: 3. Transfer balance | C22: 0.03652928696 | D22: 0.0654716286 | E22: 0.2297173192 | F22: 0.05976264768
B23: Current account | C23: -0.7531513129 | D23: 0.2052152938 | E23: 0.05886321688 | F23: -0.1869405844
B25: II. Change in net leding from financing side -(5+…+8) | C25: 0.1471945455 | D25: 0.1762170388 | E25: -0.1220527782 | F25: 0.4283227043
B26: 5. Foreign direct investment | C26: 0.1077843835 | D26: 0.1298740464 | E26: 0.09974591465 | F26: 0.1502812697
B27: 6. Portfolio equity | C27: 0 | D27: 0 | E27: 0.05932663505 | F27: 0.001803959756
B28: 7. Derivatives | C28: 0 | D28: 0 | E28: 8.0681582e-05 | F28: -4.12425027e-05
B29: 8. Net debt | C29: 0.03941016202 | D29: 0.04634299241 | E29: -0.2812060095 | F29: 0.2762787173
B31: Net errors and omissions (I.-II.) | C31: -0.9003011959 | D31: 0.03797768053 | E31: 0.2127744286 | F31: -0.6092488852

Sheet 4. adat
C1: 2008. I. | D1: II. | E1: III. | F1: IV. | G1: 2009. I. | H1: II. | I1: III. | J1: IV. | K1: 2010. I. | L1: II. | M1: III. | N1: IV. | O1: 2011. I. | P1: II. | Q1: III. | R1: IV. | S1: 2012. I. | T1: II. | U1: III. | V1: IV. | W1: 2013. I. | X1: II. | Y1: III. | Z1: IV. | AA1: 2014. I. | AB1: II. | AC1: III. | AD1: IV. | AE1: 2015. I. | AF1: II. | AG1: III. | AH1: IV. | AI1: 2016. I. | AJ1: II. | AK1: III. | AL1: IV. | AM1: 2017. I. | AN1: II. | AO1: III. | AP1: IV. | AQ1: 2018. I. | AR1: II.
C2: 2008 Q1 | D2: Q2 | E2: Q3 | F2: Q4 | G2: 2009 Q1 | H2: Q2 | I2: Q3 | J2: Q4 | K2: 2010 Q1 | L2: Q2 | M2: Q3 | N2: Q4 | O2: 2011 Q1 | P2: Q2 | Q2: Q3 | R2: Q4 | S2: 2012 Q1 | T2: Q2 | U2: Q3 | V2: Q4 | W2: 2013 Q1 | X2: Q2 | Y2: Q3 | Z2: Q4 | AA2: 2014 Q1 | AB2: Q2 | AC2: Q3 | AD2: Q4 | AE2: 2015 Q1 | AF2: Q2 | AG2: Q3 | AH2: Q4 | AI2: 2016 Q1 | AJ2: Q2 | AK2: Q3 | AL2: Q4 | AM2: 2017 Q1 | AN2: Q2 | AO2: Q3 | AP2: Q4 | AQ2: 2018 Q1 | AR2: Q2
A3: Áruegyenleg | B3: Balance of goods | C3: -0.3392722977 | D3: -0.4218899432 | E3: -0.9073455534 | F3: -0.8535364366 | G3: -0.5287175309 | H3: 0.3566376127 | I3: 1.678834345 | J3: 2.780670139 | K3: 3.022357588 | L3: 2.949987606 | M3: 2.776963395 | N3: 2.644979221 | O3: 3.098677894 | P3: 3.007582604 | Q3: 3.065175097 | R3: 2.880602557 | S3: 2.455431502 | T3: 2.782928054 | U3: 3.193453721 | V3: 2.94643193 | W3: 3.149676722 | X3: 2.91141141 | Y3: 2.974108901 | Z3: 3.271064555 | AA3: 3.343037228 | AB3: 2.761276007 | AC3: 2.297498288 | AD3: 2.012675742 | AE3: 2.425993961 | AF3: 2.83601881 | AG3: 2.880614911 | AH3: 3.658357737 | AI3: 3.523073336 | AJ3: 4.355639879 | AK3: 4.592931534 | AL3: 4.065083037 | AM3: 3.258239837 | AN3: 2.741481927 | AO3: 2.007422077 | AP3: 1.542195524 | AQ3: 1.197258241 | AR3: 0.8202476094
A4: Szolgáltatásegyenleg | B4: Balance of services | C4: 0.88103762 | D4: 1.02826754 | E4: 1.182634356 | F4: 1.209626941 | G4: 1.255532975 | H4: 1.336969369 | I4: 1.379250532 | J4: 1.245235336 | K4: 1.695298022 | L4: 1.914921356 | M4: 2.124965359 | N4: 2.673782844 | O4: 2.524198657 | P4: 2.761975855 | Q4: 3.009861772 | R4: 3.237532157 | S4: 3.559090326 | T4: 3.646921979 | U4: 3.756613398 | V4: 3.814908313 | W4: 3.874148956 | X4: 3.787150881 | Y4: 3.919001156 | Z4: 3.692611237 | AA4: 3.695675658 | AB4: 3.879630991 | AC4: 4.040413033 | AD4: 4.363117534 | AE4: 4.481721984 | AF4: 4.567244057 | AG4: 4.722556926 | AH4: 4.448805748 | AI4: 4.697459165 | AJ4: 4.943681725 | AK4: 5.340370723 | AL4: 5.957977445 | AM4: 5.954863392 | AN4: 5.996054401 | AO4: 5.83129178 | AP4: 5.955445629 | AQ4: 6.115880104 | AR4: 6.138670575
A5: Külkereskedelmi egyenleg | B5: Balance of goods and services | C5: 0.5417653223 | D5: 0.6063775967 | E5: 0.2752888028 | F5: 0.3560905043 | G5: 0.7268154444 | H5: 1.693606982 | I5: 3.058084877 | J5: 4.025905475 | K5: 4.71765561 | L5: 4.864908961 | M5: 4.901928754 | N5: 5.318762065 | O5: 5.622876551 | P5: 5.76955846 | Q5: 6.075036869 | R5: 6.118134715 | S5: 6.014521827 | T5: 6.429850033 | U5: 6.950067119 | V5: 6.761340244 | W5: 7.023825678 | X5: 6.69856229 | Y5: 6.893110057 | Z5: 6.963675792 | AA5: 7.038712886 | AB5: 6.640906999 | AC5: 6.337911321 | AD5: 6.375793276 | AE5: 6.907715945 | AF5: 7.403262867 | AG5: 7.603171837 | AH5: 8.107163485 | AI5: 8.220532501 | AJ5: 9.299321604 | AK5: 9.933302257 | AL5: 10.02306048 | AM5: 9.213103229 | AN5: 8.737536328 | AO5: 7.838713857 | AP5: 7.497641153 | AQ5: 7.313138345 | AR5: 6.958918185

Sheet 5. adat
C1: 2008. I. | D1: II. | E1: III. | F1: IV. | G1: 2009. I. | H1: II. | I1: III. | J1: IV. | K1: 2010. I. | L1: II. | M1: III. | N1: IV. | O1: 2011. I. | P1: II. | Q1: III. | R1: IV. | S1: 2012. I. | T1: II. | U1: III. | V1: IV. | W1: 2013. I. | X1: II. | Y1: III. | Z1: IV. | AA1: 2014. I. | AB1: II. | AC1: III. | AD1: IV. | AE1: 2015. I. | AF1: II. | AG1: III. | AH1: IV. | AI1: 2016. I. | AJ1: II. | AK1: III. | AL1: IV. | AM1: 2017. I. | AN1: II. | AO1: III. | AP1: IV. | AQ1: 2018. I. | AR1: II.
C2: 2008 Q1 | D2: Q2 | E2: Q3 | F2: Q4 | G2: 2009 Q1 | H2: Q2 | I2: Q3 | J2: Q4 | K2: 2010 Q1 | L2: Q2 | M2: Q3 | N2: Q4 | O2: 2011 Q1 | P2: Q2 | Q2: Q3 | R2: Q4 | S2: 2012 Q1 | T2: Q2 | U2: Q3 | V2: Q4 | W2: 2013 Q1 | X2: Q2 | Y2: Q3 | Z2: Q4 | AA2: 2014 Q1 | AB2: Q2 | AC2: Q3 | AD2: Q4 | AE2: 2015 Q1 | AF2: Q2 | AG2: Q3 | AH2: Q4 | AI2: 2016 Q1 | AJ2: Q2 | AK2: Q3 | AL2: Q4 | AM2: 2017 Q1 | AN2: Q2 | AO2: Q3 | AP2: Q4 | AQ2: 2018 Q1 | AR2: Q2
A3: Export | B3: Export | C3: 16.1 | D3: 11 | E3: 5.2 | F3: -3.3 | G3: -18.8 | H3: -16 | I3: -9.7 | J3: -0.6 | K3: 10.3 | L3: 13.6 | M3: 11.2 | N3: 10.2 | O3: 13.1 | P3: 6.2 | Q3: 4.7 | R3: 3 | S3: -0.9 | T3: 0.3 | U3: -1.3 | V3: -5.1 | W3: -0.6 | X3: 2.7 | Y3: 5.8 | Z3: 8.8 | AA3: 10.9 | AB3: 9.5 | AC3: 8.6 | AD3: 7.5 | AE3: 8.5 | AF3: 8 | AG3: 7.6 | AH3: 10 | AI3: 3 | AJ3: 7.7 | AK3: 3.5 | AL3: -0.2 | AM3: 10.2 | AN3: 5.4 | AO3: 4.7 | AP3: 8.3 | AQ3: 3.5 | AR3: 6.169806887
A4: Import | B4: Import | C4: 14.6 | D4: 12.3 | E4: 4.8 | F4: -6 | G4: -21.4 | H4: -21.8 | I4: -13.4 | J4: -1.3 | K4: 8.4 | L4: 13.2 | M4: 11.4 | N4: 7.9 | O4: 12.1 | P4: 5.4 | Q4: 1.4 | R4: -0.1 | S4: -2.3 | T4: -3 | U4: -4.1 | V4: -4.5 | W4: -1.6 | X4: 5.5 | Y4: 4.9 | Z4: 9.1 | AA4: 11.3 | AB4: 12.3 | AC4: 12 | AD4: 8.5 | AE4: 5.7 | AF4: 5.2 | AG4: 6.7 | AH4: 8.1 | AI4: 4.8 | AJ4: 4.8 | AK4: 2.6 | AL4: -0.2 | AM4: 12.7 | AN4: 7.6 | AO4: 9.1 | AP4: 9.7 | AQ4: 3.8 | AR4: 7.542798433
A5: Külkereskedelmi egyenleg (jobb tengely) | C5: 0.5417653223 | D5: 0.6063775967 | E5: 0.2752888028 | F5: 0.3560905043 | G5: 0.7268154444 | H5: 1.693606982 | I5: 3.058084877 | J5: 4.025905475 | K5: 4.71765561 | L5: 4.864908961 | M5: 4.901928754 | N5: 5.318762065 | O5: 5.622876551 | P5: 5.76955846 | Q5: 6.075036869 | R5: 6.118134715 | S5: 6.014521827 | T5: 6.429850033 | U5: 6.950067119 | V5: 6.761340244 | W5: 7.023825678 | X5: 6.69856229 | Y5: 6.893110057 | Z5: 6.963675792 | AA5: 7.038712886 | AB5: 6.640906999 | AC5: 6.337911321 | AD5: 6.375793276 | AE5: 6.907715945 | AF5: 7.403262867 | AG5: 7.603171837 | AH5: 8.107163485 | AI5: 8.220532501 | AJ5: 9.299321604 | AK5: 9.933302257 | AL5: 10.02306048 | AM5: 9.213103229 | AN5: 8.737536328 | AO5: 7.838713857 | AP5: 7.497641153 | AQ5: 7.313138345 | AR5: 6.958918185
C6: 0.6853785341 | D6: 0.6798932765 | E6: 0.3264450119 | F6: 0.3709692307 | G6: 0.8173486891 | H6: 1.868127556 | I6: 3.135192975 | J6: 4.039405851 | K6: 4.729726358 | L6: 4.882978688 | M6: 4.903302051 | N6: 5.306182839 | O6: 5.615141935 | P6: 5.749663927 | Q6: 6.068389128 | R6: 6.102030677 | S6: 5.923715179 | T6: 6.345256345 | U6: 6.830781174 | V6: 6.684982181 | W6: 7.035770238 | X6: 6.702874243 | Y6: 6.921712566 | Z6: 6.975070682 | AA6: 7.057165299 | AB6: 6.646399168 | AC6: 6.362517467 | AD6: 6.384923677 | AE6: 7.122081413 | AF6: 7.799723344 | AG6: 8.188228267 | AH6: 8.859294531 | AI6: 8.82875754 | AJ6: 9.843633539 | AK6: 10.20475049 | AL6: 10.08102129 | AM6: 9.481038398 | AN6: 8.950941963 | AO6: 8.115331274 | AP6: 7.819724283 | AQ6: 7.644455785 | AR6: 7.210943444
A7: Különbség | B7: Difference | C7: =+C3-C4 -> 1.5 | D7: -1.3 | E7: 0.4 | F7: 2.7 | G7: 2.6 | H7: 5.8 | I7: 3.7 | J7: 0.7 | K7: 1.9 | L7: 0.4 | M7: -0.2 | N7: 2.3 | O7: 1 | P7: 0.8 | Q7: 3.3 | R7: 3.1 | S7: 1.4 | T7: 3.3 | U7: 2.8 | V7: -0.6 | W7: 1 | X7: -2.8 | Y7: 0.9 | Z7: -0.3 | AA7: -0.4 | AB7: -2.8 | AC7: -3.4 | AD7: -1 | AE7: 2.8 | AF7: 2.8 | AG7: =+AG3-AG4 -> 0.9 | AH7: =+AH3-AH4 -> 1.9 | AI7: =+AI3-AI4 -> -1.8 | AJ7: 2.9 | AK7: =+AK3-AK4 -> 0.9 | AL7: 0 | AM7: -2.5 | AN7: =+AN3-AN4 -> -2.2 | AO7: -4.4 | AP7: -1.4 | AQ7: =+AQ3-AQ4 -> -0.3 | AR7: -1.372991546

Sheet 6. adat
C1: 2008. I. | D1: II. | E1: III. | F1: IV. | G1: 2009. I. | H1: II. | I1: III. | J1: IV. | K1: 2010. I. | L1: II. | M1: III. | N1: IV. | O1: 2011. I. | P1: II. | Q1: III. | R1: IV. | S1: 2012. I. | T1: II. | U1: III. | V1: IV. | W1: 2013. I. | X1: II. | Y1: III. | Z1: IV. | AA1: 2014. I. | AB1: II. | AC1: III. | AD1: IV. | AE1: 2015. I. | AF1: II. | AG1: III. | AH1: IV. | AI1: 2016. I. | AJ1: II. | AK1: III. | AL1: IV. | AM1: 2017. I. | AN1: II. | AO1: III. | AP1: IV. | AQ1: 2018. I. | AR1: II.
C2: 2008 Q1 | D2: Q2 | E2: Q3 | F2: Q4 | G2: 2009 Q1 | H2: Q2 | I2: Q3 | J2: Q4 | K2: 2010 Q1 | L2: Q2 | M2: Q3 | N2: Q4 | O2: 2011 Q1 | P2: Q2 | Q2: Q3 | R2: Q4 | S2: 2012 Q1 | T2: Q2 | U2: Q3 | V2: Q4 | W2: 2013 Q1 | X2: Q2 | Y2: Q3 | Z2: Q4 | AA2: 2014 Q1 | AB2: Q2 | AC2: Q3 | AD2: Q4 | AE2: 2015 Q1 | AF2: Q2 | AG2: Q3 | AH2: Q4 | AI2: 2016 Q1 | AJ2: Q2 | AK2: Q3 | AL2: Q4 | AM2: 2017 Q1 | AN2: Q2 | AO2: Q3 | AP2: Q4 | AQ2: 2018 Q1 | AR2: Q2
A3: Volumenváltozás | B3: Change in volume | C3: 64.89129351 | D3: -49.01516795 | E3: 19.36014156 | F3: 158.3848546 | G3: 157.6055586 | H3: 330.0886561 | I3: 178.3224537 | J3: 33.47096246 | K3: 102.9597206 | L3: 63.84726664 | M3: 27.62435872 | N3: 142.8111281 | O3: 92.01249342 | P3: 65.01440104 | Q3: 195.6754005 | R3: 201.9624521 | S3: 81.06026035 | T3: 196.9765754 | U3: 157.2515785 | V3: -56.33345504 | W3: 54.69837959 | X3: -140.0897672 | Y3: 87.01922391 | Z3: 15.32066709 | AA3: 34.94683856 | AB3: -114.7734253 | AC3: -134.0486041 | AD3: -28.91770839 | AE3: 224.0589807 | AF3: 222.0689748 | AG3: 113.1515123 | AH3: 182.9124984 | AI3: -86.96008931 | AJ3: 259.5104945 | AK3: 92.53486338 | AL3: -1.392759519 | AM3: -92.48664336 | AN3: -104.5283655 | AO3: -265.8618359 | AP3: -45.38978807 | AQ3: 0.2734423501 | AR3: -55.96634367
A4: Cserearány-változás | B4: Change in terms of trade | C4: -61.72129351 | D4: 50.90616795 | E4: -113.1221416 | F4: -145.4478546 | G4: -38.94955857 | H4: -53.52365607 | I4: 153.6495463 | J4: 205.8530375 | K4: 80.82427938 | L4: -14.86526664 | M4: -5.490358718 | N4: -20.52112811 | O4: 5.870506576 | P4: -14.56640104 | Q4: -88.74840047 | R4: -174.6314521 | S4: -120.7612604 | T4: -66.62757537 | U4: -6.985578491 | V4: 12.25245504 | W4: 62.83062041 | X4: 70.7837672 | Y4: 4.386776085 | Z4: 30.79633291 | AA4: 27.98016144 | AB4: 26.06742525 | AC4: 86.38060405 | AD4: 73.56570839 | AE4: 41.74901929 | AF4: 29.19902521 | AG4: 40.35448766 | AH4: 106.4235016 | AI4: 96.92708931 | AJ4: 135.6655055 | AK4: 57.10013662 | AL4: -23.52924048 | AM4: -64.28535664 | AN4: -34.98163454 | AO4: 19.74083588 | AP4: 2.890788075 | AQ4: -10.62744235 | AR4: -48.15165633
A5: Áru- és szolgáltatásegyenleg változása | B5: Change in trade balance | C5: 3.17 | D5: 1.891 | E5: -93.762 | F5: 12.937 | G5: 118.656 | H5: 276.565 | I5: 331.972 | J5: 239.324 | K5: 183.784 | L5: 48.982 | M5: 22.134 | N5: 122.29 | O5: 97.883 | P5: 50.448 | Q5: 106.927 | R5: 27.331 | S5: -39.701 | T5: 130.349 | U5: 150.266 | V5: -44.081 | W5: 117.529 | X5: -69.306 | Y5: 91.406 | Z5: 46.117 | AA5: 62.927 | AB5: -88.706 | AC5: -47.668 | AD5: 44.648 | AE5: 265.808 | AF5: 251.268 | AG5: 153.506 | AH5: 289.336 | AI5: 9.967 | AJ5: 395.176 | AK5: 149.635 | AL5: -24.922 | AM5: -156.772 | AN5: -139.51 | AO5: -246.121 | AP5: -42.499 | AQ5: -10.354 | AR5: -104.118

Sheet 7. adat
C1: 2008. I. | D1: II. | E1: III. | F1: IV. | G1: 2009. I. | H1: II. | I1: III. | J1: IV. | K1: 2010. I. | L1: II. | M1: III. | N1: IV. | O1: 2011. I. | P1: II. | Q1: III. | R1: IV. | S1: 2012. I. | T1: II. | U1: III. | V1: IV. | W1: 2013. I. | X1: II. | Y1: III. | Z1: IV. | AA1: 2014. I. | AB1: II. | AC1: III. | AD1: IV. | AE1: 2015. I. | AF1: II. | AG1: III. | AH1: IV. | AI1: 2016. I. | AJ1: II. | AK1: III. | AL1: IV. | AM1: 2017. I. | AN1: II. | AO1: III. | AP1: IV. | AQ1: 2018 I. | AR1: II.
C2: 2008 Q1 | D2: Q2 | E2: Q3 | F2: Q4 | G2: 2009 Q1 | H2: Q2 | I2: Q3 | J2: Q4 | K2: 2010 Q1 | L2: Q2 | M2: Q3 | N2: Q4 | O2: 2011 Q1 | P2: Q2 | Q2: Q3 | R2: Q4 | S2: 2012 Q1 | T2: Q2 | U2: Q3 | V2: Q4 | W2: 2013 Q1 | X2: Q2 | Y2: Q3 | Z2: Q4 | AA2: 2014 Q1 | AB2: Q2 | AC2: Q3 | AD2: Q4 | AE2: 2015 Q1 | AF2: Q2 | AG2: Q3 | AH2: Q4 | AI2: 2016 Q1 | AJ2: Q2 | AK2: Q3 | AL2: Q4 | AM2: 2017 Q1 | AN2: Q2 | AO2: Q3 | AP2: Q4 | AQ2: 2018 Q1 | AR2: Q2
A3: Belföldi felhasználás éves növekedési üteme | B3: Annual increase of domestic absorption | C3: 0.7 | D3: 3.4 | E3: 1.3 | F3: -4.5 | G3: -9.2 | H3: -12.6 | I3: -10.3 | J3: -4.8 | K3: -2.2 | L3: -0.5 | M3: 0.8 | N3: -0.7 | O3: 1.2 | P3: 0.4 | Q3: -1.4 | R3: -1.2 | S3: -1.6 | T3: -4.5 | U3: -4 | V3: -2.1 | W3: -1.1 | X3: 4.1 | Y3: 1.7 | Z3: 3.8 | AA3: 4.1 | AB3: 6.8 | AC3: 6.5 | AD3: 4.4 | AE3: 1 | AF3: 0.4 | AG3: 1.7 | AH3: 1.8 | AI3: 2.9 | AJ3: 0.1 | AK3: 1.6 | AL3: 2 | AM3: 5.9 | AN3: 5.1 | AO3: 7.6 | AP3: 5.3 | AQ3: 4.8 | AR3: 6.01939439
A4: Nettó export GDP-növekedéshez való hozzájárulása (jobb tengely) | B4: Contribution of net exports to GDP growth (right scale) | C4: 1.465019931 | D4: -0.824509478 | E4: 0.4335617293 | F4: 2.183715847 | G4: 2.061356336 | H4: 4.888547828 | I4: 2.891697243 | J4: 0.5230356832 | K4: 1.983237878 | L4: 1.239790819 | M4: 0.5359518352 | N4: 2.231293136 | O4: 1.743776199 | P4: 1.181138647 | Q4: 3.1107088 | R4: 2.843085852 | S4: 1.161840692 | T4: 2.930824575 | U4: 2.249666538 | V4: -0.8886516858 | W4: 0.9357761274 | X4: -2.17034969 | Y4: 1.409379222 | Z4: 0.3959551988 | AA4: 0.8285048639 | AB4: -1.611249146 | AC4: -1.808511921 | AD4: -0.2303623085 | AE4: 3.679232505 | AF4: 3.334693206 | AG4: 1.583978027 | AH4: 2.410730104 | AI4: -1.439913971 | AJ4: 3.64290604 | AK4: 1.241474641 | AL4: -0.03681455492 | AM4: -1.287412698 | AN4: -1.484800675 | AO4: -3.509173555 | AP4: -0.598684865 | AQ4: 0.02484085954 | AR4: -0.6710125543

Sheet 8. adat
C1: 2008. I. | D1: II. | E1: III. | F1: IV. | G1: 2009. I. | H1: II. | I1: III. | J1: IV. | K1: 2010. I. | L1: II. | M1: III. | N1: IV. | O1: 2011. I. | P1: II. | Q1: III. | R1: IV. | S1: 2012. I. | T1: II. | U1: III. | V1: IV. | W1: 2013. I. | X1: II. | Y1: III. | Z1: IV. | AA1: 2014. I. | AB1: II. | AC1: III. | AD1: IV. | AE1: 2015. I. | AF1: II. | AG1: III. | AH1: IV. | AI1: 2016. I. | AJ1: II. | AK1: III. | AL1: IV. | AM1: 2017. I. | AN1: II. | AO1: III. | AP1: IV. | AQ1: 2018. I. | AR1: II.
C2: 2008 Q1 | D2: Q2 | E2: Q3 | F2: Q4 | G2: 2009 Q1 | H2: Q2 | I2: Q3 | J2: Q4 | K2: 2010 Q1 | L2: Q2 | M2: Q3 | N2: Q4 | O2: 2011 Q1 | P2: Q2 | Q2: Q3 | R2: Q4 | S2: 2012 Q1 | T2: Q2 | U2: Q3 | V2: Q4 | W2: 2013 Q1 | X2: Q2 | Y2: Q3 | Z2: Q4 | AA2: 2014 Q1 | AB2: Q2 | AC2: Q3 | AD2: Q4 | AE2: 2015 Q1 | AF2: Q2 | AG2: Q3 | AH2: Q4 | AI2: 2016 Q1 | AJ2: Q2 | AK2: Q3 | AL2: Q4 | AM2: 2017 Q1 | AN2: Q2 | AO2: Q3 | AP2: Q4 | AQ2: 2018 Q1 | AR2: Q2
A19: Munkavállalói jövedelmek | B19: Compensation of employees | C19: 0.697173282 | D19: 0.6841261307 | E19: 0.6761609448 | F19: 0.6637138984 | G19: 0.6000298953 | H19: 0.5194424206 | I19: 0.4280864977 | J19: 0.3281090715 | K19: 0.3982962863 | L19: 0.4729585921 | M19: 0.5498860185 | N19: 0.6292916182 | O19: 0.7126330227 | P19: 0.8012624367 | Q19: 0.8840096725 | R19: 0.9683365672 | S19: 1.128199805 | T19: 1.290501353 | U19: 1.458227504 | V19: 1.611126965 | W19: 1.785841313 | X19: 2.004993123 | Y19: 2.217157691 | Z19: 2.392801161 | AA19: 2.382811601 | AB19: 2.316492482 | AC19: 2.284274539 | AD19: 2.372691079 | AE19: 2.462761607 | AF19: 2.563509208 | AG19: 2.678256746 | AH19: 2.697808106 | AI19: 2.761729697 | AJ19: 2.765323086 | AK19: 2.719038915 | AL19: 2.672061962 | AM19: 2.550250825 | AN19: 2.459795295 | AO19: 2.372184945 | AP19: 2.213739244 | AQ19: 2.064455672 | AR19: 1.969895917
A20: Tulajdonosi hitelek kamategyenlege | B20: Interest paid on intercompany loans | C20: -0.3497403834 | D20: -0.3824062311 | E20: -0.4225138756 | F20: -0.475240022 | G20: -0.4814544971 | H20: -0.5033344127 | I20: -0.5367855621 | J20: -0.6381446504 | K20: -0.7853370135 | L20: -0.9241681521 | M20: -1.052637475 | N20: -1.036447588 | O20: -1.008305453 | P20: -0.9838472548 | Q20: -0.9189489556 | R20: -0.9411798199 | S20: -0.9569894294 | T20: -0.9540316172 | U20: -0.9814756755 | V20: -0.9960631044 | W20: -0.8986176515 | X20: -0.7907498003 | Y20: -0.6773446381 | Z20: -0.5639182963 | AA20: -0.5430970021 | AB20: -0.5308876979 | AC20: -0.5263489247 | AD20: -0.524739169 | AE20: -0.5406318594 | AF20: -0.5563083149 | AG20: -0.5595658358 | AH20: -0.5258385682 | AI20: -0.388316757 | AJ20: -0.2398439717 | AK20: -0.120353565 | AL20: -0.04168376004 | AM20: -0.0929967734 | AN20: -0.1564051616 | AO20: -0.1778454698 | AP20: -0.1846074089 | AQ20: -0.1560081006 | AR20: -0.1275948159
A21: Részesedések jövedelme | B21: Equity income | C21: -5.203175809 | D21: -4.429719496 | E21: -4.425039673 | F21: -4.383444896 | G21: -4.300029308 | H21: -4.17891994 | I21: -3.568920798 | J21: -2.896133379 | K21: -3.02925401 | L21: -3.124530322 | M21: -3.169408097 | N21: -3.222462131 | O21: -3.334619173 | P21: -3.415614987 | Q21: -3.481135995 | R21: -3.626128533 | S21: -3.474964795 | T21: -3.468242763 | U21: -3.382540546 | V21: -3.533681637 | W21: -3.507886035 | X21: -3.523875809 | Y21: -3.566616212 | Z21: -3.468490614 | AA21: -3.891221139 | AB21: -4.334844756 | AC21: -4.756579418 | AD21: -5.14867494 | AE21: -4.986072565 | AF21: -5.064704044 | AG21: -5.359562301 | AH21: -5.940301115 | AI21: -5.915116899 | AJ21: -5.667028143 | AK21: -5.303525728 | AL21: -4.710046273 | AM21: -5.09935683 | AN21: -5.532224115 | AO21: -5.778429687 | AP21: -5.953903126 | AQ21: -5.866857031 | AR21: -5.832262102
A22: Külföldi hitelek kamategyenlege | B22: Interest paid on external debt | C22: -1.999243332 | D22: -2.190026732 | E22: -2.455711417 | F22: -2.678783355 | G22: -2.714167662 | H22: -2.737493 | I22: -2.655317994 | J22: -2.442757579 | K22: -2.292439877 | L22: -2.157846421 | M22: -2.080566943 | N22: -2.06640634 | O22: -2.120257595 | P22: -2.224129916 | Q22: -2.357297413 | R22: -2.510765016 | S22: -2.601641256 | T22: -2.655375914 | U22: -2.631201461 | V22: -2.614341988 | W22: -2.565105236 | X22: -2.503706621 | Y22: -2.454765026 | Z22: -2.381611493 | AA22: -2.325742275 | AB22: -2.262735403 | AC22: -2.217515325 | AD22: -2.175978982 | AE22: -2.133807064 | AF22: -2.058093771 | AG22: -1.963773868 | AH22: -1.858108426 | AI22: -1.774243321 | AJ22: -1.670012856 | AK22: -1.576253086 | AL22: -1.503189844 | AM22: -1.410338992 | AN22: -1.343165589 | AO22: -1.255735194 | AP22: -1.153369945 | AQ22: -1.062433815 | AR22: -0.9869052118
A24: Jövedelemegyenleg | B24: Income balance | C24: -6.854986243 | D24: -6.318026328 | E24: -6.62710402 | F24: -6.873754374 | G24: -6.895621572 | H24: -6.900304932 | I24: -6.332937856 | J24: -5.648926538 | K24: -5.708734614 | L24: -5.733586303 | M24: -5.752726497 | N24: -5.696024441 | O24: -5.750549198 | P24: -5.822329721 | Q24: -5.873372691 | R24: -6.109736802 | S24: -5.905395675 | T24: -5.787148941 | U24: -5.536990179 | V24: -5.532959765 | W24: -5.185767609 | X24: -4.813339108 | Y24: -4.481568185 | Z24: -4.021219243 | AA24: -4.377248815 | AB24: -4.811975375 | AC24: -5.216169128 | AD24: -5.476702012 | AE24: -5.197749883 | AF24: -5.115596922 | AG24: -5.204645259 | AH24: -5.626440003 | AI24: -5.315947279 | AJ24: -4.811561885 | AK24: -4.281093464 | AL24: -3.582857914 | AM24: -4.052441771 | AN24: -4.571999571 | AO24: -4.839825406 | AP24: -5.078141237 | AQ24: -5.020843274 | AR24: -4.976866213

Sheet 9. adat
C1: 2008. I. | D1: II. | E1: III. | F1: IV. | G1: 2009. I. | H1: II. | I1: III. | J1: IV. | K1: 2010. I. | L1: II. | M1: III. | N1: IV. | O1: 2011. I. | P1: II. | Q1: III. | R1: IV. | S1: 2012. I. | T1: II. | U1: III. | V1: IV. | W1: 2013. I. | X1: II. | Y1: III. | Z1: IV. | AA1: 2014. I. | AB1: II. | AC1: III. | AD1: IV. | AE1: 2015. I. | AF1: II. | AG1: III. | AH1: IV. | AI1: 2016. I. | AJ1: II. | AK1: III. | AL1: IV. | AM1: 2017. I. | AN1: II. | AO1: III. | AP1: IV. | AQ1: 2018. I. | AR1: II.
C2: 2008 Q1 | D2: Q2 | E2: Q3 | F2: Q4 | G2: 2009 Q1 | H2: Q2 | I2: Q3 | J2: Q4 | K2: 2010 Q1 | L2: Q2 | M2: Q3 | N2: Q4 | O2: 2011 Q1 | P2: Q2 | Q2: Q3 | R2: Q4 | S2: 2012 Q1 | T2: Q2 | U2: Q3 | V2: Q4 | W2: 2013 Q1 | X2: Q2 | Y2: Q3 | Z2: Q4 | AA2: 2014 Q1 | AB2: Q2 | AC2: Q3 | AD2: Q4 | AE2: 2015 Q1 | AF2: Q2 | AG2: Q3 | AH2: Q4 | AI2: 2016 Q1 | AJ2: Q2 | AK2: Q3 | AL2: Q4 | AM2: 2017 Q1 | AN2: Q2 | AO2: Q3 | AP2: Q4 | AQ2: 2018 Q1 | AR2: Q2
A3: Nettó EU-transzfer | B3: EU transfer (net) | C3: 0.7301771363 | D3: 0.7162238287 | E3: 0.7331369928 | F3: 1.143882981 | G3: 1.627619712 | H3: 2.061138661 | I3: 2.616612006 | J3: 2.813765066 | K3: 3.121686435 | L3: 3.323367253 | M3: 3.494552137 | N3: 3.338118781 | O3: 3.217272282 | P3: 3.02195288 | Q3: 3.221499309 | R3: 3.611909192 | S3: 3.42576939 | T3: 3.477193315 | U3: 3.176257627 | V3: 3.903664472 | W3: 4.298086781 | X3: 4.788874566 | Y3: 4.946731835 | Z3: 5.419420826 | AA3: 5.165448052 | AB3: 4.853513692 | AC3: 5.195913055 | AD3: 5.322992839 | AE3: 5.552669046 | AF3: 6.173457475 | AG3: 5.776221454 | AH3: 6.04162388 | AI3: 5.401080869 | AJ3: 3.995057829 | AK3: 3.362480138 | AL3: 1.005781375 | AM3: 1.332566072 | AN3: 2.187418538 | AO3: 2.240297413 | AP3: 2.60991951 | AQ3: 3.29965434 | AR3: 2.744239211
A4: Egyéb folyó transzfer | B4: Other current transfer | C4: -0.4896648442 | D4: -0.6189581227 | E4: -0.6631856067 | F4: -0.8125079194 | G4: -0.7504902832 | H4: -0.5833279554 | I4: -0.4658039698 | J4: -0.2841620289 | K4: -0.3306141493 | L4: -0.4237875982 | M4: -0.4349451673 | N4: -0.4684503678 | O4: -0.4707897995 | P4: -0.4875550677 | Q4: -0.533372304 | R4: -0.5336696416 | S4: -0.6728197433 | T4: -0.6998368648 | U4: -0.7737644565 | V4: -0.8601867415 | W4: -0.8300486717 | X4: -0.8982701025 | Y4: -0.9564852837 | Z4: -0.9858766799 | AA4: -0.984998351 | AB4: -0.9349622658 | AC4: -0.9021008185 | AD4: -0.9469104751 | AE4: -0.9269328292 | AF4: -0.9299902217 | AG4: -0.9593361506 | AH4: -0.970809354 | AI4: -0.9871306294 | AJ4: -0.9835007231 | AK4: -0.9437440097 | AL4: -0.888114775 | AM4: -0.7932811454 | AN4: -0.7467204032 | AO4: -0.7049851681 | AP4: -0.6290249843 | AQ4: -0.58683305 | AR4: -0.5484416086
A5: Egyéb tőketranszfer | B5: Other capital transfer | C5: -0.09678043628 | D5: -0.08170050715 | E5: -0.01319818892 | F5: 0.1026268941 | G5: 0.1050495108 | H5: 0.1038078685 | I5: 0.1547365531 | J5: 0.05400311482 | K5: -0.006069630966 | L5: -0.003064655657 | M5: -0.08318950675 | N5: -0.4015245265 | O5: -0.3934840055 | P5: -0.3892777735 | Q5: -0.3796049884 | R5: -0.03449136854 | S5: 0.01102974538 | T5: 0.005144992009 | U5: 0.01428105 | V5: 0.02594777473 | W5: 0.04273261478 | X5: 0.06602135153 | Y5: 0.05091581409 | Z5: 0.005573308694 | AA5: 0.01575298603 | AB5: -0.007262069998 | AC5: -0.02824284433 | AD5: -0.04763960974 | AE5: -0.05109431267 | AF5: -0.1511204403 | AG5: -0.1080741147 | AH5: -0.1003974211 | AI5: -0.09803376507 | AJ5: 0.01468332709 | AK5: -0.2326540228 | AL5: -0.3725880196 | AM5: -0.3785317604 | AN5: -0.3928565503 | AO5: -0.2323908991 | AP5: -0.227676108 | AQ5: -0.2131089923 | AR5: -0.211523157
A6: Transzferegyenleg | B6: Transfer balance | C6: =+C3+C4+C5 -> 0.1437318558 | D6: 0.01556519883 | E6: 0.05675319726 | F6: 0.4340019554 | G6: 0.98217894 | H6: 1.581618574 | I6: 2.305544589 | J6: 2.583606152 | K6: 2.785002655 | L6: 2.896514999 | M6: 2.976417463 | N6: 2.468143886 | O6: 2.352998477 | P6: 2.145120039 | Q6: 2.308522016 | R6: 3.043748181 | S6: 2.763979392 | T6: 2.782501442 | U6: 2.416774221 | V6: 3.069425506 | W6: 3.510770724 | X6: 3.956625815 | Y6: 4.041162365 | Z6: 4.439117455 | AA6: 4.196202687 | AB6: 3.911289356 | AC6: 4.265569392 | AD6: 4.328442754 | AE6: 4.574641904 | AF6: 5.092346813 | AG6: 4.708811189 | AH6: 4.970417105 | AI6: 4.315916475 | AJ6: 3.026240433 | AK6: 2.186082106 | AL6: -0.2549214194 | AM6: 0.1607531661 | AN6: =+AN3+AN4+AN5 -> 1.047841584 | AO6: 1.302921346 | AP6: 1.753218417 | AQ6: =+AQ3+AQ4+AQ5 -> 2.499712297 | AR6: =+AR3+AR4+AR5 -> 1.984274445

Sheet 10.adat
C1: Hungary | AB1: Czech Republic | AX1: Poland | BS1: Slovakia | CO1: Romania
C2: 2013 | G2: 2014 | K2: 2015 | O2: 2016 | S2: 2017 | W2: 2018* | AB2: 2013 | AF2: 2014 | AJ2: 2015 | AN2: 2016 | AR2: 2017 | AV2: 2018 | AX2: 2013 | BB2: 2014 | BF2: 2015 | BJ2: 2016 | BN2: 2017 | BQ2: 2018 | BS2: 2013 | BW2: 2014 | CA2: 2015 | CE2: 2016 | CI2: 2017 | CM2: 2018 | CO2: 2013 | CS2: 2014 | CW2: 2015 | DA2: 2016 | DE2: 2017 | DI2: 2018
C3: Magyarország | AB3: Csehország | AX3: Lengyelország | BS3: Szlovákia | CO3: Románia
C4: 2013 | G4: 2014 | K4: 2015 | O4: 2016 | S4: 2017 | W4: 2018* | AB4: 2013 | AF4: 2014 | AJ4: 2015 | AN4: 2016 | AR4: 2017 | AV4: 2018 | AX4: 2013 | BB4: 2014 | BF4: 2015 | BJ4: 2016 | BN4: 2017 | BQ4: 2018 | BS4: 2013 | BW4: 2014 | CA4: 2015 | CE4: 2016 | CI4: 2017 | CM4: 2018 | CO4: 2013 | CS4: 2014 | CW4: 2015 | DA4: 2016 | DE4: 2017 | DI4: 2018
A5: Current Account | B5: Folyó fizetési mérleg | C5: 2.634466783 | D5: 2.815491749 | E5: 3.331088771 | F5: 3.822503892 | G5: 3.58384844 | H5: 2.687991567 | I5: 2.089340494 | J5: 1.503558613 | K5: 2.187033071 | L5: 2.695981991 | M5: 2.622212419 | N5: 2.824092353 | O5: 3.241035264 | P5: 4.664731621 | Q5: 5.783592479 | R5: 6.215952977 | S5: 5.198015974 | T5: 4.690458565 | U5: 3.601411088 | V5: 3.197673384 | W5: 3.186791664 | X5: 2.472122717 | AB5: -1.800496301 | AC5: -1.777356798 | AD5: -1.253182992 | AE5: -0.5259736759 | AF5: 0.9628041143 | AG5: 0.1872207908 | AH5: 0.01496641192 | AI5: 0.1888287193 | AJ5: 0.4356389277 | AK5: 0.1822278138 | AL5: -0.05975867666 | AM5: 0.2186069916 | AN5: 0.8234024818 | AO5: 1.615318323 | AP5: 2.218222851 | AQ5: 1.55595384 | AR5: 1.083719902 | AS5: 1.101718254 | AT5: 0.7439192697 | AU5: 1.016876206 | AV5: 0.3327304104 | AX5: -2.981397052 | AY5: -2.292621132 | AZ5: -1.558357007 | BA5: -1.273535586 | BB5: -1.388358622 | BC5: -2.052873688 | BD5: -2.364956104 | BE5: -2.07547831 | BF5: -1.374433269 | BG5: -0.5802851475 | BH5: -0.6386020104 | BI5: -0.5603594153 | BJ5: -0.6736522762 | BK5: -0.4458175469 | BL5: -0.4575592269 | BM5: -0.293463154 | BN5: 0.2224460382 | BO5: -0.359795488 | BP5: 0.2747932878 | BQ5: 0.1904929119 | BS5: 1.615870435 | BT5: 2.299598625 | BU5: 2.627256242 | BV5: 1.85938212 | BW5: 1.513566016 | BX5: 0.865927898 | BY5: 0.8887982282 | BZ5: 1.143941604 | CA5: 0.8149264333 | CB5: -0.2147636758 | CC5: -1.594099026 | CD5: -1.763198321 | CE5: -2.228074723 | CF5: -1.554475279 | CG5: -0.9458055177 | CH5: -1.484584863 | CI5: -1.397168292 | CJ5: -2.003234843 | CK5: -2.373595656 | CL5: -2.090363969 | CM5: -2.159077976 | CO5: -3.962209697 | CP5: -2.170560209 | CQ5: -1.321969262 | CR5: -1.070010699 | CS5: -0.9644676345 | CT5: -1.638474634 | CU5: -1.379711928 | CV5: -0.6664776421 | CW5: 0.2340103781 | CX5: -0.2730514993 | CY5: -0.5986977926 | CZ5: -1.233304845 | DA5: -2.191465321 | DB5: -2.366594724 | DC5: -2.235561043 | DD5: -2.045989859 | DE5: -2.352782597 | DF5: -2.716556334 | DG5: -3.014854863 | DH5: -3.355298139 | DI5: -3.547062903
A6: Capital Account | B6: Tőkemérleg | C6: 2.709198987 | D6: 3.014508525 | E6: 3.105610186 | F6: 3.559830512 | G6: 3.280093986 | H6: 3.054901884 | I6: 3.2998883 | J6: 3.724651837 | K6: 4.109416043 | L6: 4.693632186 | M6: 4.502015887 | N6: 4.62916381 | O6: 3.983778357 | P6: 2.844441758 | Q6: 2.06490605 | R6: -0.03239707662 | S6: 0.1328159311 | T6: 0.5272174045 | U6: 0.7165758308 | V6: 0.9762310581 | W6: 1.617263486 | X6: 1.501824498 | AB6: 1.315485778 | AC6: 1.407445277 | AD6: 2.600077789 | AE6: 2.006297225 | AF6: 2.499781471 | AG6: 2.430290777 | AH6: 1.089350119 | AI6: 0.7503994576 | AJ6: 0.9503361551 | AK6: 2.102200823 | AL6: 2.188911284 | AM6: 2.207194805 | AN6: 1.923044346 | AO6: 1.249642355 | AP6: 1.328362686 | AQ6: 1.122257647 | AR6: 0.7476213833 | AS6: 0.453447409 | AT6: 0.3703454603 | AU6: 0.9346549181 | AV6: 1.004016166 | AX6: 2.046872946 | AY6: 2.288357915 | AZ6: 2.23696474 | BA6: 2.281371325 | BB6: 2.428786691 | BC6: 2.496800644 | BD6: 2.37750547 | BE6: 2.442201546 | BF6: 2.938426075 | BG6: 2.310389283 | BH6: 2.916136957 | BI6: 2.363413701 | BJ6: 2.080541978 | BK6: 1.818244554 | BL6: 0.7548329884 | BM6: 1.049451289 | BN6: 0.6216667152 | BO6: 0.8093988535 | BP6: 1.010110585 | BQ6: 1.266482735 | BS6: 2.130266122 | BT6: 1.735931467 | BU6: 1.57798011 | BV6: 1.434546136 | BW6: 1.211308949 | BX6: 1.050931286 | BY6: 0.9849632824 | BZ6: 0.9591550814 | CA6: 1.223760701 | CB6: 1.493248343 | CC6: 2.371852158 | CD6: 3.536536521 | CE6: 3.983279688 | CF6: 4.134242763 | CG6: 3.234957806 | CH6: 2.009389556 | CI6: 1.26685548 | CJ6: 1.130020619 | CK6: 1.072315723 | CL6: 0.9294559523 | CM6: 1.018045158 | CO6: 1.274243077 | CP6: 1.281815955 | CQ6: 1.890434605 | CR6: 2.105885406 | CS6: 3.013685796 | CT6: 2.850595846 | CU6: 2.316422353 | CV6: 2.625006889 | CW6: 2.550367358 | CX6: 2.688133777 | CY6: 2.947181197 | CZ6: 2.430989202 | DA6: 2.276318581 | DB6: 2.606955313 | DC6: 2.733215954 | DD6: 2.490732098 | DE6: 1.812180048 | DF6: 1.246415991 | DG6: 0.7540967281 | DH6: 1.182295457 | DI6: 1.193589112
A7: Net lending | B7: Külső finanszírozási képesség | C7: 5.34366577 | D7: 5.830000274 | E7: 6.436698957 | F7: 7.382334404 | G7: 6.863942427 | H7: 5.74289345 | I7: 5.389228794 | J7: 5.228210451 | K7: 6.296449114 | L7: 7.389614177 | M7: 7.124228306 | N7: 7.453256163 | O7: 7.224813621 | P7: 7.509173379 | Q7: 7.84849853 | R7: 6.1835559 | S7: 5.330831905 | T7: 5.217675969 | U7: 4.317986919 | V7: 4.173904442 | W7: 4.80405515 | X7: 3.973947215 | AB7: -0.4850105236 | AC7: -0.3699115211 | AD7: 1.346894797 | AE7: 1.480323549 | AF7: 3.462585585 | AG7: 2.617511568 | AH7: 1.104316531 | AI7: 0.939228177 | AJ7: 1.385975083 | AK7: 2.284428636 | AL7: 2.129152607 | AM7: 2.425801796 | AN7: 2.746446828 | AO7: 2.864960678 | AP7: 3.546585537 | AQ7: 2.678211487 | AR7: 1.831341285 | AS7: 1.555165663 | AT7: 1.11426473 | AU7: 1.951531124 | AV7: 1.336746576 | AX7: -0.9345241057 | AY7: -0.004263217115 | AZ7: 0.678607733 | BA7: 1.007835739 | BB7: 1.040428069 | BC7: 0.4439269557 | BD7: 0.01254936573 | BE7: 0.3667232366 | BF7: 1.563992805 | BG7: 1.730104135 | BH7: 2.277534947 | BI7: 1.803054286 | BJ7: 1.406889702 | BK7: 1.372427007 | BL7: 0.2972737615 | BM7: 0.7559881347 | BN7: 0.8441127534 | BO7: 0.4496033655 | BP7: 1.284903873 | BQ7: 1.456975647 | BS7: 3.746136557 | BT7: 4.035530092 | BU7: 4.205236351 | BV7: 3.293928257 | BW7: 2.724874965 | BX7: 1.916859184 | BY7: 1.873761511 | BZ7: 2.103096686 | CA7: 2.038687134 | CB7: 1.278484667 | CC7: 0.777753132 | CD7: 1.7733382 | CE7: 1.755204965 | CF7: 2.579767484 | CG7: 2.289152289 | CH7: 0.5248046923 | CI7: -0.1303128118 | CJ7: -0.8732142232 | CK7: -1.301279934 | CL7: -1.160908017 | CM7: -1.141032818 | CO7: -2.68796662 | CP7: -0.8887442548 | CQ7: 0.5684653435 | CR7: 1.035874707 | CS7: 2.049218161 | CT7: 1.212121212 | CU7: 0.936710425 | CV7: 1.958529247 | CW7: 2.784377736 | CX7: 2.415082278 | CY7: 2.348483405 | CZ7: 1.197684356 | DA7: 0.08485326014 | DB7: 0.2403605893 | DC7: 0.4976549118 | DD7: 0.4447422397 | DE7: -0.5406025496 | DF7: -1.470140343 | DG7: -2.260758135 | DH7: -2.173002682 | DI7: -2.353473791
C10: -10000 | D10: -10000 | E10: -10000 | F10: -10000 | G10: -10000 | H10: -10000 | I10: -10000 | J10: -10000 | K10: -10000 | L10: -10000 | M10: -10000 | N10: -10000 | O10: -10000 | P10: -10000 | Q10: -10000 | R10: -10000 | S10: -10000 | T10: -10000 | U10: -10000 | V10: -10000 | W10: =+V10 -> -10000 | X10: =+W10 -> -10000 | Y10: =+X10 -> -10000 | Z10: -10000 | AA10: 0 | AB10: =-X10 -> 10000 | AC10: =+AB10 -> 10000 | AD10: 10000 | AE10: 10000 | AF10: 10000 | AG10: 10000 | AH10: 10000 | AI10: 10000 | AJ10: 10000 | AK10: 10000 | AL10: 10000 | AM10: 10000 | AN10: 10000 | AO10: 10000 | AP10: 10000 | AQ10: 10000 | AR10: 10000 | AS10: 10000 | AT10: 10000 | AU10: 10000 | AV10: =+AU10 -> 10000 | AW10: 0 | AX10: =-AV10 -> -10000 | AY10: =+AX10 -> -10000 | AZ10: -10000 | BA10: -10000 | BB10: -10000 | BC10: -10000 | BD10: -10000 | BE10: -10000 | BF10: -10000 | BG10: -10000 | BH10: -10000 | BI10: -10000 | BJ10: -10000 | BK10: -10000 | BL10: =+BK10 -> -10000 | BM10: =+BL10 -> -10000 | BN10: -10000 | BO10: =+BN10 -> -10000 | BP10: =+BO10 -> -10000 | BQ10: -10000 | BR10: 0 | BS10: =-BQ10 -> 10000 | BT10: 10000 | BU10: 10000 | BV10: 10000 | BW10: 10000 | BX10: 10000 | BY10: 10000 | BZ10: 10000 | CA10: 10000 | CB10: 10000 | CC10: 10000 | CD10: 10000 | CE10: 10000 | CF10: 10000 | CG10: 10000 | CH10: =+CG10 -> 10000 | CI10: =+CH10 -> 10000 | CJ10: 10000 | CK10: 10000 | CL10: 10000 | CM10: 10000 | CN10: 0 | CO10: =-CM10 -> -10000 | CP10: -10000 | CQ10: -10000 | CR10: -10000 | CS10: -10000 | CT10: -10000 | CU10: -10000 | CV10: -10000 | CW10: -10000 | CX10: -10000 | CY10: -10000 | CZ10: -10000 | DA10: -10000 | DB10: -10000 | DC10: -10000 | DD10: -10000 | DE10: -10000 | DF10: -10000 | DG10: -10000 | DH10: -10000 | DI10: -10000

Sheet 11. adat
C1: 2008. I. | D1: II. | E1: III. | F1: IV. | G1: 2009. I. | H1: II. | I1: III. | J1: IV. | K1: 2010. I. | L1: II. | M1: III. | N1: IV. | O1: 2011. I. | P1: II. | Q1: III. | R1: IV. | S1: 2012. I. | T1: II. | U1: III. | V1: IV. | W1: 2013. I. | X1: II. | Y1: III. | Z1: IV. | AA1: 2014. I. | AB1: II. | AC1: III. | AD1: IV. | AE1: 2015. I. | AF1: II. | AG1: III. | AH1: IV. | AI1: 2016. I. | AJ1: II. | AK1: III. | AL1: IV. | AM1: 2017. I. | AN1: II. | AO1: III. | AP1: IV. | AQ1: 2018. I. | AR1: II.
C2: 2008 Q1 | D2: Q2 | E2: Q3 | F2: Q4 | G2: 2009 Q1 | H2: Q2 | I2: Q3 | J2: Q4 | K2: 2010 Q1 | L2: Q2 | M2: Q3 | N2: Q4 | O2: 2011 Q1 | P2: Q2 | Q2: Q3 | R2: Q4 | S2: 2012 Q1 | T2: Q2 | U2: Q3 | V2: Q4 | W2: 2013 Q1 | X2: Q2 | Y2: Q3 | Z2: Q4 | AA2: 2014 Q1 | AB2: Q2 | AC2: Q3 | AD2: Q4 | AE2: 2015 Q1 | AF2: Q2 | AG2: Q3 | AH2: Q4 | AI2: 2016 Q1 | AJ2: Q2 | AK2: Q3 | AL2: Q4 | AM2: 2017 Q1 | AN2: Q2 | AO2: Q3 | AP2: Q4 | AQ2: 2018 Q1 | AR2: Q2
A3: Külső finanszírozási képesség (reálgazdasági adatok alapján) | B3: Net lending from the real economy's side | C3: -6.162470541 | D3: -5.685755706 | E3: -6.28134437 | F3: -6.082772965 | G3: -5.204846452 | H3: -3.638820404 | I3: -0.9778333773 | J3: 0.9543245108 | K3: 1.797461366 | L3: 2.033895017 | M3: 2.127785537 | N3: 2.093221809 | O3: 2.231035089 | P3: 2.099984941 | Q3: 2.510108729 | R3: 3.059726741 | S3: 2.873690645 | T3: 3.421961067 | U3: 3.824276016 | V3: 4.294902333 | W3: 5.347596642 | X3: 5.840330918 | Y3: 6.451679268 | Z3: 7.381528376 | AA3: 6.857828033 | AB3: 5.740583293 | AC3: 5.387599053 | AD3: 5.227655829 | AE3: 6.285674265 | AF3: 7.380042873 | AG3: 7.108436827 | AH3: 7.451311732 | AI3: 7.221025969 | AJ3: 7.513073008 | AK3: 7.840441558 | AL3: 6.184620446 | AM3: 5.325388497 | AN3: 5.215110875 | AO3: 4.309094039 | AP3: 4.173244245 | AQ3: 4.796153889 | AR3: 3.969600057
A4: Külső finanszírozási képesség (finanszírozási adatok alapján) | B4: Net lending from the financial account's side | C4: -6.62448684 | D4: -6.351989052 | E4: -7.652592367 | F4: -8.290869931 | G4: -6.280229428 | H4: -3.582684127 | I4: -1.573258009 | J4: 0.26615861 | K4: 0.8684044909 | L4: 0.3422717866 | M4: 0.7073526104 | N4: 1.117725489 | O4: 0.6982668549 | P4: -0.01799834188 | Q4: 0.2892287939 | R4: 0.7131752246 | S4: 0.4975782978 | T4: 2.344856034 | U4: 3.915193529 | V4: 4.687693769 | W4: 6.562977106 | X4: 6.423300391 | Y4: 6.407695739 | Z4: 6.295378839 | AA4: 4.964478178 | AB4: 4.015975423 | AC4: 3.496533186 | AD4: 4.141060282 | AE4: 4.861674352 | AF4: 5.869356662 | AG4: 5.849219777 | AH4: 6.207032906 | AI4: 5.96911844 | AJ4: 6.24038043 | AK4: 5.894592095 | AL4: 3.594330611 | AM4: 2.765706606 | AN4: 2.858923875 | AO4: 1.481929136 | AP4: 1.924942163 | AQ4: 3.044435493 | AR4: 1.77114002
A5: Tévedések és kihagyások egyenlege | B5: Net errors and omissions | C5: -0.4620162995 | D5: -0.6662333463 | E5: -1.371247997 | F5: -2.208096966 | G5: -1.075382976 | H5: 0.05613627714 | I5: -0.5954246321 | J5: -0.6881659007 | K5: -0.9290568755 | L5: -1.69162323 | M5: -1.420432927 | N5: -0.9754963198 | O5: -1.532768234 | P5: -2.117983283 | Q5: -2.220879935 | R5: -2.346551516 | S5: -2.376112347 | T5: -1.077105033 | U5: 0.0909175137 | V5: 0.3927914361 | W5: 1.215380464 | X5: 0.5829694739 | Y5: -0.04398352935 | Z5: -1.086149537 | AA5: -1.893349855 | AB5: -1.72460787 | AC5: -1.891065867 | AD5: -1.086595547 | AE5: -1.423999913 | AF5: -1.510686211 | AG5: -1.25921705 | AH5: -1.244278826 | AI5: -1.251907528 | AJ5: -1.272692578 | AK5: -1.945849463 | AL5: -2.590289834 | AM5: -2.559681891 | AN5: -2.356187 | AO5: -2.827164904 | AP5: -2.248302082 | AQ5: -1.751718396 | AR5: -2.198460036

Sheet 12. adat
C1: 2004.I. | D1: II. | E1: III. | F1: IV. | G1: 2005.I. | H1: II. | I1: III. | J1: IV. | K1: 2006.I. | L1: II. | M1: III. | N1: IV. | O1: 2007.I. | P1: II. | Q1: III. | R1: IV. | S1: 2008.I. | T1: II. | U1: III. | V1: IV. | W1: 2009.I. | X1: II. | Y1: III. | Z1: IV. | AA1: 2010.I. | AB1: II. | AC1: III. | AD1: IV. | AE1: 2011.I. | AF1: II. | AG1: III. | AH1: IV. | AI1: 2012.I. | AJ1: II. | AK1: III. | AL1: IV. | AM1: 2013.I. | AN1: II. | AO1: III. | AP1: IV. | AQ1: 2014.I. | AR1: II. | AS1: III. | AT1: IV. | AU1: 2015.I. | AV1: II. | AW1: III. | AX1: IV. | AY1: 2016.I. | AZ1: II. | BA1: III. | BB1: IV. | BC1: 2017.I. | BD1: II. | BE1: III. | BF1: IV. | BG1: 2018. I. | BH1: II.
C2: 2004 Q1 | D2: Q2 | E2: Q3 | F2: Q4 | G2: 2005 Q1 | H2: Q2 | I2: Q3 | J2: Q4 | K2: 2006 Q1 | L2: Q2 | M2: Q3 | N2: Q4 | O2: 2007 Q1 | P2: Q2 | Q2: Q3 | R2: Q4 | S2: 2008 Q1 | T2: Q2 | U2: Q3 | V2: Q4 | W2: 2009 Q1 | X2: Q2 | Y2: Q3 | Z2: Q4 | AA2: 2010 Q1 | AB2: Q2 | AC2: Q3 | AD2: Q4 | AE2: 2011 Q1 | AF2: Q2 | AG2: Q3 | AH2: Q4 | AI2: 2012 Q1 | AJ2: Q2 | AK2: Q3 | AL2: Q4 | AM2: 2013 Q1 | AN2: Q2 | AO2: Q3 | AP2: Q4 | AQ2: 2014 Q1 | AR2: Q2 | AS2: Q3 | AT2: Q4 | AU2: 2015 Q1 | AV2: Q2 | AW2: Q3 | AX2: Q4 | AY2: 2016 Q1 | AZ2: Q2 | BA2: Q3 | BB2: Q4 | BC2: 2017 Q1 | BD2: Q2 | BE2: Q3 | BF2: Q4 | BG2: 2018 Q1 | BH2: Q2
A3: Derivatív tranzakciók | B3: Transactions related to derivatives | C3: -0.05088682764 | D3: 0.01192310995 | E3: 0.1988144407 | F3: 0.1737650104 | G3: -0.1217350755 | H3: -0.06903076055 | I3: 0.1260294524 | J3: -0.04873502575 | K3: 0.0577063594 | L3: -0.5375567144 | M3: -0.01823816366 | N3: 0.6326157364 | O3: 0.4018932413 | P3: 0.2959285685 | Q3: 0.09605741851 | R3: 0.04439687306 | S3: -0.7968842355 | T3: 0.9857849776 | U3: 0.29166984 | V3: -1.151948339 | W3: -1.357980371 | X3: 0.7584995877 | Y3: 1.180887529 | Z3: 0.05967894728 | AA3: -0.02825019598 | AB3: 0.3842977633 | AC3: -0.2164061243 | AD3: 0.4852134221 | AE3: -0.3619844344 | AF3: 0.3014205731 | AG3: -0.3550597297 | AH3: -0.3715036157 | AI3: -0.2282504219 | AJ3: -0.1124431628 | AK3: 0.1852825031 | AL3: 0.4609552234 | AM3: 0.2382997084 | AN3: 0.05688350412 | AO3: 0.1290464442 | AP3: 0.1933593241 | AQ3: -0.0153015227 | AR3: -0.06202129659 | AS3: -0.01199467921 | AT3: -0.1753022935 | AU3: 0.1075498616 | AV3: 0.3492727871 | AW3: 0.2886455242 | AX3: -0.05947983942 | AY3: -0.406138825 | AZ3: -0.07756273816 | BA3: 0.07010708072 | BB3: 0.3606876233 | BC3: 0.5147263972 | BD3: -0.02740877881 | BE3: 0.6492610552 | BF3: 0.4402733686 | BG3: 0.2239545336 | BH3: -0.175503705
A4: Adósság jellegű finanszírozás | B4: Debt-type financing | C4: =+C6-C3-C5 -> 1.384067546 | D4: 1.840509373 | E4: 0.9901871589 | F4: 1.055770819 | G4: 1.753967567 | H4: 1.705535891 | I4: 0.8713193775 | J4: 0.1193643524 | K4: =+K6-K3-K5 -> 0.9863930312 | L4: =+L6-L3-L5 -> 2.79514433 | M4: 1.571749135 | N4: 0.9658442603 | O4: 2.494570116 | P4: 4.234971839 | Q4: 2.939690586 | R4: 1.501172613 | S4: 3.407035611 | T4: 1.13073087 | U4: 2.577733807 | V4: 2.627952605 | W4: 1.74231369 | X4: -1.502357017 | Y4: -0.4260649083 | Z4: -0.5369433011 | AA4: 0.1077937245 | AB4: -0.4107495785 | AC4: 0.1344345125 | AD4: -1.672120453 | AE4: 0.3844979417 | AF4: -0.2788683908 | AG4: -0.8267472496 | AH4: -1.967155177 | AI4: -0.2818973035 | AJ4: -1.816461702 | AK4: -3.251379076 | AL4: -3.363158041 | AM4: -2.384696497 | AN4: -1.079479354 | AO4: -1.267974819 | AP4: -3.71535314 | AQ4: -0.8732951627 | AR4: =+AR6-AR3-AR5 -> 0.6873580919 | AS4: =+AS6-AS3-AS5 -> -2.163531921 | AT4: =+AT6-AT3-AT5 -> -3.457599536 | AU4: -0.8864976959 | AV4: =+AV6-AV3-AV5 -> -1.363044935 | AW4: -2.747885705 | AX4: =+AX6-AX3-AX5+0.15 -> -3.91754337 | AY4: =+AY6-AY3-AY5 -> -0.2800640298 | AZ4: -1.286289415 | BA4: =+BA6-BA3-BA5 -> -2.66259559 | BB4: -1.957717147 | BC4: -0.5544289997 | BD4: =+BD6-BD3-BD5 -> -1.269833535 | BE4: -0.9105719549 | BF4: -2.058242212 | BG4: =+BG6-BG3-BG5 -> -1.751585932 | BH4: =+BH6-BH3-BH5 -> -0.6695181943
A5: Nem adósság jellegű finanszírozás | B5: Non-debt type financing | C5: 0.716510833 | D5: 0.4313522437 | E5: 1.083879389 | F5: 0.8872030082 | G5: 0.3904088102 | H5: 0.2426877686 | I5: 1.281130238 | J5: 1.844158439 | K5: 1.810670719 | L5: -0.6534487426 | M5: 0.5340319939 | N5: -0.5888976732 | O5: -0.692832449 | P5: -2.648190864 | Q5: -2.112523313 | R5: -0.406509087 | S5: 0.3217834852 | T5: -0.38479512 | U5: -0.364263272 | V5: 0.3343322757 | W5: 0.09579270183 | X5: -0.4947658468 | Y5: -0.3102625995 | Z5: 0.5402168659 | AA5: -0.187814676 | AB5: -0.7093887043 | AC5: 0.166699986 | AD5: 0.8408921171 | AE5: 0.2792718378 | AF5: -0.04482969361 | AG5: 0.9509193597 | AH5: 1.565824099 | AI5: 1.038353566 | AJ5: 0.1066330402 | AK5: 1.306656921 | AL5: 1.289926572 | AM5: 0.7520530996 | AN5: -0.7335015097 | AO5: -0.6012314695 | AP5: 2.001684141 | AQ5: 0.8004671272 | AR5: -1.444867717 | AS5: 0.9440923431 | AT5: 1.399450519 | AU5: -0.1314090845 | AV5: -0.9482164191 | AW5: 1.186853758 | AX5: 1.397383672 | AY5: 0.00777186228 | AZ5: -0.942759768 | BA5: 1.649627764 | BB5: 1.437106153 | BC5: 0.2406149923 | BD5: -1.177655298 | BE5: 0.8999478875 | BF5: 0.8769940345 | BG5: 0.2737862983 | BH5: -0.06444097685
A6: Külső finanszírozási igény (finanszírozási oldal) | B6: Net borrowing (financial account) | C6: 2.049691551 | D6: 2.283784726 | E6: 2.272880988 | F6: 2.116738838 | G6: 2.022641302 | H6: 1.879192899 | I6: 2.278479068 | J6: 1.914787765 | K6: 2.85477011 | L6: 1.604138873 | M6: 2.087542965 | N6: 1.009562324 | O6: 2.203630909 | P6: 1.882709544 | Q6: 0.9232246909 | R6: 1.139060399 | S6: 2.93193486 | T6: 1.731720728 | U6: 2.505140375 | V6: 1.810336542 | W6: 0.4801260207 | X6: -1.238623276 | Y6: 0.4445600209 | Z6: 0.06295251206 | AA6: -0.1082711475 | AB6: -0.7358405195 | AC6: 0.08472837414 | AD6: -0.3460149136 | AE6: 0.3017853452 | AF6: -0.02227751136 | AG6: -0.2308876196 | AH6: -0.7728346937 | AI6: 0.5282058406 | AJ6: -1.822271825 | AK6: -1.759439652 | AL6: -1.612276245 | AM6: -1.394343689 | AN6: -1.75609736 | AO6: -1.740159844 | AP6: -1.520309675 | AQ6: -0.08812955815 | AR6: -0.8195309216 | AS6: -1.231434257 | AT6: -2.23345131 | AU6: -0.9103569188 | AV6: -1.961988567 | AW6: -1.272386423 | AX6: -2.729639538 | AY6: -0.6784309924 | AZ6: -2.306611921 | BA6: -0.9428607457 | BB6: -0.1599233714 | BC6: 0.2009123898 | BD6: -2.474897612 | BE6: 0.6386369878 | BF6: -0.7409748085 | BG6: -1.2538451 | BH6: -0.9094628761
A7: Külső finanszírozási igény (reálgazdasági oldal) | B7: Net borrowing (current and capital account) | C7: 1.31017514 | D7: 2.292477244 | E7: 1.858401647 | F7: 1.612491911 | G7: 1.439578641 | H7: 1.439249299 | I7: 1.539693007 | J7: 1.320088138 | K7: 1.742575717 | L7: 1.533891651 | M7: 1.259203922 | N7: 1.208492652 | O7: 1.716890835 | P7: 1.748254787 | Q7: 1.28072181 | R7: 1.764987358 | S7: 1.603342952 | T7: 1.371433003 | U7: 2.079430012 | V7: 1.533525465 | W7: 0.4252415038 | X7: -0.4254838001 | Y7: -0.6032200899 | Z7: -0.2964554195 | AA7: -0.412229817 | AB7: -0.6882808648 | AC7: -0.6979655087 | AD7: -0.2716596841 | AE7: -0.5637829017 | AF7: -0.5925901803 | AG7: -1.152944808 | AH7: -0.797770428 | AI7: -0.3316308936 | AJ7: -1.070926729 | AK7: -1.537158089 | AL7: -1.335110775 | AM7: -1.425060057 | AN7: -1.632886472 | AO7: -2.154456705 | AP7: -2.304589704 | AQ7: -0.9595897703 | AR7: -0.5394424735 | AS7: -1.834935644 | AT7: -2.185914527 | AU7: -2.156046451 | AV7: -1.79144464 | AW7: -1.617869632 | AX7: -2.687066062 | AY7: -1.939190089 | AZ7: -2.167918826 | BA7: -2.061073615 | BB7: -0.8655774008 | BC7: -1.083389121 | BD7: -2.149699427 | BE7: -1.121552742 | BF7: -0.7971895818 | BG7: -1.966979869 | BH7: -1.192198005

Sheet 13. adat
C1: 2008.I. | D1: II. | E1: III. | F1: IV. | G1: 2009.I. | H1: II. | I1: III. | J1: IV. | K1: 2010.I. | L1: II. | M1: III. | N1: IV. | O1: 2011. I. | P1: II. | Q1: III. | R1: IV. | S1: 2012.I. | T1: II. | U1: III. | V1: IV. | W1: 2013.I. | X1: II. | Y1: III. | Z1: IV. | AA1: 2014.I. | AB1: II. | AC1: III. | AD1: IV. | AE1: 2015.I. | AF1: II. | AG1: III. | AH1: IV. | AI1: 2016.I. | AJ1: II. | AK1: III. | AL1: IV. | AM1: 2017.I. | AN1: II. | AO1: III. | AP1: IV. | AQ1: 2018. I. | AR1: II.
C2: 2008 Q1 | D2: Q2 | E2: Q3 | F2: Q4 | G2: 2009 Q1 | H2: Q2 | I2: Q3 | J2: Q4 | K2: 2010 Q1 | L2: Q2 | M2: Q3 | N2: Q4 | O2: 2011 Q1 | P2: Q2 | Q2: Q3 | R2: Q4 | S2: 2012 Q1 | T2: Q2 | U2: Q3 | V2: Q4 | W2: 2013 Q1 | X2: Q2 | Y2: Q3 | Z2: Q4 | AA2: 2014 Q1 | AB2: Q2 | AC2: Q3 | AD2: Q4 | AE2: 2015 Q1 | AF2: Q2 | AG2: Q3 | AH2: Q4 | AI2: 2016 Q1 | AJ2: Q2 | AK2: Q3 | AL2: Q4 | AM2: 2017 Q1 | AN2: Q2 | AO2: Q3 | AP2: Q4 | AQ2: 2018 Q1 | AR2: Q2
A3: Magyarországon | C3: 486.9544136 | D3: 25.14588446 | E3: 656.3359644 | F3: 1918.370115 | G3: 710.7863817 | H3: -849.6300475 | I3: -70.36469642 | J3: 1498.268575 | K3: 368.3704911 | L3: -1428.204623 | M3: 582.2095309 | N3: 1709.239251 | O3: 238.225905 | P3: -266.7290628 | Q3: -98.46827808 | R3: 1684.421763 | S3: 1128.401889 | T3: 332.0252625 | U3: 720.5909465 | V3: 1761.032071 | W3: 698.2731466 | X3: -734.6253033 | Y3: -509.1737298 | Z3: 2471.035119 | AA3: 1354.227553 | AB3: -953.53048 | AC3: 1654.298961 | AD3: 2974.55293 | AE3: 341.7120334 | AF3: -1003.654717 | AG3: 1727.388346 | AH3: 999.0647807 | AI3: 420.8091904 | AJ3: -554.6112097 | AK3: 1870.808744 | AL3: 1842.559138 | AM3: 1213.155744 | AN3: 79.27981849 | AO3: 1274.498752 | AP3: 1934.041888 | AQ3: 710.8449202 | AR3: 79.47375473
A4: részesedés | C4: 401.9708778 | D4: 302.0516972 | E4: 442.5290216 | F4: 1154.879793 | G4: 648.347647 | H4: 638.3520008 | I4: 403.4665259 | J4: 1131.46297 | K4: 610.0340795 | L4: -14.54444471 | M4: 1238.901881 | N4: 979.6014583 | O4: 641.5846472 | P4: -491.4246504 | Q4: -810.6597283 | R4: 1090.499254 | S4: 1092.277479 | T4: -106.6281414 | U4: 98.87035514 | V4: 831.4259428 | W4: 131.7588466 | X4: 291.0611045 | Y4: -127.8796341 | Z4: 1896.006026 | AA4: -51.55151778 | AB4: -1407.549532 | AC4: 1234.697835 | AD4: 581.8258178 | AE4: 164.5141783 | AF4: -1146.063251 | AG4: 310.7706315 | AH4: 212.6307006 | AI4: 99.67665949 | AJ4: -737.9545973 | AK4: 359.3599571 | AL4: 382.9323993 | AM4: -386.9546796 | AN4: -717.6051331 | AO4: 301.596556 | AP4: 348.4391199 | AQ4: -568.6746314 | AR4: -330.8372748
A5: újrabef | C5: 505.9013608 | D5: -1258.432645 | E5: 511.3933601 | F5: 1136.283312 | G5: -226.4859199 | H5: -1597.449305 | I5: 779.2637651 | J5: 852.9141995 | K5: 195.2107115 | L5: -1788.483129 | M5: 796.3386814 | N5: 610.8380847 | O5: 610.2343528 | P5: -1351.79023 | Q5: 900.6417974 | R5: 1066.805073 | S5: 273.649188 | T5: -1239.040528 | U5: 1067.38158 | V5: 1359.984865 | W5: 418.1309984 | X5: -1199.192803 | Y5: 1096.941922 | Z5: 1215.437578 | AA5: 1102.972078 | AB5: -409.0417039 | AC5: 1554.107751 | AD5: 1553.618472 | AE5: 892.2892005 | AF5: -1070.968419 | AG5: 1823.885704 | AH5: 2317.08699 | AI5: 934.1797199 | AJ5: -382.0297909 | AK5: 1703.554135 | AL5: 1752.151805 | AM5: 1436.906721 | AN5: 472.4056222 | AO5: 2198.806504 | AP5: 2140.712442 | AQ5: 1557.545871 | AR5: 433.913069
A6: tulajdonosi | C6: -420.917825 | D6: 981.5268324 | E6: -297.5864173 | F6: -372.7929895 | G6: 288.9246547 | H6: 109.4672571 | I6: -1253.094987 | J6: -486.1085941 | K6: -436.8742999 | L6: 374.8229511 | M6: -1453.031031 | N6: 118.7997075 | O6: -1013.593095 | P6: 1576.485817 | Q6: -188.4503472 | R6: -472.882564 | S6: -237.5247778 | T6: 1677.693932 | U6: -445.660989 | V6: -430.3787366 | W6: 148.3833015 | X6: 173.5063957 | Y6: -1478.236018 | Z6: -640.4084844 | AA6: 302.8069928 | AB6: 863.0607557 | AC6: -1134.506625 | AD6: 839.1086406 | AE6: -715.0913454 | AF6: 1213.376953 | AG6: -407.2679896 | AH6: -1530.65291 | AI6: -613.047189 | AJ6: 565.3731785 | AK6: -192.105348 | AL6: -292.525067 | AM6: 163.2037022 | AN6: 324.4793294 | AO6: -1225.904308 | AP6: -555.1096747 | AQ6: -278.0263195 | AR6: -23.60203951
A7: Külföldön | C7: -517.6643382 | D7: 718.83335 | E7: -671.6761801 | F7: -205.3702242 | G7: -164.5115905 | H7: -441.3719307 | I7: 138.2788309 | J7: -668.3802011 | K7: -483.0887842 | L7: 1060.972031 | M7: -135.1813947 | N7: -703.2976363 | O7: -94.50327724 | P7: 116.6344035 | Q7: -168.6350365 | R7: -364.2945578 | S7: -593.5382366 | T7: -398.1266194 | U7: 131.7778595 | V7: -613.2271028 | W7: -212.199743 | X7: 52.28800733 | Y7: -246.2822373 | Z7: -381.5279033 | AA7: -346.7731263 | AB7: -493.1001475 | AC7: -393.979743 | AD7: -847.7149076 | AE7: -415.2771887 | AF7: 132.0416469 | AG7: -493.9929451 | AH7: -74.32122173 | AI7: -112.2089528 | AJ7: -183.1022831 | AK7: -315.0766332 | AL7: -660.0966936 | AM7: -559.8349749 | AN7: -948.8169055 | AO7: -406.3452886 | AP7: -873.2656574 | AQ7: -443.7047629 | AR7: -70.16342333
A8: részesedés | C8: -373.5959995 | D8: -101.3115159 | E8: -200.796831 | F8: -765.2585212 | G8: -50.02535734 | H8: -298.1946456 | I8: -79.27898906 | J8: -103.353362 | K8: -55.52033062 | L8: 754.9394321 | M8: -151.4761836 | N8: -555.0107541 | O8: -84.27972317 | P8: -433.955502 | Q8: -11.92524326 | R8: 243.1372816 | S8: -645.7986813 | T8: -93.36327998 | U8: -546.3343832 | V8: -123.3356883 | W8: -101.6616056 | X8: -183.9789573 | Y8: -9.910525164 | Z8: 57.68859535 | AA8: -130.4161004 | AB8: -505.0669049 | AC8: -667.655974 | AD8: -461.2451068 | AE8: 440.8903163 | AF8: -636.9009501 | AG8: 512.6209204 | AH8: 166.6915227 | AI8: -121.9225072 | AJ8: -259.7535506
A9: újrabef | C9: -197.0781699 | D9: 769.6922831 | E9: -82.16501705 | F9: 243.916113 | G9: -35.0513903 | H9: 45.20431894 | I9: -41.05941163 | J9: -41.38225773 | K9: 127.6185615 | L9: -31.69878785 | M9: -43.11957247 | N9: -159.1408961 | O9: 51.50508049 | P9: 266.6211091 | Q9: -145.0446217 | R9: -111.634888 | S9: -180.7862733 | T9: -174.9021147 | U9: -319.4512417 | V9: -320.4471718 | W9: -31.86188639 | X9: -29.36015575 | Y9: -231.9617321 | Z9: -268.6345096 | AA9: -159.4989255 | AB9: -142.7403417 | AC9: -302.9948382 | AD9: -293.7239583 | AE9: 51.23613258 | AF9: 19.62548951 | AG9: -198.6149649 | AH9: -145.6440682 | AI9: -148.6776469 | AJ9: -192.2418262
A10: tulajdonosi | C10: 53.00983115 | D10: 50.45258283 | E10: -388.7143321 | F10: 315.972184 | G10: -79.43484285 | H10: -188.381604 | I10: 258.6172316 | J10: -523.6445814 | K10: -555.1870151 | L10: 337.7313871 | M10: 59.41436145 | N10: 10.85401396 | O10: -61.72863456 | P10: 283.9687963 | Q10: -11.66517146 | R10: -495.7969514 | S10: 233.046718 | T10: -129.8612248 | U10: 997.5634845 | V10: -169.4442427 | W10: -78.67625103 | X10: 265.6271204 | Y10: -4.409980059 | Z10: -170.5819891 | AA10: -56.85810043 | AB10: 154.7070991 | AC10: 576.6710692 | AD10: -92.74584246 | AE10: -907.4036376 | AF10: 749.3171075 | AG10: -807.9989007 | AH10: -95.36867628 | AI10: 158.3912012 | AJ10: 268.8930937
A12: Átfolyó tőke nélkül
A14: FDI Magyarországon: részesedések és hitelek | B14: FDI in Hungary: equity and other capital | C14: 0 | D14: =+C14+(D4+D6)/1000 -> 1.28357853 | E14: =+D14+(E4+E6)/1000 -> 1.428521134 | F14: 2.210607937 | G14: 3.147880239 | H14: 3.895699497 | I14: 3.046071035 | J14: 3.691425411 | K14: 3.864585191 | L14: 4.224863697 | M14: 4.010734547 | N14: 5.109135712 | O14: 4.737127265 | P14: 5.822188431 | Q14: 4.823078356 | R14: 5.440695046 | S14: 6.295447747 | T14: 7.866513537 | U14: 7.519722903 | V14: 7.92077011 | W14: 8.200912258 | X14: 8.665479758 | Y14: 7.059364106 | Z14: 8.314961648 | AA14: 8.566217123 | AB14: 8.021728347 | AC14: 8.121919557 | AD14: 9.542854015 | AE14: 8.992276848 | AF14: 9.05959055 | AG14: 8.963093192 | AH14: 7.645070983 | AI14: 7.131700453 | AJ14: =+AI14+(AJ4+AJ6)/1000 -> 6.959119034 | AK14: =+AJ14+(AK4+AK6)/1000 -> 7.126373644 | AL14: =+AK14+(AL4+AL6)/1000 -> 7.216780976 | AM14: =+AL14+(AM4+AM6)/1000 -> 6.993029998 | AN14: =+AM14+(AN4+AN6)/1000 -> 6.599904195 | AO14: =+AN14+(AO4+AO6)/1000 -> 5.675596443 | AP14: =+AO14+(AP4+AP6)/1000 -> 5.468925888 | AQ14: =+AP14+(AQ4+AQ6)/1000 -> 4.622224937 | AR14: =+AQ14+(AR4+AR6)/1000 -> 4.267785623
A15: FDI Magyarországon: újrabefektett jövedelmek | B15: FDI in Hungary: reinvested earnings | C15: 0 | D15: =+C15+(D5)/1000 -> -1.258432645 | E15: =+D15+(E5)/1000 -> -0.747039285 | F15: 0.3892440268 | G15: 0.1627581069 | H15: -1.434691199 | I15: -0.6554274334 | J15: 0.1974867661 | K15: 0.3926974776 | L15: -1.395785652 | M15: -0.5994469704 | N15: 0.01139111434 | O15: 0.6216254671 | P15: -0.7301647625 | Q15: 0.1704770348 | R15: 1.237282108 | S15: 1.510931296 | T15: 0.2718907681 | U15: 1.339272349 | V15: 2.699257213 | W15: 3.117388211 | X15: 1.918195408 | Y15: 3.01513733 | Z15: 4.230574907 | AA15: 5.333546986 | AB15: 4.924505282 | AC15: 6.478613033 | AD15: 8.032231505 | AE15: 8.924520705 | AF15: 7.853552287 | AG15: 9.677437991 | AH15: 11.99452498 | AI15: 12.9287047 | AJ15: =+AI15+(AJ5)/1000 -> 12.54667491 | AK15: =+AJ15+(AK5)/1000 -> 14.25022904 | AL15: =+AK15+(AL5)/1000 -> 16.00238085 | AM15: =+AL15+(AM5)/1000 -> 17.43928757 | AN15: 17.91169319 | AO15: 20.1104997 | AP15: =+AO15+(AP5)/1000 -> 22.25121214 | AQ15: =+AP15+(AQ5)/1000 -> 23.80875801 | AR15: =+AQ15+(AR5)/1000 -> 24.24267108
A16: FDI külföldön | B16: FDI abroad | C16: 0 | D16: =+C16+D7/1000 -> 0.71883335 | E16: =+D16+E7/1000 -> 0.04715716991 | F16: -0.1582130543 | G16: -0.3227246448 | H16: -0.7640965755 | I16: -0.6258177446 | J16: -1.294197946 | K16: -1.77728673 | L16: -0.7163146986 | M16: -0.8514960933 | N16: -1.55479373 | O16: -1.649297007 | P16: -1.532662603 | Q16: -1.70129764 | R16: -2.065592198 | S16: -2.659130434 | T16: -3.057257054 | U16: -2.925479194 | V16: -3.538706297 | W16: -3.75090604 | X16: -3.698618033 | Y16: -3.94490027 | Z16: -4.326428173 | AA16: -4.673201299 | AB16: -5.166301447 | AC16: -5.56028119 | AD16: -6.407996098 | AE16: -6.823273286 | AF16: -6.691231639 | AG16: -7.185224584 | AH16: -7.259545806 | AI16: -7.371754759 | AJ16: =+AI16+AJ7/1000 -> -7.554857042 | AK16: =+AJ16+AK7/1000 -> -7.869933675 | AL16: =+AK16+AL7/1000 -> -8.530030369 | AM16: =+AL16+AM7/1000 -> -9.089865344 | AN16: -10.03868225 | AO16: -10.44502754 | AP16: =+AO16+AP7/1000 -> -11.3182932 | AQ16: =+AP16+AQ7/1000 -> -11.76199796 | AR16: =+AQ16+AR7/1000 -> -11.83216138
A17: Nettó FDI | B17: Net FDI | C17: =+SUM(C14:C16) -> 0 | D17: =+SUM(D14:D16) -> 0.7439792345 | E17: 0.7286390188 | F17: 2.44163891 | G17: 2.987913701 | H17: 1.696911723 | I17: 1.764825857 | J17: 2.594714231 | K17: 2.479995938 | L17: 2.112763347 | M17: 2.559791483 | N17: 3.565733097 | O17: 3.709455725 | P17: 3.559361065 | Q17: 3.292257751 | R17: 4.612384957 | S17: 5.147248609 | T17: 5.081147252 | U17: 5.933516058 | V17: 7.081321026 | W17: 7.567394429 | X17: 6.885057133 | Y17: 6.129601166 | Z17: 8.219108382 | AA17: 9.226562809 | AB17: 7.779932182 | AC17: 9.0402514 | AD17: 11.16708942 | AE17: 11.09352427 | AF17: 10.2219112 | AG17: 11.4553066 | AH17: 12.38005016 | AI17: 12.6886504 | AJ17: =+SUM(AJ14:AJ16) -> 11.9509369 | AK17: =+SUM(AK14:AK16) -> 13.50666901 | AL17: =+SUM(AL14:AL16) -> 14.68913146 | AM17: =+SUM(AM14:AM16) -> 15.34245223 | AN17: 14.47291514 | AO17: =+SUM(AO14:AO16) -> 15.3410686 | AP17: 16.40184483 | AQ17: =+SUM(AQ14:AQ16) -> 16.66898499 | AR17: =+SUM(AR14:AR16) -> 16.67829532
R18: GDP arányos
R19: =+R14-N14 -> 0.331559334 | V19: =+V14-R14 -> 2.480075063 | Z19: =+Z14-V14 -> 0.3941915385 | AD19: =+AD14-Z14 -> 1.227892367 | AH19: =+AH14-AD14 -> -1.897783032 | AL19: =+AL14-AH14 -> -0.4282900069
R20: 1.225890993 | S20: =+R20+R19 -> 1.557450327 | V20: 1.461975105 | W20: =+V20+V19 -> 3.942050168 | Z20: 1.531317694 | AA20: =+Z20+Z19 -> 1.925509233 | AD20: 3.801656597 | AE20: =+AD20+AD19 -> 5.029548964 | AH20: 3.962293476 | AI20: =+AH20+AH19 -> 2.064510444 | AL20: =+AL15-AH15 -> 4.007855869 | AM20: =+AL20+AL19 -> 3.579565862
R21: -0.510798468 | S21: =+R21 -> -0.510798468 | V21: -1.473114099 | W21: =+V21 -> -1.473114099 | Z21: -0.7877218763 | AA21: =+Z21 -> -0.7877218763 | AD21: -2.081567924 | AE21: =+AD21 -> -2.081567924 | AH21: -0.8515497087 | AI21: =+AH21 -> -0.8515497087 | AL21: -1.270484563 | AM21: =+AL21 -> -1.270484563
R22: 1.046651859 | S22: =+R22 -> 1.046651859 | V22: 2.468936069 | W22: =+V22 -> 2.468936069 | Z22: 1.137787357 | AA22: =+Z22 -> 1.137787357 | AD22: 2.94798104 | AE22: =+AD22 -> 2.94798104 | AH22: 1.212960735 | AI22: =+AH22 -> 1.212960735 | AL22: 2.3090813 | AM22: =+AL22 -> 2.3090813
R24: GDP | S24: 101.3515932 | V24: GDP | W24: 99.47134978 | Z24: GDP | AA24: 101.8376438 | AD24: GDP | AE24: 105.5905974 | AH24: GDP | AI24: 110.7609623 | AL24: GDP | AM24: 113.7207762
S26: =+S20/$S$24*100 -> 1.536680656 | W26: =+W20/$W$24*100 -> 3.96300058 | AA26: =+AA20/$AA$24*100 -> 1.89076373 | AE26: =+AE20/$AE$24*100 -> 4.763254576 | AI26: =+AI20/$AI$24*100 -> 1.863933285 | AM26: =+AM20/$AM$24*100 -> 3.147679767
S27: =+S21/$S$24*100 -> -0.5039866191 | W27: =+W21/$W$24*100 -> -1.480943108 | AA27: =+AA21/$AA$24*100 -> -0.7735075622 | AE27: =+AE21/$AE$24*100 -> -1.971357275 | AI27: =+AI21/$AI$24*100 -> -0.7688175426 | AM27: =+AM21/$AM$24*100 -> -1.117196528
S28: 1.032694037 | W28: 2.482057471 | AA28: 1.117256167 | AE28: 2.791897301 | AI28: =+AI22/$AI$24*100 -> 1.095115743 | AM28: 2.030483239

Sheet 14. adat
C1: 2008.I. | D1: II. | E1: III. | F1: IV. | G1: 2009.I. | H1: II. | I1: III. | J1: IV. | K1: 2010. I. | L1: II. | M1: III. | N1: IV. | O1: 2011.I. | P1: II. | Q1: III. | R1: IV. | S1: 2012.I. | T1: II. | U1: III. | V1: IV. | W1: 2013.I. | X1: II. | Y1: III. | Z1: IV. | AA1: 2014. I. | AB1: II. | AC1: III. | AD1: IV. | AE1: 2015.I. | AF1: II. | AG1: III. | AH1: IV. | AI1: 2016.I. | AJ1: II. | AK1: III. | AL1: IV. | AM1: 2017.I. | AN1: II. | AO1: III. | AP1: IV. | AQ1: 2018. I. | AR1: II.
C2: 2008 Q1 | D2: Q2 | E2: Q3 | F2: Q4 | G2: 2009 Q1 | H2: Q2 | I2: Q3 | J2: Q4 | K2: 2010 Q1 | L2: Q2 | M2: Q3 | N2: Q4 | O2: 2011 Q1 | P2: Q2 | Q2: Q3 | R2: Q4 | S2: 2012 Q1 | T2: Q2 | U2: Q3 | V2: Q4 | W2: 2013 Q1 | X2: Q2 | Y2: Q3 | Z2: Q4 | AA2: 2014 Q1 | AB2: Q2 | AC2: Q3 | AD2: Q4 | AE2: 2015 Q1 | AF2: Q2 | AG2: Q3 | AH2: Q4 | AI2: 2016 Q1 | AJ2: Q2 | AK2: Q3 | AL2: Q4 | AM2: 2017 Q1 | AN2: Q2 | AO2: Q3 | AP2: Q4 | AQ2: 2018 Q1 | AR2: Q2
A9: Adóssággeneráló finanszírozás | B9: Debt-type financing | C9: 3.38065799 | D9: 1.13073087 | E9: 2.551481186 | F9: 2.627952594 | G9: 1.715647248 | H9: -1.502357017 | I9: -0.4260649083 | J9: -0.5369433011 | K9: 0.1077937245 | L9: -0.4107495785 | M9: 0.1344345125 | N9: -1.672124289 | O9: 0.3842479417 | P9: -0.2769140846 | Q9: -0.8287015559 | R9: -1.967155159 | S9: -0.2808431176 | T9: -1.817514332 | U9: -3.251395576 | V9: -3.363158041 | W9: -2.428306473 | X9: -1.079479356 | Y9: -1.267961169 | Z9: -3.71535314 | AA9: -0.897384765 | AB9: 0.6873580919 | AC9: -2.172976921 | AD9: -3.457599536 | AE9: -0.9153450338 | AF9: -1.373777329 | AG9: -2.747885705 | AH9: -4.06754337 | AI9: -0.2975343905 | AJ9: -1.286289405 | AK9: -2.66259559 | AL9: -1.957717147 | AM9: -0.5544289997 | AN9: -1.274559012 | AO9: -0.9105719549 | AP9: -2.058242212 | AQ9: -1.751584308 | AR9: -0.66951457
A10: Konszolidált államháztartás | B10: Consolidated government | C10: 0.5236696042 | D10: -0.5138712943 | E10: 1.205350442 | F10: -2.272410471 | G10: 1.283854314 | H10: 1.155382928 | I10: 0.7638705687 | J10: -1.344802668 | K10: 0.1626356778 | L10: -0.7735619642 | M10: 1.151524663 | N10: 1.348145887 | O10: -1.296938262 | P10: 1.039616804 | Q10: 1.906519032 | R10: 0.588723116 | S10: 0.2437353844 | T10: -1.659007605 | U10: 0.5702982756 | V10: -1.270081853 | W10: -3.091070262 | X10: 0.08965305701 | Y10: -0.5708009794 | Z10: -1.681931322 | AA10: -1.804751861 | AB10: 1.046601212 | AC10: -1.406610667 | AD10: -0.7126800136 | AE10: -1.165262875 | AF10: -0.6224013259 | AG10: 0.415344718 | AH10: -0.905679484 | AI10: 1.386708248 | AJ10: 1.550688638 | AK10: 1.015968085 | AL10: -0.4533222145 | AM10: -0.2771930704 | AN10: -1.629876657 | AO10: 0.5139514111 | AP10: -2.09721865 | AQ10: -0.370953336 | AR10: -1.409408742
A11: Bankszektor | B11: Banks | C11: 1.650310011 | D11: 2.252951979 | E11: 0.2715665083 | F11: 4.923238626 | G11: 0.7151026754 | H11: -3.741270062 | I11: -1.02135974 | J11: -0.05129667669 | K11: 0.1625322963 | L11: -0.218346083 | M11: -0.9858013521 | N11: -3.002146475 | O11: 1.938064805 | P11: -0.6848320684 | Q11: -1.842342695 | R11: -3.611730382 | S11: -0.3671603694 | T11: 0.455074928 | U11: -2.605876459 | V11: -1.989519894 | W11: -0.1997497958 | X11: -0.8530468836 | Y11: 0.2290634316 | Z11: -2.016669055 | AA11: 0.7586747473 | AB11: -0.1418070005 | AC11: -0.2227339487 | AD11: -1.759604137 | AE11: 0.2208093829 | AF11: -0.08629045285 | AG11: -2.181930035 | AH11: -2.787747037 | AI11: -1.843564946 | AJ11: -2.394929476 | AK11: -2.175737707 | AL11: -1.550488609 | AM11: 0.7733490971 | AN11: 1.213328981 | AO11: -1.153401291 | AP11: 0.2382055874 | AQ11: -0.6736181205 | AR11: 0.3188246665
A12: Vállalati szektor | B12: Corporates | C12: 1.206678375 | D12: -0.6083498146 | E12: 1.074564236 | F12: -0.02287556099 | G12: -0.2833097413 | H12: 1.083530117 | I12: -0.1685757366 | J12: 0.8591560433 | K12: -0.2173742496 | L12: 0.5811584687 | M12: -0.0312887985 | N12: -0.01812370098 | O12: -0.2568786013 | P12: -0.63169882 | Q12: -0.8928778932 | R12: 1.055852108 | S12: -0.1574181326 | T12: -0.6135816541 | U12: -1.215817392 | V12: -0.1035562946 | W12: 0.8625135849 | X12: -0.3160855294 | Y12: -0.9262236213 | Z12: -0.01675276381 | AA12: 0.1486923483 | AB12: -0.2174361195 | AC12: -0.5436323049 | AD12: -0.9853153852 | AE12: 0.02910845813 | AF12: -0.6650855505 | AG12: -0.9813003882 | AH12: -0.3741168492 | AI12: 0.1593223079 | AJ12: -0.4420485669 | AK12: -1.502825967 | AL12: 0.04609367603 | AM12: -1.050585026 | AN12: -0.8580113364 | AO12: -0.2711220754 | AP12: -0.1992291494 | AQ12: -0.7070128513 | AR12: 0.4210695059

Sheet 15. adat
D1: 2006.I. | E1: II. | F1: III. | G1: IV. | H1: 2007.I. | I1: II. | J1: III. | K1: IV. | L1: 2008.I. | M1: II. | N1: III. | O1: IV. | P1: 2009.I. | Q1: II. | R1: III. | S1: IV. | T1: 2010. I. | U1: II. | V1: III. | W1: IV. | X1: 2011.I. | Y1: II. | Z1: III. | AA1: IV. | AB1: 2012.I. | AC1: II. | AD1: III. | AE1: IV. | AF1: 2013.I. | AG1: II. | AH1: III. | AI1: IV. | AJ1: 2014.I. | AK1: II. | AL1: III. | AM1: IV. | AN1: 2015.I. | AO1: II. | AP1: III. | AQ1: IV. | AR1: 2016.I. | AS1: II. | AT1: III. | AU1: IV. | AV1: 2017.I. | AW1: II. | AX1: III. | AY1: IV. | AZ1: 2018. I. | BA1: II.
D2: 2006 Q1 | E2: Q2 | F2: Q3 | G2: Q4 | H2: 2007 Q1 | I2: Q2 | J2: Q3 | K2: Q4 | L2: 2008 Q1 | M2: Q2 | N2: Q3 | O2: Q4 | P2: 2009 Q1 | Q2: Q2 | R2: Q3 | S2: Q4 | T2: 2010 Q1 | U2: Q2 | V2: Q3 | W2: Q4 | X2: 2011 Q1 | Y2: Q2 | Z2: Q3 | AA2: Q4 | AB2: 2012 Q1 | AC2: Q2 | AD2: Q3 | AE2: Q4 | AF2: 2013 Q1 | AG2: Q2 | AH2: Q3 | AI2: Q4 | AJ2: 2014 Q1 | AK2: Q2 | AL2: Q3 | AM2: Q4 | AN2: 2015 Q1 | AO2: Q2 | AP2: Q3 | AQ2: Q4 | AR2: 2016 Q1 | AS2: Q2 | AT2: Q3 | AU2: Q4 | AV2: 2017 Q1 | AW2: Q2 | AX2: Q3 | AY2: Q4 | AZ2: 2018 Q1 | BA2: Q2
A3: Bruttó adósság | B3: Gross debt | C3: 0 | D3: 0.9035001962 | E3: 2.310601926 | F3: 4.086946879 | G3: 5.984952908 | H3: 7.908865469 | I3: 10.39440801 | J3: 11.35116975 | K3: 12.57876384 | L3: 0 | M3: 3.242252084 | N3: 5.600931423 | O3: 8.237016288 | P3: 8.814168399 | Q3: 6.012750747 | R3: 4.090702651 | S3: 4.143806083 | T3: 4.111719239 | U3: 3.762057907 | V3: 2.911618054 | W3: -1.035604663 | X3: 0.4969532116 | Y3: -0.7078691487 | Z3: -2.371877932 | AA3: -6.198866182 | AB3: -6.804849125 | AC3: -7.976279804 | AD3: -10.61297811 | AE3: -13.16336431 | AF3: -12.93412922 | AG3: -14.50479184 | AH3: -14.85662923 | AI3: -16.84962959 | AJ3: -16.42864765 | AK3: -17.60129899 | AL3: -17.80170899 | AM3: -18.29538625 | AN3: -17.96217042 | AO3: -17.56276346 | AP3: -19.74454521 | AQ3: -20.2891501 | AR3: -20.24561158 | AS3: -19.96410839 | AT3: -20.82642317 | AU3: -21.54931057 | AV3: -19.83526134 | AW3: -18.27075124 | AX3: -18.09071914 | AY3: -18.91109277 | AZ3: -18.71414532 | BA3: -18.79870372
A4: Bruttó eszközök | B4: Assets | C4: 0 | D4: 1.265313789 | E4: -0.1593468733 | F4: 0.6824446924 | G4: 2.464871511 | H4: 3.202676434 | I4: 3.833697117 | J4: 3.981677135 | K4: 5.086516081 | L4: 0 | M4: 0.9893001046 | N4: 3.076412935 | O4: 0.7892591746 | P4: 0.6513086101 | Q4: 1.59116102 | R4: 0.6904726646 | S4: 0.7948727734 | T4: 0.600253633 | U4: 0.4689383842 | V4: 0.604299883 | W4: -0.3407763587 | X4: -0.7462832889 | Y4: -1.266273581 | Z4: -1.087939669 | AA4: -1.303197537 | AB4: -1.542020111 | AC4: -3.168525718 | AD4: -3.199347561 | AE4: -3.760213866 | AF4: -3.331228985 | AG4: -4.048844723 | AH4: -4.629745547 | AI4: -4.606076852 | AJ4: -4.943769655 | AK4: -5.974614 | AL4: -5.952290048 | AM4: -4.686363174 | AN4: -4.573956719 | AO4: -4.088259309 | AP4: -4.088111023 | AQ4: -1.844968877 | AR4: 0.04213458556 | AS4: 2.718567251 | AT4: 4.031990179 | AU4: 4.859591394 | AV4: 5.800291527 | AW4: 6.151472645 | AX4: 7.484906034 | AY4: 6.426326812 | AZ4: 7.296892385 | BA4: 6.893509315
A5: Nettó adósság | B5: Net debt | C5: 0 | D5: =+D3-D4 -> -0.3618135924 | E5: =+E3-E4 -> 2.469948799 | F5: 3.404502187 | G5: 3.520081397 | H5: 4.706189035 | I5: 6.560710894 | J5: 7.36949262 | K5: 7.492247763 | L5: 0 | M5: 2.252951979 | N5: 2.524518487 | O5: 7.447757113 | P5: 8.162859789 | Q5: 4.421589727 | R5: 3.400229987 | S5: 3.34893331 | T5: 3.511465606 | U5: 3.293119523 | V5: 2.307318171 | W5: -0.6948283041 | X5: 1.243236501 | Y5: 0.5584044322 | Z5: -1.283938263 | AA5: -4.895668645 | AB5: -5.262829014 | AC5: -4.807754086 | AD5: -7.413630546 | AE5: -9.403150439 | AF5: -9.602900235 | AG5: -10.45594712 | AH5: -10.22688369 | AI5: -12.24355274 | AJ5: =+AJ3-AJ4 -> -11.48487799 | AK5: -11.62668499 | AL5: =+AL3-AL4 -> -11.84941894 | AM5: =+AM3-AM4 -> -13.60902308 | AN5: -13.3882137 | AO5: =+AO3-AO4 -> -13.47450415 | AP5: -15.65643419 | AQ5: =+AQ3-AQ4 -> -18.44418122 | AR5: -20.28774617 | AS5: =+AS3-AS4 -> -22.68267564 | AT5: =+AT3-AT4 -> -24.85841335 | AU5: -26.40890196 | AV5: -25.63555286 | AW5: =+AW3-AW4 -> -24.42222388 | AX5: -25.57562517 | AY5: =+AY3-AY4 -> -25.33741959 | AZ5: =+AZ3-AZ4 -> -26.01103771 | BA5: =+BA3-BA4 -> -25.69221304

Sheet 16. adat
C1: 2008.I. | D1: II. | E1: III. | F1: IV. | G1: 2009.I. | H1: II. | I1: III. | J1: IV. | K1: 2010. I. | L1: II. | M1: III. | N1: IV. | O1: 2011.I. | P1: II. | Q1: III. | R1: IV. | S1: 2012.I. | T1: II. | U1: III. | V1: IV. | W1: 2013.I. | X1: II. | Y1: III. | Z1: IV. | AA1: 2014.I. | AB1: II. | AC1: III. | AD1: IV. | AE1: 2015.I. | AF1: II. | AG1: III. | AH1: IV. | AI1: 2016.I. | AJ1: II. | AK1: III. | AL1: IV. | AM1: 2017.I. | AN1: II. | AO1: III. | AP1: IV. | AQ1: 2018. I. | AR1: II.
C2: 2008 Q1 | D2: Q2 | E2: Q3 | F2: Q4 | G2: 2009 Q1 | H2: Q2 | I2: Q3 | J2: Q4 | K2: 2010 Q1 | L2: Q2 | M2: Q3 | N2: Q4 | O2: 2011 Q1 | P2: Q2 | Q2: Q3 | R2: Q4 | S2: 2012 Q1 | T2: Q2 | U2: Q3 | V2: Q4 | W2: 2013 Q1 | X2: Q2 | Y2: Q3 | Z2: Q4 | AA2: 2014 Q1 | AB2: Q2 | AC2: Q3 | AD2: Q4 | AE2: 2015 Q1 | AF2: Q2 | AG2: Q3 | AH2: Q4 | AI2: 2016 Q1 | AJ2: Q2 | AK2: Q3 | AL2: Q4 | AM2: 2017 Q1 | AN2: Q2 | AO2: Q3 | AP2: Q4 | AQ2: 2018 Q1 | AR2: Q2
A13: Kumulált tranzakciók
A14: Nettó adósság-beáramlás | B14: Net debt inflow | C14: 0 | D14: -0.5138712943 | E14: 0.6914791479 | F14: -1.580931323 | G14: -0.2970770096 | H14: 0.8583059179 | I14: 1.622176487 | J14: 0.2773738189 | K14: 0.4400094967 | L14: -0.3335524675 | M14: 0.8179721955 | N14: 2.166118082 | O14: 0.8691798208 | P14: 1.906842318 | Q14: 3.815315657 | R14: 4.404038773 | S14: 4.646719971 | T14: 2.988764995 | U14: 3.559063271 | V14: 2.288981418 | W14: -0.802088844 | X14: -0.712435787 | Y14: -1.283236766 | Z14: -2.965168088 | AA14: -4.769919949 | AB14: -3.723318737 | AC14: -5.129929404 | AD14: -5.842609418 | AE14: -7.007872292 | AF14: -7.630273618 | AG14: -7.2149289 | AH14: -8.120608384 | AI14: -6.733900136 | AJ14: -5.183211499 | AK14: -4.167243414 | AL14: -4.620565629 | AM14: -4.897758699 | AN14: -6.527635356 | AO14: -6.013683945 | AP14: -8.110902594 | AQ14: -8.48185593 | AR14: -9.891264673
A15: Devizatartalék | B15: FX-reserves | C15: 0 | D15: -0.7628074952 | E15: -0.6359641218 | F15: -7.231019597 | G15: -10.52545076 | H15: -9.994663296 | I15: -13.72130208 | J15: -13.79850584 | K15: -16.70868859 | L15: -17.66466108 | M15: -16.51737771 | N15: -16.81636908 | O15: -19.23614109 | P15: -20.508399 | Q15: -21.7863733 | R15: -20.69001281 | S15: -17.88243879 | T15: -18.37196437 | U15: -17.48255577 | V15: -17.33874989 | W15: -19.18386658 | X15: -18.52758841 | Y15: -15.21009095 | Z15: -18.54853046 | AA15: -20.96486923 | AB15: -20.77374049 | AC15: -20.22987273 | AD15: -19.28819732 | AE15: -20.51261765 | AF15: -18.87489276 | AG15: -16.34904764 | AH15: -14.37484621 | AI15: -11.5717518 | AJ15: -8.275455171 | AK15: -7.207935926 | AL15: -8.27533532 | AM15: -8.242875226 | AN15: -7.907134055 | AO15: -6.990251129 | AP15: -8.303265321 | AQ15: -8.012899916 | AR15: -8.746249405
A16: Egyéb követelés | B16: Other assets | C16: 0 | D16: -0.08848027217 | E16: -0.06238568226 | F16: -0.1520881074 | G16: -0.06222977813 | H16: 0.07669537198 | I16: 0.1362434452 | J16: -0.4089009842 | K16: 0.1196844201 | L16: 0.4098770229 | M16: 0.3168041235 | N16: -0.5107612167 | O16: 0.2134956286 | P16: 0.07482321465 | Q16: 0.2340844325 | R16: -0.05424346388 | S16: 0.4304703752 | T16: 0.5692776193 | U16: 0.563462666 | V16: 0.03416278376 | W16: 0.217220695 | X16: -0.129717336 | Y16: -0.3066833878 | Z16: -0.4950932657 | AA16: -0.6107674881 | AB16: -0.1283046729 | AC16: -0.0008599453332 | AD16: 0.07378919664 | AE16: -0.01182594511 | AF16: -0.05294605761 | AG16: -0.3965870435 | AH16: -1.87430993 | AI16: -1.906920509 | AJ16: -1.913399596 | AK16: -0.7259093914 | AL16: -0.1228524241 | AM16: 0.5035727943 | AN16: -0.6933832648 | AO16: 0.1532906152 | AP16: 0.1617033142 | AQ16: -0.5905415339 | AR16: -0.6897768956
C17: 0 | D17: 0.3374164731 | E17: 1.389828952 | F17: 5.802176382 | G17: 10.29060353 | H17: 10.77627384 | I17: 15.20723513 | J17: 14.48478065 | K17: 17.02901367 | L17: 16.92123159 | M17: 17.01854578 | N17: 19.49324838 | O17: 19.89182528 | P17: 22.34237241 | Q17: 25.36760452 | R17: 25.14829505 | S17: 22.09974258 | T17: 20.79145331 | U17: 20.47815793 | V17: 19.59357009 | W17: 18.1645586 | X17: 17.94487152 | Y17: 14.23353913 | Z17: 16.07845719 | AA17: 16.80571832 | AB17: 17.17872798 | AC17: 15.10080483 | AD17: 13.37180026 | AE17: 13.51657286 | AF17: 11.29756676 | AG17: 9.53070734 | AH17: 8.128549308 | AI17: 6.744773725 | AJ17: 5.005644825
A18: Deviza állampapír | B18: FX-bonds | C18: 0 | D18: 1.686669044 | E18: 1.718107463 | F18: 1.877750029 | G18: 1.366539744 | H18: 0.7755186616 | I18: 1.845732558 | J18: 1.860587322 | K18: 3.195332438 | L18: 2.959038808 | M18: 1.717215262 | N18: 1.817432712 | O18: 4.286436678 | P18: 4.623119253 | Q18: 4.447650422 | R18: 3.3980752 | S18: 3.002476563 | T18: 2.739168413 | U18: 2.150667309 | V18: 1.637146947 | W18: 2.806526489 | X18: 2.340109086 | Y18: 1.98120695 | Z18: 4.050909503 | AA18: 5.290569685 | AB18: 4.548643646 | AC18: 3.587986808 | AD18: 3.559449317 | AE18: 2.056637429 | AF18: 1.940858087 | AG18: 1.451921258 | AH18: 0.9344314679 | AI18: -0.3196098959 | AJ18: -0.5039940831 | AK18: -1.243364147 | AL18: -0.9592418395 | AM18: -1.080544713 | AN18: -1.42781618 | AO18: -1.87498842 | AP18: -1.898433087 | AQ18: -2.077620002 | AR18: -2.891482455
A19: Forint állampapír | B19: Forint bonds | C19: 0 | D19: -0.8160851904 | E19: 0.1369475226 | F19: -2.942203389 | G19: -3.245976382 | H19: -4.342709308 | I19: -3.829891457 | J19: -4.541878518 | K19: -3.786058948 | L19: -4.548480936 | M19: -3.736592607 | N19: -3.233194815 | O19: -2.186460861 | P19: -0.09102501668 | Q19: 1.814219756 | R19: 1.034873979 | S19: 1.811377389 | T19: 2.040554118 | U19: 4.260863331 | V19: 4.987034033 | W19: 4.32898834 | X19: 5.19089277 | Y19: 4.63937728 | Z19: 4.244278592 | AA19: 3.472235391 | AB19: 4.363463373 | AC19: 4.508029815 | AD19: 4.941163642 | AE19: 5.204967284 | AF19: 3.316983607 | AG19: 2.68098237 | AH19: 2.008763521 | AI19: 1.136719898 | AJ19: 0.9329295406 | AK19: 1.51326775 | AL19: 0.4929890035 | AM19: 0.1360521947 | AN19: -0.1931012124 | AO19: 0.3793868423 | AP19: -0.07964140223 | AQ19: 0.6472313673 | AR19: 0.385834552
A20: Egyéb tartozás | B20: Other liabilities | C20: 0 | D20: -0.5331673802 | E20: -0.4652260332 | F20: -0.002706858146 | G20: 0.9299346679 | H20: 1.651037811 | I20: 2.945006847 | J20: 2.919684666 | K20: 3.373353003 | L20: 4.264286541 | M20: 4.791535944 | N20: 6.662623308 | O20: 3.545462289 | P20: 3.563890997 | Q20: 4.859347165 | R20: 8.468958692 | S20: 5.659259241 | T20: 5.330847286 | U20: 4.347327557 | V20: 4.197459454 | W20: 3.182624151 | X20: 3.492960084 | Y20: 2.856045325 | Z20: 3.026359523 | AA20: 3.286003668 | AB20: 3.509711384 | AC20: 2.247878633 | AD20: 2.114277726 | AE20: 3.498058572 | AF20: 3.28281549 | AG20: 2.640894134 | AH20: 3.628444742 | AI20: 4.370754146 | AJ20: 4.57579979 | AK20: 3.49579028 | AL20: 4.242966931 | AM20: 3.785128231 | AN20: 3.692891336 | AO20: 2.317970127 | AP20: 2.007825881 | AQ20: 1.551066133 | AR20: 2.04950151
A21: EU/IMF hitel | B21: EU-IMF loan | C21: 0 | D21: 0 | E21: 0 | F21: 6.8693366 | G21: 11.2401055 | H21: 12.69242668 | I21: 14.24638718 | J21: 14.24638718 | K21: 14.24638718 | L21: 14.24638718 | M21: 14.24638718 | N21: 14.24638718 | O21: 14.24638718 | P21: 14.24638718 | Q21: 14.24638718 | R21: 12.24638718 | S21: 11.62662938 | T21: 10.68088349 | U21: 9.719299733 | V21: 8.771929652 | W21: 7.846419615 | X21: 6.920909577 | Y21: 4.756909577 | Z21: 4.756909577 | AA21: 4.756909577 | AB21: 4.756909577 | AC21: 4.756909577 | AD21: 2.756909577 | AE21: 2.756909577 | AF21: 2.756909577 | AG21: 2.756909577 | AH21: 1.556909577 | AI21: 1.556909577 | AJ21: 0.0009095772034 | AK21: 0.0009095772034 | AL21: 0.0009095772034 | AM21: 0.0009095772034 | AN21: 0.0009095772034 | AO21: 0.0009095772034 | AP21: 0.0009095772034 | AQ21: 0.0009095772034 | AR21: 0.0009095772034
C23: 0 | D23: 0 | E23: 0 | F23: 6869.3366 | G23: 4370.7689 | H23: 1452.321177 | I23: 1553.9605 | J23: 0 | K23: 0 | L23: 0 | M23: 0 | N23: 0 | O23: 0 | P23: 0 | Q23: 0 | R23: -2000 | S23: -619.7577938 | T23: -945.7458938 | U23: -961.5837563 | V23: -947.3700813 | W23: -925.5100375 | X23: -925.5100375 | Y23: -2164 | Z23: 0 | AA23: 0 | AB23: 0 | AC23: 0 | AD23: -2000 | AE23: 0 | AF23: 0 | AG23: 0 | AH23: -1200 | AI23: 0 | AJ23: -1556

Sheet 17. adat
C1: 2008. I. | D1: II. | E1: III. | F1: IV. | G1: 2009. I. | H1: II. | I1: III. | J1: IV. | K1: 2010. I. | L1: II. | M1: III. | N1: IV. | O1: 2011. I. | P1: II. | Q1: III. | R1: IV. | S1: 2012. I. | T1: II. | U1: III. | V1: IV. | W1: 2013. I. | X1: II. | Y1: III. | Z1: IV. | AA1: 2014. I. | AB1: II. | AC1: III. | AD1: IV. | AE1: 2015. I. | AF1: II. | AG1: III. | AH1: IV. | AI1: 2016. I. | AJ1: II. | AK1: III. | AL1: IV. | AM1: 2017. I. | AN1: II. | AO1: III. | AP1: IV. | AQ1: 2018. I. | AR1: II.
C2: 2008 Q1 | D2: Q2 | E2: Q3 | F2: Q4 | G2: 2009 Q1 | H2: Q2 | I2: Q3 | J2: Q4 | K2: 2010 Q1 | L2: Q2 | M2: Q3 | N2: Q4 | O2: 2011 Q1 | P2: Q2 | Q2: Q3 | R2: Q4 | S2: 2012 Q1 | T2: Q2 | U2: Q3 | V2: Q4 | W2: 2013 Q1 | X2: Q2 | Y2: Q3 | Z2: Q4 | AA2: 2014 Q1 | AB2: Q2 | AC2: Q3 | AD2: Q4 | AE2: 2015 Q1 | AF2: Q2 | AG2: Q3 | AH2: Q4 | AI2: 2016 Q1 | AJ2: Q2 | AK2: Q3 | AL2: Q4 | AM2: 2017 Q1 | AN2: Q2 | AO2: Q3 | AP2: Q4 | AQ2: 2018 Q1 | AR2: Q2
A3: Adóssággeneráló forrásbeáramlás | B3: Debt-type financing | C3: 3.042719767 | D3: 4.087745217 | E3: 6.441623696 | F3: 8.960661314 | G3: 10.68384871 | H3: 9.187210972 | I3: 8.58790219 | J3: 7.966725205 | K3: 7.99018464 | L3: 7.552606838 | M3: 7.587234768 | N3: 5.908463992 | O3: 6.224890659 | P3: 5.86593955 | Q3: 4.957263152 | R3: 2.922224664 | S3: 2.537826235 | T3: 0.57756904 | U3: -2.576747214 | V3: -5.769574752 | W3: -8.271718965 | X3: -9.354748605 | Y3: -10.61261655 | Z3: -14.28107412 | AA3: -15.17329598 | AB3: -14.50618016 | AC3: -16.63120859 | AD3: -19.75607835 | AE3: -20.68651974 | AF3: -21.99393586 | AG3: -24.54655756 | AH3: -28.21990353 | AI3: -28.49326282 | AJ3: -29.65934157 | AK3: -32.00081443 | AL3: -33.7234713 | AM3: -34.13565634 | AN3: -35.19867979 | AO3: -35.96419648 | AP3: -37.63473317 | AQ3: -39.06590588 | AR3: -39.60036024
A4: Átértékelődés és egyéb volumenhatás | B4: Revaluation and other changes in volume | C4: 2.005026848 | D4: -1.061219837 | E4: -0.03780665404 | F4: 2.537891838 | G4: 7.588478202 | H4: 2.341621848 | I4: 3.098659849 | J4: 3.515894519 | K4: 4.527787559 | L4: 8.405446936 | M4: 6.850481701 | N4: 7.214445384 | O4: 5.862206179 | P4: 6.571408122 | Q4: 9.355246017 | R4: 9.424878126 | S4: 9.152646983 | T4: 10.27465682 | U4: 11.34585611 | V4: 13.12672103 | W4: 14.00345276 | X4: 13.5787816 | Y4: 14.10585129 | Z4: 14.63934167 | AA4: 15.9348097 | AB4: 17.58475626 | AC4: 18.31929252 | AD4: 19.74157888 | AE4: 21.1432163 | AF4: 20.72713154 | AG4: 20.89073364 | AH4: 21.00467439 | AI4: 20.80558266 | AJ4: 20.44851666 | AK4: 20.76487222 | AL4: 21.2159162 | AM4: 21.07599312 | AN4: 20.81061501 | AO4: 20.82781162 | AP4: 20.71383715 | AQ4: 19.99080312 | AR4: 19.50457381
A5: Nominális GDP változásának hatása | B5: Changes in the nominal amount of GDP | C5: -0.9359346794 | D5: -1.821392295 | E5: -2.182246747 | F5: -2.634592839 | G5: -1.974503634 | H5: -1.283127577 | I5: -0.9865411785 | J5: -1.012342218 | K5: -1.072187145 | L5: -1.433484843 | M5: -2.176187717 | N5: -2.7094566 | O5: -3.19703272 | P5: -3.646829296 | Q5: -4.227490078 | R5: -4.790349979 | S5: -5.120728813 | T5: -5.407449137 | U5: -5.689230493 | V5: -5.638279543 | W5: -6.010964364 | X5: -6.618715188 | Y5: -7.166037112 | Z5: -7.746370422 | AA5: -8.391877465 | AB5: -9.054471856 | AC5: -9.830588109 | AD5: -10.48001409 | AE5: -10.84708794 | AF5: -11.21125385 | AG5: -11.4890964 | AH5: -12.09907461 | AI5: -12.26589159 | AJ5: -12.57887902 | AK5: -12.72359865 | AL5: -12.82946845 | AM5: -13.13752012 | AN5: -13.41999154 | AO5: -13.7424594 | AP5: -14.09048112 | AQ5: -14.34127861 | AR5: -14.58400289
A6: Nettó külső adósság | B6: Net external debt | C6: 48.31453327 | D6: 45.40785442 | E6: 48.42429163 | F6: 53.06668165 | G6: 60.50054462 | H6: 54.44842658 | I6: 54.9027422 | J6: 54.67299885 | K6: 55.64850639 | L6: 58.72729027 | M6: 56.46425009 | N6: 54.61617411 | O6: 53.09278546 | P6: 52.99323972 | Q6: 54.28774043 | R6: 51.75947415 | S6: 50.77246574 | T6: 49.64749806 | U6: 47.28259975 | V6: 45.92158807 | W6: 43.92349077 | X6: 41.80803914 | Y6: 40.52991898 | Z6: 36.81461846 | AA6: 36.57235759 | AB6: 38.22682559 | AC6: 36.06021716 | AD6: 33.70820778 | AE6: 33.81232996 | AF6: 31.72466317 | AG6: 29.05780102 | AH6: 24.88841758 | AI6: 24.24914959 | AJ6: 22.41321445 | AK6: 20.24369435 | AL6: 18.86621167 | AM6: 18.00591607 | AN6: 16.39492249 | AO6: 15.32417003 | AP6: 13.19163713 | AQ6: 10.70007916 | AR6: 9.433979818

Sheet 18. adat
C1: 2008. I. | D1: II. | E1: III. | F1: IV. | G1: 2009. I. | H1: II. | I1: III. | J1: IV. | K1: 2010. I. | L1: II. | M1: III. | N1: IV. | O1: 2011. I. | P1: II. | Q1: III. | R1: IV. | S1: 2012. I. | T1: II. | U1: III. | V1: IV. | W1: 2013. I. | X1: II. | Y1: III. | Z1: IV. | AA1: 2014. I. | AB1: II. | AC1: III. | AD1: IV. | AE1: 2015. I. | AF1: II. | AG1: III. | AH1: IV. | AI1: 2016. I. | AJ1: II. | AK1: III. | AL1: IV. | AM1: 2017. I. | AN1: II. | AO1: III. | AP1: IV. | AQ1: 2018. I. | AR1: II.
C2: 2008 Q1 | D2: Q2 | E2: Q3 | F2: Q4 | G2: 2009 Q1 | H2: Q2 | I2: Q3 | J2: Q4 | K2: 2010 Q1 | L2: Q2 | M2: Q3 | N2: Q4 | O2: 2011 Q1 | P2: Q2 | Q2: Q3 | R2: Q4 | S2: 2012 Q1 | T2: Q2 | U2: Q3 | V2: Q4 | W2: 2013 Q1 | X2: Q2 | Y2: Q3 | Z2: Q4 | AA2: 2014 Q1 | AB2: Q2 | AC2: Q3 | AD2: Q4 | AE2: 2015 Q1 | AF2: Q2 | AG2: Q3 | AH2: Q4 | AI2: 2016 Q1 | AJ2: Q2 | AK2: Q3 | AL2: Q4 | AM2: 2017 Q1 | AN2: Q2 | AO2: Q3 | AP2: Q4 | AQ2: 2018 Q1 | AR2: Q2
A3: Bankrendszer | B3: Banking sector | C3: 22.71709787 | D3: 22.05483937 | E3: 22.58362365 | F3: 29.09138972 | G3: 33.95180013 | H3: 26.90056708 | I3: 26.33714365 | J3: 26.42296511 | K3: 26.64761994 | L3: 28.67010757 | M3: 26.37193166 | N3: 23.59883216 | O3: 24.13563181 | P3: 23.83425455 | Q3: 23.4124322 | R3: 20.3054596 | S3: 19.20355537 | T3: 19.21289255 | U3: 16.37753947 | V3: 14.8435371 | W3: 15.06463005 | X3: 13.57407522 | Y3: 13.81825754 | Z3: 11.6508907 | AA3: 12.68631601 | AB3: 12.49130311 | AC3: 12.10190435 | AD3: 10.40935822 | AE3: 10.63946502 | AF3: 10.64139477 | AG3: 8.467732995 | AH3: 5.779458295 | AI3: 4.040002832 | AJ3: 1.843764706 | AK3: -0.08477847354 | AL3: -1.412011952 | AM3: -0.6332412415 | AN3: 0.3534056679 | AO3: -0.61867198 | AP3: -0.4381910972 | AQ3: -1.027813731 | AR3: -0.9135769048
A4: Államháztartás | B4: General government | C4: 16.45773757 | D4: 15.6775888 | E4: 16.91088677 | F4: 14.1649359 | G4: 15.1203903 | H4: 16.63322688 | I4: 17.80311523 | J4: 16.57043696 | K4: 17.44048762 | L4: 16.78863098 | M4: 17.65440501 | N4: 18.48757733 | O4: 17.32644673 | P4: 18.1604207 | Q4: 19.6539299 | R4: 18.39576751 | S4: 19.0650705 | T4: 18.8244167 | U4: 20.74591207 | V4: 20.67058511 | W4: 17.23717901 | X4: 17.51361763 | Y4: 16.98062251 | Z4: 15.69146232 | AA4: 14.03602331 | AB4: 16.18380199 | AC4: 15.00668857 | AD4: 15.18469015 | AE4: 15.5173267 | AF4: 13.79897387 | AG4: 14.28061155 | AH4: 13.22838927 | AI4: 14.31725349 | AJ4: 15.0818393 | AK4: 16.32160035 | AL4: 16.18047183 | AM4: 15.52296772 | AN4: 13.80713811 | AO4: 14.05774078 | AP4: 12.02736432 | AQ4: 10.70230852 | AR4: 8.790779366
A5: Vállalat | B5: Corporate sector | C5: 9.139697835 | D5: 7.675426257 | E5: 8.929781224 | F5: 9.810356037 | G5: 11.42835419 | H5: 10.91463261 | I5: 10.76248332 | J5: 11.67959677 | K5: 11.56039883 | L5: 13.26855172 | M5: 12.43791342 | N5: 12.52976462 | O5: 11.63070692 | P5: 10.99856446 | Q5: 11.22137834 | R5: 13.05824704 | S5: 12.50383988 | T5: 11.61018881 | U5: 10.15914821 | V5: 10.40746586 | W5: 11.62168171 | X5: 10.72034629 | Y5: 9.731038932 | Z5: 9.472265448 | AA5: 9.850018276 | AB5: 9.55172049 | AC5: 8.951624238 | AD5: 8.114159416 | AE5: 7.65553824 | AF5: 7.284294533 | AG5: 6.309456477 | AH5: 5.880570013 | AI5: 5.891893266 | AJ5: 5.487610442 | AK5: 4.006872479 | AL5: 4.097751791 | AM5: 3.116189592 | AN5: 2.234378705 | AO5: 1.885101231 | AP5: 1.602463907 | AQ5: 1.025584375 | AR5: 1.556777357
A6: Nettó külső adósság | B6: Net external debt | C6: 48.31453327 | D6: 45.40785442 | E6: 48.42429163 | F6: 53.06668165 | G6: 60.50054462 | H6: 54.44842658 | I6: 54.9027422 | J6: 54.67299885 | K6: 55.64850639 | L6: 58.72729027 | M6: 56.46425009 | N6: 54.61617411 | O6: 53.09278546 | P6: 52.99323972 | Q6: 54.28774043 | R6: 51.75947415 | S6: 50.77246574 | T6: 49.64749806 | U6: 47.28259975 | V6: 45.92158807 | W6: 43.92349077 | X6: 41.80803914 | Y6: 40.52991898 | Z6: 36.81461846 | AA6: 36.57235759 | AB6: 38.22682559 | AC6: 36.06021716 | AD6: 33.70820778 | AE6: 33.81232996 | AF6: 31.72466317 | AG6: 29.05780102 | AH6: 24.88841758 | AI6: 24.24914959 | AJ6: 22.41321445 | AK6: 20.24369435 | AL6: 18.86621167 | AM6: 18.00591607 | AN6: 16.39492249 | AO6: 15.32417003 | AP6: 13.19163713 | AQ6: 10.70007916 | AR6: 9.433979818
A7: Bruttó külső adósság (jobb tengely) | B7: Gross external debt (r.h.s.) | C7: 84.04551276 | D7: 79.85354991 | E7: 86.56213576 | F7: 97.186406 | G7: 117.7898671 | H7: 105.9437866 | I7: 108.7015884 | J7: 108.6687263 | K7: 112.0126912 | L7: 120.5476428 | M7: 113.8291851 | N7: 112.0315832 | O7: 108.0176192 | P7: 108.5375199 | Q7: 116.4807124 | R7: 115.4238091 | S7: 106.9892233 | T7: 103.6525269 | U7: 100.1113773 | V7: 98.85962702 | W7: 100.1934442 | X7: 94.60190143 | Y7: 89.44312678 | Z7: 87.80486665 | AA7: 90.12302053 | AB7: 90.18327357 | AC7: 87.0807158 | AD7: 84.79754943 | AE7: 85.41676453 | AF7: 84.10132942 | AG7: 79.00491584 | AH7: 75.10655722 | AI7: 73.7390878 | AJ7: 72.25607706 | AK7: 68.84644774 | AL7: 68.62536043 | AM7: 68.32252193 | AN7: 66.27786125 | AO7: 63.93136232 | AP7: 60.68471542 | AQ7: 59.20637843 | AR7: 60.26829708

Sheet 19.adat
C1: 2008. I. | D1: II. | E1: III. | F1: IV. | G1: 2009. I. | H1: II. | I1: III. | J1: IV. | K1: 2010. I. | L1: II. | M1: III. | N1: IV. | O1: 2011. I. | P1: II. | Q1: III. | R1: IV. | S1: 2012. I. | T1: II. | U1: III. | V1: IV. | W1: 2013. I. | X1: II. | Y1: III. | Z1: IV. | AA1: 2014. I. | AB1: II. | AC1: III. | AD1: IV. | AE1: 2015.I. | AF1: II. | AG1: III. | AH1: IV. | AI1: 2016.I. | AJ1: II. | AK1: III. | AL1: IV. | AM1: 2017.I. | AN1: II. | AO1: III. | AP1: IV. | AQ1: 2018.I. | AR1: II.
C2: 2008 Q1 | D2: Q2 | E2: Q3 | F2: Q4 | G2: 2009 Q1 | H2: Q2 | I2: Q3 | J2: Q4 | K2: 2010 Q1 | L2: Q2 | M2: Q3 | N2: Q4 | O2: 2011 Q1 | P2: Q2 | Q2: Q3 | R2: Q4 | S2: 2012 Q1 | T2: Q2 | U2: Q3 | V2: Q4 | W2: 2013 Q1 | X2: Q2 | Y2: Q3 | Z2: Q4 | AA2: 2014 Q1 | AB2: Q2 | AC2: Q3 | AD2: Q4 | AE2: 2015 Q1 | AF2: Q2 | AG2: Q3 | AH2: Q4 | AI2: 2016 Q1 | AJ2: Q2 | AK2: Q3 | AL2: Q4 | AM2: 2017 Q1 | AN2: Q2 | AO2: Q3 | AP2: Q4 | AQ2: 2018 Q1 | AR2: Q2
A3: Bankok külföldi eszközei | B3: Foreign assets of banks | C3: 11.37627627 | D3: 11.17177281 | E3: 13.59721976 | F3: 12.44991521 | G3: 14.80908001 | H3: 13.99672009 | I3: 12.93628783 | J3: 13.13001302 | K3: 13.04052101 | L3: 14.18280178 | M3: 13.34832529 | N3: 12.45137477 | O3: 11.18987562 | P3: 10.59353887 | Q3: 11.74346244 | R3: 12.18750371 | S3: 11.17945702 | T3: 9.358501187 | U3: 9.074822277 | V3: 8.677610801 | W3: 9.463895605 | X3: 8.29725676 | Y3: 7.625083071 | Z3: 7.45456126 | AA3: 7.109259436 | AB3: 6.041641524 | AC3: 6.042877357 | AD3: 7.235437187 | AE3: 7.229121386 | AF3: 7.896913179 | AG3: 7.724979698 | AH3: 9.667674203 | AI3: 11.22068005 | AJ3: 13.62920823 | AK3: 14.39648362 | AL3: 15.29736186 | AM3: 15.72119733 | AN3: 15.46790593 | AO3: 16.18608472 | AP3: 14.841101 | AQ3: 15.24420771 | AR3: 15.48342569
A4: Bankok külföldi tartozása | B4: External debt of banks | C4: 34.09337414 | D4: 33.22661217 | E4: 36.18084341 | F4: 41.54130493 | G4: 48.76088014 | H4: 40.89728717 | I4: 39.27343148 | J4: 39.55297813 | K4: 39.68814095 | L4: 42.85290935 | M4: 39.72025695 | N4: 36.05020693 | O4: 35.32550743 | P4: 34.42779342 | Q4: 35.15589464 | R4: 32.49296331 | S4: 30.38301239 | T4: 28.57139374 | U4: 25.45236175 | V4: 23.5211479 | W4: 24.52852566 | X4: 21.87133198 | Y4: 21.44334061 | Z4: 19.10545196 | AA4: 19.79557544 | AB4: 18.53294463 | AC4: 18.14478171 | AD4: 17.64479541 | AE4: 17.8685864 | AF4: 18.53830795 | AG4: 16.19271269 | AH4: 15.4471325 | AI4: 15.26068288 | AJ4: 15.47297293 | AK4: 14.31170515 | AL4: 13.88534991 | AM4: 15.08795609 | AN4: 15.82131159 | AO4: 15.56741274 | AP4: 14.4029099 | AQ4: 14.21639398 | AR4: 14.56984879
A5: Bankok nettó külső adóssága | B5: Bank net external debt of banks | C5: 22.71709787 | D5: 22.05483937 | E5: 22.58362365 | F5: 29.09138972 | G5: 33.95180013 | H5: 26.90056708 | I5: 26.33714365 | J5: 26.42296511 | K5: 26.64761994 | L5: 28.67010757 | M5: 26.37193166 | N5: 23.59883216 | O5: 24.13563181 | P5: 23.83425455 | Q5: 23.4124322 | R5: 20.3054596 | S5: 19.20355537 | T5: 19.21289255 | U5: 16.37753947 | V5: 14.8435371 | W5: 15.06463005 | X5: 13.57407522 | Y5: 13.81825754 | Z5: 11.6508907 | AA5: 12.68631601 | AB5: 12.49130311 | AC5: 12.10190435 | AD5: 10.40935822 | AE5: 10.63946502 | AF5: 10.64139477 | AG5: 8.467732995 | AH5: 5.779458295 | AI5: 4.040002832 | AJ5: 1.843764706 | AK5: -0.08477847354 | AL5: -1.412011952 | AM5: -0.6332412415 | AN5: 0.3534056679 | AO5: -0.61867198 | AP5: -0.4381910972 | AQ5: -1.027813731 | AR5: -0.9135769048

Sheet 20.adat
C1: 2008-03-31 | D1: 2008-06-30 | E1: 2008-09-30 | F1: 2008-12-31 | G1: 2009-03-31 | H1: 2009-06-30 | I1: 2009-09-30 | J1: 2009-12-31 | K1: 2010-03-31 | L1: 2010-06-30 | M1: 2010-09-30 | N1: 2010-12-31 | O1: 2011-03-31 | P1: 2011-06-30 | Q1: 2011-09-30 | R1: 2011-12-31 | S1: 2012-03-31 | T1: 2012-06-30 | U1: 2012-09-30 | V1: 2012-12-31 | W1: 2013-03-31 | X1: 2013-06-30 | Y1: 2013-09-30 | Z1: 2013-12-31 | AA1: 2014-03-31 | AB1: 2014-06-30 | AC1: 2014-09-30 | AD1: 2014-12-31 | AE1: 2015-03-31 | AF1: 2015-06-30 | AG1: 2015-09-30 | AH1: 2015-12-31 | AI1: 2016-03-31 | AJ1: 2016-06-30 | AK1: 2016-09-30 | AL1: 2016-12-31 | AM1: 2017-03-31 | AN1: 2017-06-30 | AO1: 2017-09-30 | AP1: 2017-12-31 | AQ1: 2018-03-31 | AR1: 2018-06-30
C2: 2008. I. | D2: II. | E2: III. | F2: IV. | G2: 2009. I. | H2: II. | I2: III. | J2: IV. | K2: 2010. I. | L2: II. | M2: III. | N2: IV. | O2: 2011. I. | P2: II. | Q2: III. | R2: IV. | S2: 2012. I. | T2: II. | U2: III. | V2: IV. | W2: 2013. I. | X2: II. | Y2: III. | Z2: IV. | AA2: 2014. I. | AB2: II. | AC2: III. | AD2: IV. | AE2: 2015.I. | AF2: II. | AG2: III. | AH2: IV. | AI2: 2016.I. | AJ2: II. | AK2: III. | AL2: IV. | AM2: 2017.I. | AN2: II. | AO2: III. | AP2: IV. | AQ2: 2018.I. | AR2: II.
C3: 2008 Q1 | D3: Q2 | E3: Q3 | F3: Q4 | G3: 2009 Q1 | H3: Q2 | I3: Q3 | J3: Q4 | K3: 2010 Q1 | L3: Q2 | M3: Q3 | N3: Q4 | O3: 2011 Q1 | P3: Q2 | Q3: Q3 | R3: Q4 | S3: 2012 Q1 | T3: Q2 | U3: Q3 | V3: Q4 | W3: 2013 Q1 | X3: Q2 | Y3: Q3 | Z3: Q4 | AA3: 2014 Q1 | AB3: Q2 | AC3: Q3 | AD3: Q4 | AE3: 2015 Q1 | AF3: Q2 | AG3: Q3 | AH3: Q4 | AI3: 2016 Q1 | AJ3: Q2 | AK3: Q3 | AL3: Q4 | AM3: 2017 Q1 | AN3: Q2 | AO3: Q3 | AP3: Q4 | AQ3: 2018 Q1 | AR3: Q2
A4: Bankrendszer | B4: Banking sector | C4: 12.63782326 | D4: 14.86765694 | E4: 15.68842135 | F4: 18.50153457 | G4: 19.95740808 | H4: 18.57788772 | I4: 18.14299037 | J4: 18.47125309 | K4: 19.91519735 | L4: 21.44106154 | M4: 21.80297033 | N4: 18.46503942 | O4: 18.56918717 | P4: 17.76511183 | Q4: 18.6567327 | R4: 14.99837693 | S4: 15.35763172 | T4: 13.81431686 | U4: 11.95663496 | V4: 10.19604517 | W4: 11.55607289 | X4: 11.39840505 | Y4: 11.2722472 | Z4: 10.09836002 | AA4: 10.28450065 | AB4: 9.620130518 | AC4: 9.945051652 | AD4: 8.928396635 | AE4: 9.699183389 | AF4: 10.39803756 | AG4: 8.211360415 | AH4: 7.957930392 | AI4: 7.101729127 | AJ4: 7.079183446 | AK4: 6.261771672 | AL4: 5.281154967 | AM4: 7.084460447 | AN4: 6.766805729 | AO4: 6.816480993 | AP4: 5.813021475 | AQ4: 6.259804538 | AR4: 5.8749561
A5: Vállalatok | B5: Corporate sector | C5: 4.082893374 | D5: 5.614388337 | E5: 6.009968109 | F5: 5.135052257 | G5: 5.044022266 | H5: 5.429614471 | I5: 5.748548847 | J5: 6.190487113 | K5: 6.069219818 | L5: 7.013693697 | M5: 6.876870714 | N5: 7.057780085 | O5: 7.158528973 | P5: 6.787513365 | Q5: 6.487034557 | R5: 6.753022571 | S5: 6.770302537 | T5: 6.026562856 | U5: 6.132930787 | V5: 5.827159332 | W5: 6.432963789 | X5: 6.650671419 | Y5: 6.047586753 | Z5: 7.123304886 | AA5: 7.479296565 | AB5: 7.701332189 | AC5: 6.710859016 | AD5: 7.081808545 | AE5: 7.862113324 | AF5: 7.579733953 | AG5: 7.404847444 | AH5: 7.200940863 | AI5: 7.903863343 | AJ5: 8.044877879 | AK5: 7.806016227 | AL5: 8.071043986 | AM5: 8.331109188 | AN5: 7.609183268 | AO5: 7.597607888 | AP5: 7.210476399 | AQ5: 7.613219688 | AR5: 7.987571464
A6: Államháztartás | B6: General government | C6: 5.475218152 | D6: 5.750313576 | E6: 6.665317896 | F6: 5.915122578 | G6: 5.704145123 | H6: 6.035075423 | I6: 6.75552478 | J6: 6.23105264 | K6: 7.140971452 | L6: 8.354862233 | M6: 7.654197979 | N6: 12.42417202 | O6: 7.873758872 | P6: 9.743637143 | Q6: 13.61424226 | R6: 15.03280491 | S6: 14.72855739 | T6: 14.28347702 | U6: 13.43589266 | V6: 12.53449958 | W6: 10.38674818 | X6: 10.43403185 | Y6: 9.358749464 | Z6: 11.08068623 | AA6: 11.04198171 | AB6: 9.760570274 | AC6: 7.729174135 | AD6: 5.523936947 | AE6: 5.834091774 | AF6: 6.419853863 | AG6: 6.873155828 | AH6: 6.569640981 | AI6: 5.727786614 | AJ6: 4.684738988 | AK6: 4.347221805 | AL6: 5.252964041 | AM6: 5.15727166 | AN6: 5.587944945 | AO6: 4.466739149 | AP6: 3.767132075 | AQ6: 4.033104575 | AR6: 4.836465421
A7: Rövid lejáratú külső adósság | B7: Short-term external debt | C7: 22.19593478 | D7: 26.23235885 | E7: 28.36370736 | F7: 29.5517094 | G7: 30.70557547 | H7: 30.04257761 | I7: 30.647064 | J7: 30.89279285 | K7: 33.12538862 | L7: 36.80961747 | M7: 36.33403902 | N7: 37.94699152 | O7: 33.60147502 | P7: 34.29626234 | Q7: 38.75800952 | R7: 36.78420441 | S7: 36.85649165 | T7: 34.12435674 | U7: 31.5254584 | V7: 28.55770408 | W7: 28.37578486 | X7: 28.48310832 | Y7: 26.67858341 | Z7: 28.30235113 | AA7: 28.80577892 | AB7: 27.08203298 | AC7: 24.3850848 | AD7: 21.53414213 | AE7: 23.39538849 | AF7: 24.39762538 | AG7: 22.48936369 | AH7: 21.72851224 | AI7: 20.73337908 | AJ7: 19.80880031 | AK7: 18.4150097 | AL7: 18.60516299 | AM7: 20.57284129 | AN7: 19.96393394 | AO7: 18.88082803 | AP7: 16.79062995 | AQ7: 17.9061288 | AR7: 18.69899299
O8: 37.56662953 | P8: 37.38502933 | Q8: 38.66175788 | R8: 36.67770611 | S8: 36.72809708 | T8: 33.98860071 | U8: 31.39890952 | V8: 28.41224869

Sheet 21.adat
C1: 2009. I. | D1: II. | E1: III. | F1: IV. | G1: 2010. I. | H1: II. | I1: III. | J1: IV. | K1: 2011. I. | L1: II. | M1: III. | N1: IV. | O1: 2012. I. | P1: II. | Q1: III. | R1: IV. | S1: 2013. I. | T1: II. | U1: III. | V1: IV. | W1: 2014. I. | X1: II. | Y1: III. | Z1: IV. | AA1: 2015.I. | AB1: II. | AC1: III. | AD1: IV. | AE1: 2016.I. | AF1: II. | AG1: III. | AH1: IV. | AI1: 2017.I. | AJ1: II. | AK1: III. | AL1: IV. | AM1: 2018.I. | AN1: II.
C2: 2009 Q1 | D2: Q2 | E2: Q3 | F2: Q4 | G2: 2010 Q1 | H2: Q2 | I2: Q3 | J2: Q4 | K2: 2011 Q1 | L2: Q2 | M2: Q3 | N2: Q4 | O2: 2012 Q1 | P2: Q2 | Q2: Q3 | R2: Q4 | S2: 2013 Q1 | T2: Q2 | U2: Q3 | V2: Q4 | W2: 2014 Q1 | X2: Q2 | Y2: Q3 | Z2: Q4 | AA2: 2015 Q1 | AB2: Q2 | AC2: Q3 | AD2: Q4 | AE2: 2016 Q1 | AF2: Q2 | AG2: Q3 | AH2: Q4 | AI2: 2017 Q1 | AJ2: Q2 | AK2: Q3 | AL2: Q4 | AM2: 2018 Q1 | AN2: Q2
A3: Guidotti-Greenspan mutató* | B3: Guidotti-Greenspan rule* | C3: 30.70557547 | D3: 30.04257761 | E3: 30.647064 | F3: 30.89279285 | G3: 33.12538862 | H3: 36.80961747 | I3: 36.33403902 | J3: 37.94699152 | K3: 33.60147502 | L3: 34.29626234 | M3: 38.75800952 | N3: 36.78420441 | O3: 36.85649165 | P3: 34.12435674 | Q3: 31.5254584 | R3: 28.55770408 | S3: 28.37578486 | T3: 28.48310832 | U3: 26.67858341 | V3: 28.30235113 | W3: 28.80577892 | X3: 27.08203298 | Y3: 24.3850848 | Z3: 21.53414213 | AA3: 23.39538849 | AB3: 24.39762538 | AC3: 22.48936369 | AD3: 21.72851224 | AE3: 20.73337908 | AF3: 19.80880031 | AG3: 18.4150097 | AH3: 18.60516299 | AI3: 20.57284129 | AJ3: 19.96393394 | AK3: 18.88082803 | AL3: 16.79062995 | AM3: 17.9061288 | AN3: 18.69899299
A4: Tartalékszint | B4: FX reserves | C4: 27.88961191 | D4: 26.94976908 | E4: 30.60275625 | F4: 30.67650301 | G4: 33.85242138 | H4: 35.17362834 | I4: 33.67591276 | J4: 33.67448431 | K4: 35.69202165 | L4: 37.00251761 | M4: 38.7636657 | N4: 37.77449579 | O4: 34.69650987 | P4: 35.5752599 | Q4: 34.57673155 | R4: 33.8813192 | S4: 35.46686275 | T4: 34.32914031 | U4: 30.81512803 | V4: 33.78247466 | W4: 36.19651417 | X4: 36.0799795 | Y4: 35.68395666 | Z4: 34.57827878 | AA4: 36.90773064 | AB4: 34.76098397 | AC4: 32.12660501 | AD4: 30.32211967 | AE4: 27.55099135 | AF4: 24.78480781 | AG4: 23.66056631 | AH4: 24.38385785 | AI4: 24.39832914 | AJ4: 23.46126139 | AK4: 22.2259414 | AL4: 23.3679393 | AM4: 23.0585561 | AN4: 24.06100634
O5: =+O4-O3 -> -2.159981776 | P5: 1.450903159 | Q5: 3.051273146 | R5: =+R4-R3 -> 5.323615124

Sheet 22.adat
C1: 2008. I. | D1: II. | E1: III. | F1: IV. | G1: 2009. I. | H1: II. | I1: III. | J1: IV. | K1: 2010. I. | L1: II. | M1: III. | N1: IV. | O1: 2011. I. | P1: II. | Q1: III. | R1: IV. | S1: 2012. I. | T1: II. | U1: III. | V1: IV. | W1: 2013. I. | X1: II. | Y1: III. | Z1: IV. | AA1: 2014. I. | AB1: II. | AC1: III. | AD1: IV. | AE1: 2015.I. | AF1: II. | AG1: III. | AH1: IV. | AI1: 2016.I. | AJ1: II. | AK1: III. | AL1: IV. | AM1: 2017.I. | AN1: II. | AO1: III. | AP1: IV. | AQ1: 2018. I. | AR1: II.
C2: 2008 Q1 | D2: Q2 | E2: Q3 | F2: Q4 | G2: 2009 Q1 | H2: Q2 | I2: Q3 | J2: Q4 | K2: 2010 Q1 | L2: Q2 | M2: Q3 | N2: Q4 | O2: 2011 Q1 | P2: Q2 | Q2: Q3 | R2: Q4 | S2: 2012 Q1 | T2: Q2 | U2: Q3 | V2: Q4 | W2: 2013 Q1 | X2: Q2 | Y2: Q3 | Z2: Q4 | AA2: 2014 Q1 | AB2: Q2 | AC2: Q3 | AD2: Q4 | AE2: 2015 Q1 | AF2: Q2 | AG2: Q3 | AH2: Q4 | AI2: 2016 Q1 | AJ2: Q2 | AK2: Q3 | AL2: Q4 | AM2: 2017 Q1 | AN2: Q2 | AO2: Q3 | AP2: Q4 | AQ2: 2018 Q1 | AR2: Q2
A3: Államháztartás | B3: General government | C3: -3.614103077 | D3: -3.465294854 | E3: -2.66713626 | F3: -3.365471987 | G3: -4.260432276 | H3: -4.568280019 | I3: -5.737060159 | J3: -4.523401751 | K3: -4.595551601 | L3: -5.514659268 | M3: -4.769055173 | N3: -4.477527842 | O3: -4.232068264 | P3: -3.914105633 | Q3: -4.377542485 | R3: -5.385827024 | S3: -4.694039001 | T3: -3.958678399 | U3: -3.338884478 | V3: -2.511140658 | W3: -2.438115237 | X3: -2.452290462 | Y3: -2.704040185 | Z3: -2.499391925 | AA3: -2.78445432 | AB3: -3.108987882 | AC3: -2.574592593 | AD3: -2.602100111 | AE3: -2.42846429 | AF3: -1.927051329 | AG3: -2.067725994 | AH3: -1.990224947 | AI3: -0.7297315122 | AJ3: -0.42389402 | AK3: 0.1249777211 | AL3: -1.705529481 | AM3: -1.492593188 | AN3: -1.50222126 | AO3: -2.479944125 | AP3: -1.690574594 | AQ3: -2.487520712 | AR3: -2.915371298
A4: Háztartás | B4: Household sector | C4: 1.48228059 | D4: 1.167461001 | E4: 0.6473331496 | F4: 1.059542253 | G4: 2.022362418 | H4: 2.690004118 | I4: 3.645578598 | J4: 3.451540844 | K4: 3.4034474 | L4: 4.356644555 | M4: 4.661555325 | N4: 4.333672647 | O4: 4.471272503 | P4: 4.203729634 | Q4: 4.109177419 | R4: 5.27292093 | S4: 4.98998693 | T4: 5.147035185 | U4: 5.528823711 | V4: 5.095315448 | W4: 5.217483965 | X4: 5.242998869 | Y4: 4.901549542 | Z4: 4.862519443 | AA4: 5.254511871 | AB4: 5.362487591 | AC4: 5.569410269 | AD4: 5.461998883 | AE4: 6.89270123 | AF4: 7.166176253 | AG4: 7.530896557 | AH4: 7.706128433 | AI4: 5.925362928 | AJ4: 5.578956049 | AK4: 4.874102741 | AL4: 4.480894018 | AM4: 4.266011551 | AN4: 4.358394792 | AO4: 4.558249527 | AP4: 5.083399047 | AQ4: 5.520139174 | AR4: 5.733036507
A5: Vállalat | B5: Corporate sector | C5: -4.726478114 | D5: -4.285545376 | E5: -5.769404493 | F5: -6.034633975 | G5: -3.850017258 | H5: -1.185242083 | I5: 0.8605911884 | J5: 1.6843894 | K5: 2.462530421 | L5: 1.688425966 | M5: 1.012155515 | N5: 1.381074086 | O5: 0.5370755907 | P5: -0.1114881353 | Q5: 0.6538093871 | R5: 0.951462419 | S5: 0.332387095 | T5: 1.312982791 | U5: 1.964790165 | V5: 2.283052334 | W5: 3.935178967 | X5: 3.629070971 | Y5: 4.104706562 | Z5: 3.95734081 | AA5: 2.466387561 | AB5: 1.738720692 | AC5: 0.4938756953 | AD5: 1.299304191 | AE5: 0.3548388724 | AF5: 0.5574365512 | AG5: 0.2768554128 | AH5: 0.3754809206 | AI5: 0.6962694048 | AJ5: 0.9490576504 | AK5: 0.8135865371 | AL5: 0.6576363828 | AM5: -0.0409840403 | AN5: -0.1086000972 | AO5: -0.8189845416 | AP5: -1.311697452 | AQ5: -0.4127607639 | AR5: -1.017937829
A6: Külső finanszírozási képesség (finanszírozás alapján) | B6: Net lending (from the financial account side) | C6: -6.858300601 | D6: -6.583379229 | E6: -7.789207604 | F6: -8.340563709 | G6: -6.088087115 | H6: -3.063517984 | I6: -1.230890372 | J6: 0.6125284937 | K6: 1.27042622 | L6: 0.5304112533 | M6: 0.9046556672 | N6: 1.237218891 | O6: 0.7762798289 | P6: 0.1781358653 | Q6: 0.3854443209 | R6: 0.8385563246 | S6: 0.6283350243 | T6: 2.501339578 | U6: 4.154729398 | V6: 4.867227123 | W6: 6.714547694 | X6: 6.419779378 | Y6: 6.302215919 | Z6: 6.320468328 | AA6: 4.936445113 | AB6: 3.992220401 | AC6: 3.488693371 | AD6: 4.159202964 | AE6: 4.863359372 | AF6: 5.877834667 | AG6: 5.867895707 | AH6: 6.224857722 | AI6: 5.995543798 | AJ6: 6.246875949 | AK6: 5.901432225 | AL6: 3.588585675 | AM6: 2.769353116 | AN6: 2.845600583 | AO6: 1.488119676 | AP6: 1.934888193 | AQ6: 3.062210007 | AR6: 1.79972738

Sheet 23.adat
C1: 2008-03-31 | D1: 2008-06-30 | E1: 2008-09-30 | F1: 2008-12-31 | G1: 2009-03-31 | H1: 2009-06-30 | I1: 2009-09-30 | J1: 2009-12-31 | K1: 2010-03-31 | L1: 2010-06-30 | M1: 2010-09-30 | N1: 2010-12-31 | O1: 2011-03-31 | P1: 2011-06-30 | Q1: 2011-09-30 | R1: 2011-12-31 | S1: 2012-03-31 | T1: 2012-06-30 | U1: 2012-09-30 | V1: 2012-12-31 | W1: 2013-03-31 | X1: 2013-06-30 | Y1: 2013-09-30 | Z1: 2013-12-31 | AA1: 2014-03-31 | AB1: 2014-06-30 | AC1: 2014-09-30 | AD1: 2014-12-31 | AE1: 2015-03-31 | AF1: 2015-06-30 | AG1: 2015-09-30 | AH1: 2015-12-31 | AI1: 2016-03-31 | AJ1: 2016-06-30 | AK1: 2016-09-30 | AL1: 2016-12-31 | AM1: 2017-03-31 | AN1: 2017-06-30 | AO1: 2017-09-30 | AP1: 2017-12-31 | AQ1: 2018-03-31 | AR1: 2018-06-30
A2: Basic data GDP! | C2: 2008.I. | D2: II. | E2: III. | F2: IV. | G2: 2009.I. | H2: II. | I2: III. | J2: IV. | K2: 2010.I. | L2: II. | M2: III. | N2: IV. | O2: 2011.I. | P2: II. | Q2: III. | R2: IV. | S2: 2012.I. | T2: II. | U2: III. | V2: IV. | W2: 2013.I. | X2: II. | Y2: III. | Z2: IV. | AA2: 2014.I. | AB2: II. | AC2: III. | AD2: IV. | AE2: 2015.I. | AF2: II. | AG2: III. | AH2: IV. | AI2: 2016.I. | AJ2: II. | AK2: III. | AL2: IV. | AM2: 2017.I. | AN2: II. | AO2: III. | AP2: IV. | AQ2: 2018. I. | AR2: II.
C3: 2008 Q1 | D3: Q2 | E3: Q3 | F3: Q4 | G3: 2009 Q1 | H3: Q2 | I3: Q3 | J3: Q4 | K3: 2010 Q1 | L3: Q2 | M3: Q3 | N3: Q4 | O3: 2011 Q1 | P3: Q2 | Q3: Q3 | R3: Q4 | S3: 2012 Q1 | T3: Q2 | U3: Q3 | V3: Q4 | W3: 2013 Q1 | X3: Q2 | Y3: Q3 | Z3: Q4 | AA3: 2014 Q1 | AB3: Q2 | AC3: Q3 | AD3: Q4 | AE3: 2015 Q1 | AF3: Q2 | AG3: Q3 | AH3: Q4 | AI3: 2016 Q1 | AJ3: Q2 | AK3: Q3 | AL3: Q4 | AM3: 2017 Q1 | AN3: Q2 | AO3: Q3 | AP3: Q4 | AQ3: 2018 Q1 | AR3: Q2
A4: Nettó finanszírozási képesség | B4: Net lending | C4: 0.1293395385 | D4: -0.05175947741 | E4: -0.07600340826 | F4: 1.257884762 | G4: 1.485244784 | H4: 1.45273429 | I4: 2.271116814 | J4: 2.288571915 | K4: 2.278896553 | L4: 3.462538103 | M4: 3.277181713 | N4: 3.048506346 | O4: 4.723102076 | P4: 3.814109237 | Q4: 4.472008156 | R4: 4.693652534 | S4: 3.78103934 | T4: 4.844937436 | U4: 4.751950669 | V4: 5.062079401 | W4: 4.919861724 | X4: 5.107216387 | Y4: 4.785076726 | Z4: 5.239643814 | AA4: 5.203447078 | AB4: 5.16110456 | AC4: 5.197925728 | AD4: 4.785451511 | AE4: 5.528500588 | AF4: 4.884820297 | AG4: 5.771810926 | AH4: 5.035904489 | AI4: 5.285244783 | AJ4: 4.814231134 | AK4: 4.399587938 | AL4: 4.444936788 | AM4: 4.236041949 | AN4: 5.073891911 | AO4: 5.061680722 | AP4: 5.753855082 | AQ4: 5.673211198 | AR4: 5.806401572
A5: Követelés | B5: Assets | C5: 5.450679895 | D5: 4.885926154 | E5: 5.122459515 | F5: 5.424348934 | G5: 2.502387127 | H5: 1.11730592 | I5: 2.133994744 | J5: 2.33794818 | K5: 1.978852106 | L5: 2.467438556 | M5: 2.419952139 | N5: 1.731264121 | O5: 3.525949403 | P5: 2.51080358 | Q5: 2.9577974 | R5: 3.344937138 | S5: 1.769704344 | T5: 3.291399723 | U5: 3.021953516 | V5: 3.395078231 | W5: 3.548214076 | X5: 3.46998182 | Y5: 3.51931396 | Z5: 3.664549148 | AA5: 4.168996886 | AB5: 4.087052259 | AC5: 4.242627367 | AD5: 3.958898026 | AE5: 4.494717042 | AF5: 3.813644954 | AG5: 4.405615209 | AH5: 4.266847995 | AI5: 4.006267687 | AJ5: 4.638200342 | AK5: 4.243245506 | AL5: 4.766419849 | AM5: 4.854923698 | AN5: 4.955872798 | AO5: 5.012127101 | AP5: 6.864201165 | AQ5: 6.763354168 | AR5: 7.174105653
A6: Tartozás | B6: Liabilities | C6: 5.794518834 | D6: 5.716415401 | E6: 5.967910359 | F6: 3.622151865 | G6: 0.5142292661 | H6: 0.4344106772 | I6: -0.02979031633 | J6: -0.04203758774 | K6: -0.1744285018 | L6: -0.8902131122 | M6: -0.8470858399 | N6: -1.099819781 | O6: -1.357443411 | P6: -1.127289298 | Q6: -1.240943138 | R6: -1.338716978 | S6: -1.373374011 | T6: -1.405587873 | U6: -1.674883203 | V6: -1.445901075 | W6: -1.465684051 | X6: -1.429655045 | Y6: -1.218368002 | Z6: -1.492003648 | AA6: -1.014772382 | AB6: -0.9802982224 | AC6: -0.7948388888 | AD6: -0.6586464204 | AE6: -0.9389126217 | AF6: -1.075579 | AG6: -1.104902779 | AH6: -1.109754684 | AI6: -0.6846682241 | AJ6: 0.06397553466 | AK6: 0.4006294234 | AL6: 1.325858511 | AM6: 0.9041319464 | AN6: 0.5496540171 | AO6: 0.6119777759 | AP6: 0.2549203688 | AQ6: 0.7155944041 | AR6: 1.057666225

Sheet 24.adat
A1: Tranzakciók | C1: 2008.I. | D1: II. | E1: III. | F1: IV. | G1: 2009.I. | H1: II. | I1: III. | J1: IV. | K1: 2010.I. | L1: II. | M1: III. | N1: IV. | O1: 2011.I. | P1: II. | Q1: III. | R1: IV. | S1: 2012.I. | T1: II. | U1: III. | V1: IV. | W1: 2013.I. | X1: II. | Y1: III. | Z1: IV. | AA1: 2014.I. | AB1: II. | AC1: III. | AD1: IV. | AE1: 2015.I. | AF1: II. | AG1: III. | AH1: IV. | AI1: 2016.I. | AJ1: II. | AK1: III. | AL1: IV. | AM1: 2017.I. | AN1: II. | AO1: III. | AP1: IV. | AQ1: 2018. I. | AR1: II.
C2: 2008 Q1 | D2: Q2 | E2: Q3 | F2: Q4 | G2: 2009 Q1 | H2: Q2 | I2: Q3 | J2: Q4 | K2: 2010 Q1 | L2: Q2 | M2: Q3 | N2: Q4 | O2: 2011 Q1 | P2: Q2 | Q2: Q3 | R2: Q4 | S2: 2012 Q1 | T2: Q2 | U2: Q3 | V2: Q4 | W2: 2013 Q1 | X2: Q2 | Y2: Q3 | Z2: Q4 | AA2: 2014 Q1 | AB2: Q2 | AC2: Q3 | AD2: Q4 | AE2: 2015 Q1 | AF2: Q2 | AG2: Q3 | AH2: Q4 | AI2: 2016 Q1 | AJ2: Q2 | AK2: Q3 | AL2: Q4 | AM2: 2017 Q1 | AN2: Q2 | AO2: Q3 | AP2: Q4 | AQ2: 2018 Q1 | AR2: Q2
A9: Betét | B9: Deposits | C9: 25.327 | D9: 117.161 | E9: 261.842 | F9: 851.283 | G9: 784.766 | H9: 942.105 | I9: 1073.853 | J9: 1228.285 | K9: 1020.36 | L9: 856.15 | M9: 760.729 | N9: 968.021 | O9: 1032.297 | P9: 1072.14 | Q9: 1236.915 | R9: 1361.632 | S9: 1236.398 | T9: 1323.103 | U9: 1338.744 | V9: 1520.475 | W9: 1397.917 | X9: 1128.168 | Y9: 725.162 | Z9: 753.293 | AA9: 521.884 | AB9: 472.799 | AC9: 438.926 | AD9: 739.921 | AE9: 799.789 | AF9: 772.35 | AG9: 726.133 | AH9: 1033.467 | AI9: 934.823 | AJ9: 994.799 | AK9: 1028.179 | AL9: 1360.334 | AM9: 1320.557 | AN9: 1528.236 | AO9: 1527.99 | AP9: 1775.232 | AQ9: 1987.86 | AR9: 2238.271
A10: Állampapír | B10: Goverment securities | C10: 22.215 | D10: 32.196 | E10: 3.655 | F10: 58.993 | G10: 13.608 | H10: -50.936 | I10: -124.423 | J10: -166.278 | K10: -187.825 | L10: -188.827 | M10: -192.032 | N10: -177.74 | O10: -169.063 | P10: -175.678 | Q10: -173.95 | R10: -158.1 | S10: -104.526 | T10: 6.445 | U10: 148.428 | V10: 326.618 | W10: 512.148 | X10: 662.178 | Y10: 950.434 | Z10: 1068.977 | AA10: 1219.915 | AB10: 1364.507 | AC10: 1327.264 | AD10: 1382.463 | AE10: 1506.697 | AF10: 1746.659 | AG10: 1964.404 | AH10: 2218.956 | AI10: 2567.788 | AJ10: 2790.9 | AK10: 2955.272 | AL10: 3246.51 | AM10: 3513.983 | AN10: 3631.932 | AO10: 3835.071 | AP10: 4097.594 | AQ10: 4208.136 | AR10: 4349.76
A11: Befektetési jegy | B11: Mutual funds | C11: 26.165 | D11: -14.599 | E11: -38.376 | F11: -379.05 | G11: -476.11 | H11: -540.979 | I11: -536.509 | J11: -380.531 | K11: -213.951 | L11: -69.989 | M11: -3.064 | N11: 5.307 | O11: 6.968 | P11: 38.963 | Q11: 16.305 | R11: -70.24 | S11: -202.446 | T11: -172.071 | U11: -89.3 | V11: -10.203 | W11: 263.554 | X11: 506.175 | Y11: 605.191 | Z11: 855.499 | AA11: 1051.948 | AB11: 1145.231 | AC11: 1318.321 | AD11: 1404.686 | AE11: 1428.23 | AF11: 1365.979 | AG11: 1353.345 | AH11: 1386.365 | AI11: 1285.564 | AJ11: 1237.106 | AK11: 1247.044 | AL11: 1245.201 | AM11: 1219.035 | AN11: 1256.159 | AO11: 1259.364 | AP11: 1332.867 | AQ11: 1346.313 | AR11: 1314.603
A12: Készpénz (forint) | B12: Cash | C12: -4.299 | D12: -57.036 | E12: -68.318 | F12: 57.628 | G12: 142.832 | H12: 43.635 | I12: -26.233 | J12: 30.863 | K12: -24.207 | L12: 126.251 | M12: 143.677 | N12: 184.224 | O12: 89.049 | P12: 137.06 | Q12: 301.197 | R12: 471.801 | S12: 384.648 | T12: 376.963 | U12: 264.963 | V12: 372.07 | W12: 419.438 | X12: 490.045 | Y12: 628.531 | Z12: 753.783 | AA12: 869.201 | AB12: 954.462 | AC12: 1082.516 | AD12: 1208.992 | AE12: 1217.121 | AF12: 1386.371 | AG12: 1514.042 | AH12: 1654.506 | AI12: 1541.451 | AJ12: 1674.85 | AK12: 1688.986 | AL12: 1808.612 | AM12: 1807.79 | AN12: 1922.514 | AO12: 2009.013 | AP12: 2216.654 | AQ12: 2295.884 | AR12: 2586.469

Sheet 25.ábra
B1: 2005 | C1: 2006 | D1: 2007 | E1: 2008 | F1: 2009 | G1: 2010 | H1: 2011 | I1: 2012 | J1: 2013 | K1: 2014 | L1: 2015 | M1: 2016 | N1: 2017
A2: Nyereség | B2: 4.720530428 | C2: 5.662717298 | D2: 6.337922651 | E2: 4.575243364 | F2: 3.524529021 | G2: 3.917962323 | H2: 4.559338198 | I2: 4.73049354 | J2: 4.389405216 | K2: 6.206253304 | L2: 6.650459326 | M2: 6.028319808 | N2: 7.384035517
A3: Osztalék | B3: 2.629264429 | C3: 4.145220276 | D3: 4.07443061 | E3: 3.682779555 | F3: 3.861023982 | G3: 4.093733263 | H3: 3.224050296 | I3: 3.321173844 | J3: 2.878372281 | K3: 2.587888611 | L3: 3.041798811 | M3: 2.518562165 | N3: 2.323841346
A4: Újrabefektetés | B4: 2.091266 | C4: 1.517497022 | D4: 2.263492041 | E4: 0.8924638098 | F4: -0.336494961 | G4: -0.1757709398 | H4: 1.335287903 | I4: 1.409319696 | J4: 1.511032936 | K4: 3.618364693 | L4: 3.608660515 | M4: 3.509757643 | N4: 5.06019417

Sheet 26.ábra
B1: 2004 | C1: 2005 | D1: 2006 | E1: 2007 | F1: 2008 | G1: 2009 | H1: 2010 | I1: 2011 | J1: 2012 | K1: 2013 | L1: 2014 | M1: 2015 | N1: 2016 | O1: 2017
A2: FDI arányos jövedelem - bankok | B2: 15.89738957 | C2: 15.10009685 | D2: 12.56721141 | E2: 13.20726596 | F2: 9.448818677 | G2: 12.11166949 | H2: 13.48201823 | I2: 16.45450989 | J2: 6.433302069 | K2: 3.890326328 | L2: 11.05389415 | M2: 6.967170235 | N2: 5.900526955 | O2: 8.78899918
A3: FDI arányos jövedelem - nem pénzügyi vállalatok | B3: 9.726712734 | C3: 8.498244036 | D3: 9.853579698 | E3: 10.7390567 | F3: 8.164026568 | G3: 5.22328034 | H3: 5.811761501 | I3: 6.53833859 | J3: 7.360701406 | K3: 6.854287083 | L3: 9.218613277 | M3: 8.975592177 | N3: 9.874250046 | O3: 12.29311322
A4: Osztalékhányad - bankok (j.t.) | B4: 12.7669549 | C4: 29.19759482 | D4: 50.01854821 | E4: 43.09985585 | F4: 45.70106341 | G4: 31.97990032 | H4: 32.04866608 | I4: 29.04879903 | J4: 49.82126004 | K4: 56.26816497 | L4: 19.36535789 | M4: 37.48771584 | N4: 34.86851706 | O4: 25.69093459
A5: Osztalékhányad - nem pénzügyi vállalatok (j.t.) | B5: 50.34721803 | C5: 59.81364173 | D5: 75.81413746 | E5: 67.23324498 | F5: 84.81606666 | G5: 128.0857881 | H5: 120.2645713 | I5: 78.14815192 | J5: 71.55643518 | K5: 65.96725587 | L5: 43.16670749 | M5: 46.0359674 | N5: 42.06993253 | O5: 31.77769121

Sheet 27.ábra
B1: 2005 | C1: 2006 | D1: 2007 | E1: 2008 | F1: 2009 | G1: 2010 | H1: 2011 | I1: 2012 | J1: 2013 | K1: 2014 | L1: 2015 | M1: 2016 | N1: 2017
A2: Export | B2: 12.33726569 | C2: 27.17562431 | D2: 11.53653973 | E2: 7.721278871 | F2: -8.807433594 | G2: 13.29975156 | H2: 10.21374837 | I2: 1.284031864 | J2: 4.18618022 | K2: 10.26123495 | L2: 8.389098694 | M2: 2.420717214 | N2: 8.466583442
A3: Külföldi tulajdonú vállalatok nyeresége | B3: 4.515330478 | C3: 28.98333812 | D3: 18.49072974 | E3: -23.5573365 | F3: -25.14372799 | G3: 14.52812964 | H3: 20.98799205 | I3: 5.499228306 | J3: -2.484020278 | K3: 52.35180257 | L3: 12.85329465 | M3: -6.459898323 | N3: 32.04390469

Sheet 28.ábra
C1: Nyereséghányad átlagos növekedése | D1: Nyereséghányad növekedése (2016-ról 2017-re)
C2: 2.443562221 | D2: -19.12047418
C3: 2.443562221 | D3: -11.39171392
A4: Járműgyártás | B4: Total vehicle | C4: 2.443562221 | D4: -6.53493247
C5: 2.443562221 | D5: -4.92894816
C6: 2.443562221 | D6: -4.365205831
C7: 2.443562221 | D7: -3.821349591
A8: Gumi termék gyártása | B8: Plastic products | C8: 2.443562221 | D8: -2.563499963
C9: 2.443562221 | D9: -2.157123053
C10: 2.443562221 | D10: -1.40428143
A11: Elektronika gyártása | B11: Electricity supply | C11: 2.443562221 | D11: -1.056648601
C12: 2.443562221 | D12: -0.5429048779
C13: 2.443562221 | D13: -0.1928147728
C14: 2.443562221 | D14: 0.03801012073
C15: 2.443562221 | D15: 0.6037988269
C16: 2.443562221 | D16: 0.9546649364
C17: 2.443562221 | D17: 1.392191335
C18: 2.443562221 | D18: 1.838512972
C19: 2.443562221 | D19: 1.948734984
A20: Gyógyszergyártás | B20: Pharmaceutical products | C20: 2.443562221 | D20: 2.078772204
C21: 2.443562221 | D21: 2.148157412
C22: 2.443562221 | D22: 2.391761879
A23: Kereskedelem, javítás | B23: Wholesale and repair | C23: 2.443562221 | D23: 2.405854885
C24: 2.443562221 | D24: 2.702370619
A25: Monetáris közvetítés | B25: Monetary intermediation | C25: 2.443562221 | D25: 2.894405527
A26: Vezetői tanácsadás | B26: Management consultancy | C26: 2.443562221 | D26: 3.399991748
C27: 2.443562221 | D27: 3.433135562
C28: 2.443562221 | D28: 3.561067521
A29: Távközlés | B29: Telecommunication | C29: 2.443562221 | D29: 3.682988583
A30: Ingatlanügyletek | B30: Real estate activities | C30: 2.443562221 | D30: 6.162356723
C31: 2.443562221 | D31: 14.17512206
A32: Egyéb üzleti szolgáltatás | B32: Other business services | C32: 2.443562221 | D32: 14.25061701
C33: 2.443562221 | D33: 20.10805109
C34: 2.443562221 | D34: 21.0993074

Sheet 29.ábra
B1: 2008 | C1: 2009 | D1: 2010 | E1: 2011 | F1: 2012 | G1: 2013 | H1: 2014 | I1: 2015 | J1: 2016 | K1: 2017
A2: Vegyi anyag, termék gyártása | B2: 12.29659938 | C2: 17.31030787 | D2: 13.71920715 | E2: 26.52999926 | F2: 26.47963841 | G2: 31.09584325 | H2: 35.30305589 | I2: 38.32276714 | J2: 40.80688803 | K2: 180.5047433
A3: Gyógyszergyártás | B3: 17.42640409 | C3: 34.16281174 | D3: 59.5873335 | E3: 57.40894372 | F3: 61.47159043 | G3: 80.90163402 | H3: 161.6695226 | I3: 184.0003454 | J3: 228.0126411 | K3: 268.6243648
A4: Járműgyártás | B4: 209.540724 | C4: 129.8091625 | D4: 251.1201234 | E4: 297.0344805 | F4: 60.30305969 | G4: 110.9921491 | H4: 163.4657396 | I4: 192.183587 | J4: 204.599373 | K4: 273.8740394
A5: Egyéb monetáris közvetítés | B5: 138.0643737 | C5: 179.2765674 | D5: 190.7680055 | E5: 195.4249383 | F5: 82.85290276 | G5: 53.63243812 | H5: 124.9870193 | I5: 79.52164494 | J5: 86.23309172 | K5: 141.9911793
A6: Egyéb kiegészítő üzleti szolgáltatás | B6: 24.96621919 | C6: 146.3913388 | D6: 45.34340068 | E6: 87.50118218 | F6: 169.1286067 | G6: 166.9224561 | H6: 288.1686503 | I6: 433.80132 | J6: 43.71937191 | K6: 239.3269823
A7: Egyéb | B7: 841.8804318 | C7: 424.3926484 | D7: 506.1114612 | E7: 626.6183063 | F7: 961.2505753 | G7: 884.122255 | H7: 1249.130277 | I7: 1354.88131 | J7: 1531.878801 | K7: 1715.146386
B8: 1244.174752

Sheet 30.ábra
B1: 2004 | C1: 2005 | D1: 2006 | E1: 2007 | F1: 2008 | G1: 2009 | H1: 2010 | I1: 2011 | J1: 2012 | K1: 2013 | L1: 2014 | M1: 2015 | N1: 2016 | O1: 2017
A2: Külföldön működő magyar vállalatok nyeresége | B2: 0.7017279984 | C2: 0.5851934818 | D2: 1.193829085 | E2: 1.143527954 | F2: 0.4191219077 | G2: 0.6095748308 | H2: 0.6426035938 | I2: 0.8549124116 | J2: 1.298513177 | K2: 1.063068291 | L2: 1.220297494 | M2: 0.8123011463 | N2: 1.467373874 | O2: 1.622123411
A3: Külföldön működő magyar bankok nyeresége | I3: 0.104403369 | J3: 0.1613856067 | K3: 0.06883524946 | L3: 0.2301843867 | M3: 0.1858918402 | N3: 0.2108961566 | O3: 0.2822165063
A4: Külföldön működő magyar nem pénzügyi vállalatok nyeresége | I4: 0.7505090426 | J4: 1.13712757 | K4: 0.9942330411 | L4: 0.9901131074 | M4: 0.6264093061 | N4: 1.256477718 | O4: 1.339906904

Sheet 31.ábra
B1: 2008 | C1: 2009 | D1: 2010 | E1: 2011 | F1: 2012 | G1: 2013 | H1: 2014 | I1: 2015 | J1: 2016 | K1: 2017
A2: Fizetési mérleg szerinti eredmény | B2: 4.575243364 | C2: 3.524529021 | D2: 3.917962323 | E2: 4.559338198 | F2: 4.73049354 | G2: 4.389405216 | H2: 6.206253304 | I2: 6.650459326 | J2: 6.028319808 | K2: 7.384035517
A3: Adózott eredmény | B3: 3.41344856 | C3: 1.552943273 | D3: 1.562460131 | E3: -0.329526563 | F3: 2.686196915 | G3: 2.88765647 | H3: 3.148500238 | I3: 12.87480986 | J3: -2.660463179 | K3: 5.237689837
A4: Nem normál üzletmenethez tartozó tételek eredménye | B4: -1.161794804 | C4: -1.971585749 | D4: -2.355502192 | E4: -4.888864762 | F4: -2.044296625 | G4: -1.501748746 | H4: -3.057753065 | I4: 6.22435053 | J4: -8.688782987 | K4: -2.14634568

Sheet 32.ábra
A1: FDI változás felbontása | B1: 2007 | C1: 2008 | D1: 2009 | E1: 2010 | F1: 2011 | G1: 2012 | H1: 2013 | I1: 2014 | J1: 2015 | K1: 2016 | L1: 2017
A2: Tranzakció | B2: 0 | C2: 2.411273925 | D2: 2.564349246 | E2: 3.32609633 | F2: 4.297783666 | G2: 6.39236173 | H2: 7.530149087 | I2: 10.47812217 | J2: 11.6910829 | K2: 14.28846006 | L2: 15.92341225
A3: Átértékelődés | B3: 0 | C3: -1.983721991 | D3: 4.098326806 | E3: 2.815872837 | F3: 1.050764088 | G3: 5.549621304 | H3: 4.756344584 | I3: 1.916033305 | J3: -7.407185355 | K3: 7.484187625 | L3: 7.459604727
A4: Nem normál üzletmenet eredményei | B4: 0 | C4: -1.683 | D4: -3.433 | E4: -5.72 | F4: -10.434 | G4: -12.22 | H4: -13.059 | I4: -16.039 | J4: -11.12495659 | K4: -20.93992162 | L4: -23.69084321
A5: Nettó FDI állomány | B5: 49.69321458 | C5: 48.35875383 | D5: 53.64307178 | E5: 51.29701353 | F5: 45.62049296 | G5: 50.28318887 | H5: 51.03651695 | I5: 48.47858187 | J5: 45.08166907 | K5: 52.58443644 | L5: 51.07699126

Sheet 33.ábra
B1: 2004 | C1: 2005 | D1: 2006 | E1: 2007 | F1: 2008 | G1: 2009 | H1: 2010 | I1: 2011 | J1: 2012 | K1: 2013 | L1: 2014 | M1: 2015 | N1: 2016 | O1: 2017*
A2: Magyarország | B2: 10.77448664 | C2: 9.882282735 | D2: 10.72615649 | E2: 11.53372151 | F2: 8.487122544 | G2: 6.094129161 | H2: 6.631701428 | I2: 8.043855297 | J2: 7.599635731 | K2: 6.877027479 | L2: 9.314032166 | M2: 8.885655692 | N2: 9.624422363 | O2: 11.70943543
A3: Csehország | B3: 12.75756819 | C3: 11.1826507 | D3: 12.85116458 | E3: 15.60720041 | F3: 12.43766905 | G3: 11.81532841 | H3: 12.6262904 | I3: 12.49346276 | J3: 12.04659527 | K3: 12.3068224 | L3: 12.83468609 | M3: 12.55166845 | N3: 12.53688423 | O3: 12.11162981
A4: Lengyelország | B4: 14.12560695 | C4: 11.15467359 | D4: 12.9208952 | E4: 13.35599852 | F4: 8.386740382 | G4: 9.22198298 | H4: 10.47704765 | I4: 11.17738016 | J4: 9.139817047 | K4: 8.984078451 | L4: 10.41187578 | M4: 11.18973998 | N4: 12.27337665 | O4: 10.1234711
A5: Szlovákia | B5: 13.95908417 | C5: 12.3484246 | D5: 13.86172906 | E5: 12.85785945 | F5: 9.119867303 | G5: 7.361302607 | H5: 11.13641368 | I5: 12.1348308 | J5: 8.477481278 | K5: 6.091399359 | L5: 7.800107551 | M5: 10.32301533 | N5: 8.64517419 | O5: 10.04196484

Sheet 34.ábra
B1: Hungary | P1: Czech. Rep. | AD1: Poland | AR1: Slovakia
B2: 2004 | C2: 2005 | D2: 2006 | E2: 2007 | F2: 2008 | G2: 2009 | H2: 2010 | I2: 2011 | J2: 2012 | K2: 2013 | L2: 2014 | M2: 2015 | N2: 2016 | O2: 2017 | P2: 2004 | Q2: 2005 | R2: 2006 | S2: 2007 | T2: 2008 | U2: 2009 | V2: 2010 | W2: 2011 | X2: 2012 | Y2: 2013 | Z2: 2014 | AA2: 2015 | AB2: 2016 | AC2: 2017* | AD2: 2004 | AE2: 2005 | AF2: 2006 | AG2: 2007 | AH2: 2008 | AI2: 2009 | AJ2: 2010 | AK2: 2011 | AL2: 2012 | AM2: 2013 | AN2: 2014 | AO2: 2015 | AP2: 2016 | AQ2: 2017* | AR2: 2004 | AS2: 2005 | AT2: 2006 | AU2: 2007 | AV2: 2008 | AW2: 2009 | AX2: 2010 | AY2: 2011 | AZ2: 2012 | BA2: 2013 | BB2: 2014 | BC2: 2015 | BD2: 2016 | BE2: 2017*
B3: Magyarország | P3: Csehország | AD3: Lengyelország | AR3: Szlovákia
B4: 2004 | C4: 2005 | D4: 2006 | E4: 2007 | F4: 2008 | G4: 2009 | H4: 2010 | I4: 2011 | J4: 2012 | K4: 2013 | L4: 2014 | M4: 2015 | N4: 2016 | O4: 2017 | P4: 2004 | Q4: 2005 | R4: 2006 | S4: 2007 | T4: 2008 | U4: 2009 | V4: 2010 | W4: 2011 | X4: 2012 | Y4: 2013 | Z4: 2014 | AA4: 2015 | AB4: 2016 | AC4: 2017* | AD4: 2004 | AE4: 2005 | AF4: 2006 | AG4: 2007 | AH4: 2008 | AI4: 2009 | AJ4: 2010 | AK4: 2011 | AL4: 2012 | AM4: 2013 | AN4: 2014 | AO4: 2015 | AP4: 2016 | AQ4: 2017* | AR4: 2004 | AS4: 2005 | AT4: 2006 | AU4: 2007 | AV4: 2008 | AW4: 2009 | AX4: 2010 | AY4: 2011 | AZ4: 2012 | BA4: 2013 | BB4: 2014 | BC4: 2015 | BD4: 2016 | BE4: 2017*
A5: Osztalék | B5: 4.853365024 | C5: 5.46659401 | D5: 7.92415736 | E5: 7.483791381 | F5: 6.955279116 | G5: 6.445038004 | H5: 6.950219146 | I5: 5.911512471 | J5: 5.243402471 | K5: 4.520861036 | L5: 3.883772799 | M5: 4.064136866 | N5: 4.020972144 | O5: 3.685094707 | P5: 6.305736289 | Q5: 5.399622765 | R5: 7.204082007 | S5: 8.289721855 | T5: 10.16103053 | U5: 8.561498977 | V5: 9.186058502 | W5: 10.64751466 | X5: 8.715999678 | Y5: 8.590875582 | Z5: 9.810679393 | AA5: 9.784019147 | AB5: 9.572443256 | AC5: 7.549141312 | AD5: 4.301832039 | AE5: 6.716211338 | AF5: 6.836742869 | AG5: 6.232435096 | AH5: 9.197090724 | AI5: 5.551625141 | AJ5: 5.882986527 | AK5: 6.466478904 | AL5: 5.695062896 | AM5: 6.388121753 | AN5: 5.343217568 | AO5: 5.741139327 | AP5: 6.291851828 | AQ5: 4.814052846 | AR5: 4.847212035 | AS5: 8.308510686 | AT5: 9.513989522 | AU5: 10.33357184 | AV5: 8.43471785 | AW5: 7.192239512 | AX5: 7.404774636 | AY5: 7.198304621 | AZ5: 7.023110549 | BA5: 6.65537579 | BB5: 8.672565331 | BC5: 8.347950041 | BD5: 7.803271424 | BE5: 7.419426445
A6: Újrabefektetés | B6: 5.921121611 | C6: 4.415688725 | D6: 2.801999133 | E6: 4.049930124 | F6: 1.531843428 | G6: -0.3509088433 | H6: -0.3185177179 | I6: 2.132342826 | J6: 2.35623326 | K6: 2.356166443 | L6: 5.430259367 | M6: 4.821518827 | N6: 5.603450219 | O6: 8.024340725 | P6: 6.451831898 | Q6: 5.783027931 | R6: 5.647082576 | S6: 7.317478556 | T6: 2.276638517 | U6: 3.253829436 | V6: 3.4402319 | W6: 1.845948108 | X6: 3.330595593 | Y6: 3.71594682 | Z6: 3.024006702 | AA6: 2.767649308 | AB6: 2.964440974 | AC6: 4.5624885 | AD6: 9.823774911 | AE6: 4.438462248 | AF6: 6.084152334 | AG6: 7.123563421 | AH6: -0.8103503427 | AI6: 3.670357839 | AJ6: 4.594061119 | AK6: 4.710901259 | AL6: 3.44475415 | AM6: 2.595956698 | AN6: 5.068658208 | AO6: 5.448600653 | AP6: 5.981524823 | AQ6: 5.309418253 | AR6: 9.111872134 | AS6: 4.039913918 | AT6: 4.347739542 | AU6: 2.524287601 | AV6: 0.6851494533 | AW6: 0.169063095 | AX6: 3.73163904 | AY6: 4.936526179 | AZ6: 1.45437073 | BA6: -0.563976431 | BB6: -0.8724577803 | BC6: 1.975065288 | BD6: 0.8419027651 | BE6: 2.622538397
A7: Profit | B7: 10.77448664 | C7: 9.882282735 | D7: 10.72615649 | E7: 11.53372151 | F7: 8.487122544 | G7: 6.094129161 | H7: 6.631701428 | I7: 8.043855297 | J7: 7.599635731 | K7: 6.877027479 | L7: 9.314032166 | M7: 8.885655692 | N7: 9.624422363 | O7: 11.70943543 | P7: 12.75756819 | Q7: 11.1826507 | R7: 12.85116458 | S7: 15.60720041 | T7: 12.43766905 | U7: 11.81532841 | V7: 12.6262904 | W7: 12.49346276 | X7: 12.04659527 | Y7: 12.3068224 | Z7: 12.83468609 | AA7: 12.55166845 | AB7: 12.53688423 | AC7: 12.11162981 | AD7: 14.12560695 | AE7: 11.15467359 | AF7: 12.9208952 | AG7: 13.35599852 | AH7: 8.386740382 | AI7: 9.22198298 | AJ7: 10.47704765 | AK7: 11.17738016 | AL7: 9.139817047 | AM7: 8.984078451 | AN7: 10.41187578 | AO7: 11.18973998 | AP7: 12.27337665 | AQ7: 10.1234711 | AR7: 13.95908417 | AS7: 12.3484246 | AT7: 13.86172906 | AU7: 12.85785945 | AV7: 9.119867303 | AW7: 7.361302607 | AX7: 11.13641368 | AY7: 12.1348308 | AZ7: 8.477481278 | BA7: 6.091399359 | BB7: 7.800107551 | BC7: 10.32301533 | BD7: 8.64517419 | BE7: 10.04196484

Sheet 35.ábra
B1: 2004 | C1: 2005 | D1: 2006 | E1: 2007 | F1: 2008 | G1: 2009 | H1: 2010 | I1: 2011 | J1: 2012 | K1: 2013 | L1: 2014 | M1: 2015 | N1: 2016 | O1: 2017*
A2: Magyarország | B2: 45.04497698 | C2: 55.31711809 | D2: 73.87695085 | E2: 64.88618073 | F2: 81.95096842 | G2: 105.7581458 | H2: 104.8029562 | I2: 73.4910345 | J2: 68.99544474 | K2: 65.738592 | L2: 41.69808231 | M2: 45.7381763 | N2: 41.77884129 | O2: 31.47115613
A3: Csehország | B3: 49.42741592 | C3: 48.28571429 | D3: 56.05781453 | E3: 53.11472677 | F3: 81.69561749 | G3: 72.460948 | H3: 72.75342329 | I3: 85.22468796 | J3: 72.35239071 | K3: 69.80579797 | L3: 76.438795 | M3: 77.9499489 | N3: 76.35424465 | O3: 62.32968997
A4: Lengyelország | B4: 30.45413945 | C4: 60.20984197 | D4: 52.91230028 | E4: 46.66393971 | F4: 109.66228 | G4: 60.19990661 | H4: 56.15118616 | I4: 57.85326087 | J4: 62.31046931 | K4: 71.10491953 | L4: 51.31849134 | M4: 51.30717369 | N4: 51.26422832 | O4: 47.55338163
A5: Szlovákia | B5: 34.72442731 | C5: 67.28397308 | D5: 68.63494069 | E5: 80.36774619 | F5: 92.48728703 | G5: 97.70335355 | H5: 66.4915551 | I5: 59.31936539 | J5: 82.8443062 | K5: 109.2585693 | L5: 111.1852019 | M5: 80.8673607 | N5: 90.26158702 | O5: 73.88421053

Sheet 36.ábra
B2: Hungary | P2: Czech Rep. | AD2: Poland | AR2: Slovakia
B3: 2004 | C3: 2005 | D3: 2006 | E3: 2007 | F3: 2008 | G3: 2009 | H3: 2010 | I3: 2011 | J3: 2012 | K3: 2013 | L3: 2014 | M3: 2015 | N3: 2016 | O3: 2017* | P3: 2004 | Q3: 2005 | R3: 2006 | S3: 2007 | T3: 2008 | U3: 2009 | V3: 2010 | W3: 2011 | X3: 2012 | Y3: 2013 | Z3: 2014 | AA3: 2015 | AB3: 2016 | AC3: 2017* | AD3: 2004 | AE3: 2005 | AF3: 2006 | AG3: 2007 | AH3: 2008 | AI3: 2009 | AJ3: 2010 | AK3: 2011 | AL3: 2012 | AM3: 2013 | AN3: 2014 | AO3: 2015 | AP3: 2016 | AQ3: 2017* | AR3: 2004 | AS3: 2005 | AT3: 2006 | AU3: 2007 | AV3: 2008 | AW3: 2009 | AX3: 2010 | AY3: 2011 | AZ3: 2012 | BA3: 2013 | BB3: 2014 | BC3: 2015 | BD3: 2016 | BE3: 2017
B4: Magyarország | P4: Csehország | AD4: Lengyelország | AR4: Szlovákia
B5: 2004 | C5: 2005 | D5: 2006 | E5: 2007 | F5: 2008 | G5: 2009 | H5: 2010 | I5: 2011 | J5: 2012 | K5: 2013 | L5: 2014 | M5: 2015 | N5: 2016 | O5: 2017* | P5: 2004 | Q5: 2005 | R5: 2006 | S5: 2007 | T5: 2008 | U5: 2009 | V5: 2010 | W5: 2011 | X5: 2012 | Y5: 2013 | Z5: 2014 | AA5: 2015 | AB5: 2016 | AC5: 2017* | AD5: 2004 | AE5: 2005 | AF5: 2006 | AG5: 2007 | AH5: 2008 | AI5: 2009 | AJ5: 2010 | AK5: 2011 | AL5: 2012 | AM5: 2013 | AN5: 2014 | AO5: 2015 | AP5: 2016 | AQ5: 2017* | AR5: 2004 | AS5: 2005 | AT5: 2006 | AU5: 2007 | AV5: 2008 | AW5: 2009 | AX5: 2010 | AY5: 2011 | AZ5: 2012 | BA5: 2013 | BB5: 2014 | BC5: 2015 | BD5: 2016 | BE5: 2017
A6: FDI részesedések jövedelme | B6: -4.297770084 | C6: -4.416025496 | D6: -4.777117724 | E6: -5.669205771 | F6: -4.369561897 | G6: -2.897763242 | H6: -3.220697646 | I6: -3.614095259 | J6: -3.534333754 | K6: -3.467072573 | L6: -5.14657501 | M6: -5.95448906 | N6: -4.769884795 | O6: -5.761912106 | P6: -4.570622263 | Q6: -4.257865485 | R6: -5.213678524 | S6: -7.089583805 | T6: -3.920450354 | U6: -5.859821633 | V6: -6.505498404 | W6: -5.86263758 | X6: -5.86839352 | Y6: -6.387788637 | Z6: -6.705923656 | AA6: -6.499546219 | AB6: -6.566419138 | AC6: -6.66996099 | AD6: -3.453480407 | AE6: -2.766557285 | AF6: -3.337114556 | AG6: -4.035409113 | AH6: -1.863334192 | AI6: -3.073328773 | AJ6: -3.410189885 | AK6: -3.085958221 | AL6: -2.771865196 | AM6: -2.977120277 | AN6: -3.132953062 | AO6: -3.173503278 | AP6: -3.54431301 | AQ6: -3.108171757 | AR6: -7.363488875 | AS6: -6.920756424 | AT6: -7.236295909 | AU6: -5.971202811 | AV6: -3.667874696 | AW6: -3.001416676 | AX6: -4.79554525 | AY6: -5.501704726 | AZ6: -3.804906229 | BA6: -2.608470552 | BB6: -2.69819866 | BC6: -4.316673511 | BD6: -3.735736994 | BE6: -4.141897648
A7: Kamat | B7: -1.646516474 | C7: -1.950778022 | D7: -1.867896065 | E7: -2.103394602 | F7: -3.155339629 | G7: -3.089349853 | H7: -3.101793627 | I7: -3.448685709 | J7: -3.61529749 | K7: -2.946978242 | L7: -2.701175814 | M7: -2.385617827 | N7: -1.536496639 | O7: -1.32774926 | P7: 0.1399584498 | Q7: 0.3657834653 | R7: 0.5881726468 | S7: 0.7216768412 | T7: 0.6066463294 | U7: 0.2551082175 | V7: -0.2538952081 | W7: -0.1764198475 | X7: -0.6200045467 | Y7: -0.6466271421 | Z7: -0.4339971914 | AA7: -0.2288196409 | AB7: 0.03464306025 | AC7: 0.2800000835 | AD7: -0.9849136133 | AE7: -0.7469091349 | AF7: -0.8314199616 | AG7: -0.925498767 | AH7: -1.245991409 | AI7: -1.346745599 | AJ7: -1.292689216 | AK7: -1.640903667 | AL7: -1.93437308 | AM7: -1.62063649 | AN7: -1.6978374 | AO7: -1.446792699 | AP7: -1.30149328 | AQ7: -1.160962868 | AR7: -0.8613261945 | AS7: -0.6048545935 | AT7: -0.283767697 | AU7: -0.5766194418 | AV7: -1.033137988 | AW7: -0.05966596432 | AX7: 0.09307859296 | AY7: -0.2297981514 | AZ7: -0.2870563315 | BA7: -0.5832554716 | BB7: -0.8105110149 | BC7: -0.6554164702 | BD7: -0.5114966607 | BE7: -0.5253855966
A8: Munkabér | B8: 0.8872614658 | C8: 0.9205425738 | D8: 0.9914570076 | E8: 0.7102865264 | F8: 0.6636627769 | G8: 0.3287882763 | H8: 0.6289385566 | I8: 0.9660929128 | J8: 1.612608901 | K8: 2.392204708 | L8: 2.372489596 | M8: 2.623159056 | N8: 2.601608342 | O8: 2.207538952 | P8: 0.1874443525 | Q8: -0.07945072276 | R8: -0.08794350961 | S8: -0.2426557939 | T8: -0.6174947974 | U8: -0.4136344682 | V8: -0.1292766252 | W8: -0.05608371103 | X8: 0.03654737562 | Y8: 0.3138043484 | Z8: 0.5155112984 | AA8: 0.6399827154 | AB8: 0.7345349353 | AC8: 0.7465973154 | AD8: 1.202699792 | AE8: 1.329034412 | AF8: 1.404065877 | AG8: 1.214500086 | AH8: 0.7955054081 | AI8: 0.7515384778 | AJ8: 0.577799189 | AK8: 0.4743824783 | AL8: 0.4317155003 | AM8: 0.4415380695 | AN8: 0.3238645156 | AO8: 0.1948821859 | AP8: -0.0282198377 | AQ8: -0.4095317725 | AR8: 1.557245485 | AS8: 2.365032289 | AT8: 2.244444347 | AU8: 2.048839293 | AV8: 1.956129134 | AW8: 1.717661282 | AX8: 1.698499348 | AY8: 1.712937792 | AZ8: 1.898120448 | BA8: 1.925309324 | BB8: 1.908321702 | BC8: 1.886017613 | BD8: 1.885304483 | BE8: 1.771602585
A9: Transzfer* | B9: 0.2907521792 | C9: 0.7065981734 | D9: 0.7449669868 | E9: 0.6386619123 | F9: 0.6711983076 | G9: 1.105065542 | H9: 1.017189268 | I9: 1.277092779 | J9: 1.293285569 | K9: 1.38445811 | L9: 1.254082062 | M9: 1.163977365 | N9: 1.069035126 | O9: 1.079670794 | P9: 0.03072004665 | Q9: 0.2555011188 | R9: 0.2832749195 | S9: 0.3705634517 | T9: 0.2315992935 | U9: 0.4796142102 | V9: 0.5436509608 | W9: 0.5426099043 | X9: 0.6015450248 | Y9: 0.6489727504 | Z9: 0.5794076344 | AA9: 0.5344467046 | AB9: 0.5163573644 | AC9: 0.4402461246 | AD9: 0.09033590207 | AE9: 0.5071865989 | AF9: 0.6843710454 | AG9: 0.7061113695 | AH9: 0.4374597024 | AI9: 0.8377619859 | AJ9: 0.8645843784 | AK9: 1.023612087 | AL9: 1.139949786 | AM9: 1.138412773 | AN9: 1.109985956 | AO9: 1.009941294 | AP9: 0.9150317591 | AQ9: 0.7215130253 | AR9: 0.7642144757 | AS9: 0.5552971793 | AT9: 0.5717084485 | AU9: 0.2297231942 | AV9: -0.2069609168 | AW9: 0.4670189354 | AX9: 0.2127933492 | AY9: 0.6126534819 | AZ9: 0.529823186 | BA9: 0.5957942508 | BB9: 0.6144217601 | BC9: 1.354434423 | BD9: 0.0129383641 | BE9: 0.5692755915
A10: GDP-GNI | B10: -4.766272913 | C10: -4.739662771 | D10: -4.908589794 | E10: -6.423651934 | F10: -6.190040441 | G10: -4.553259277 | H10: -4.676363448 | I10: -4.819595276 | J10: -4.243736774 | K10: -2.637387998 | L10: -4.221179166 | M10: -4.552970465 | N10: -2.635737965 | O10: -3.80245162 | P10: -4.212499414 | Q10: -3.716031623 | R10: -4.430174467 | S10: -6.239999306 | T10: -3.699699528 | U10: -5.538733673 | V10: -6.345019277 | W10: -5.552531235 | X10: -5.850305666 | Y10: -6.07163868 | Z10: -6.045001915 | AA10: -5.55393644 | AB10: -5.280883778 | AC10: -5.203117466 | AD10: -3.145358326 | AE10: -1.677245409 | AF10: -2.080097596 | AG10: -3.040296425 | AH10: -1.87636049 | AI10: -2.830773908 | AJ10: -3.260495534 | AK10: -3.228867323 | AL10: -3.134572989 | AM10: -3.017805924 | AN10: -3.39693999 | AO10: -3.415472497 | AP10: -3.958994369 | AQ10: -3.957153372 | AR10: -5.903355109 | AS10: -4.60528155 | AT10: -4.703910811 | AU10: -4.269259765 | AV10: -2.951844467 | AW10: -0.8764024235 | AX10: -2.791173959 | AY10: -3.405911603 | AZ10: -1.664018926 | BA10: -0.6706224493 | BB10: -0.9859662127 | BC10: -1.731637945 | BD10: -2.348990808 | BE10: -2.326405068
